Workbook

Sheet مقدمه
C10: چند نكته
C13: 1-براي گرفتن پرينت بايد ماكروها رافعال كنيد براي اين منظور در قسنت Secutity Warning گزينه Enable This Content را تيك بزنيد.
C16: 2-در مجاسبه وزن اجزا و مصالح از منابع مختلف كمك گرفته شده است و انچه كه متداول بوده است مورد استفاده قرار گرفته است به عنوان مثال در محاسبه وزن طبقات از وزن تاسيسات احتمالي صرف نظر شده است و يا در سقف تيرچه بلوك وزن چاله بتني اطراف تيرچه را ميتوان در مورد مساحت خود تيرچه لحاظ كرد.
C18: 3-فايل اتوكد جزييات بر روي سايت قرار خواهد گرفت تا در صورت تغيير دادن اجزاء مصرفي قابل ويرايش باشد.
C19: 4-استفاده از اين نرم افزار با ذكر نام منبع بلا مانع است.
C20: 5-وزن اجزاء و مصالح از مبحث ششم گرفته شده است.
C21: 6-هرگونه ايراد و اشكال را به ايميل زير بفرستيد: Email:xenonfxfactory@gmail.com

Sheet وزن مصالح (hidden)
B3: بنايي با آجر و بلوك | E3: بتن ها | H3: سنگ ها و پركننده ها | K3: سنگ هاي طبيعي و نما
B4: آجر كاري با آجر فشاري و ملات ماسه سيمان | C4: 1850 | D4: 1 | E4: بتن با شن و ماسه معمولي | F4: 2400 | G4: 1 | H4: شن خيس | I4: 2000 | J4: 1 | K4: گرانيت | L4: 2800 | M4: 1
B5: آجر كاري با آجر فشاري و ملات ماسه آهك | C5: 1800 | D5: 2 | E5: بتن آرمه | F5: 2500 | G5: 2 | H5: شن خشك | I5: 1700 | J5: 2 | K5: آلومينيوم | L5: 2700 | M5: 2
B6: آجر كاري با آجر فشاري و ملات گچ و خاك(طاق ضربي) | C6: 1750 | D6: 3 | E6: بتن با سرباره كوره آهن گدازي | F6: 1750 | G6: 3 | H6: ماسه خيس | I6: 1800 | J6: 3 | K6: ديوريت - گابرو | L6: 3000 | M6: 3
B7: آجر كاري با آجر سفال و ملات ماسه سيمان | C7: 2100 | D7: 4 | E7: بتن هاي سبك هوادار | F7: 600 | G7: 4 | H7: ماسه خشك | I7: 1550 | J7: 4 | K7: بازالت ملافير | L7: 3000 | M7: 4
B8: آجر كاري با آجر سفال و ملات ماسه آهك | C8: 2000 | D8: 5 | E8: بتن با سنگ دانه سبك | F8: 1000-1800 | G8: 5 | H8: ماسه بادي | I8: 1600 | J8: 5 | K8: كفسنگ (توف) | L8: 2000 | M8: 5
B9: آجركاري با آجر مجوف و ملات ماسه سيمان | C9: 850 | D9: 6 | E9: بتن اسفنجي | F9: 500-900 | G9: 6 | H9: خاك-ماسه-گل رس خيس | I9: 2100 | J9: 6 | K9: سنگهاي آذرين ماگماتيك | L9: 2800 | M9: 6
B10: آجر كاري باآجر نسوز و ملات نسوز | C10: 2000 | D10: 7 | E10: بتن با خرده آجر | F10: 1700 | G10: 7 | H10: خاك-ماسه-گل رس مرطوب (5% رطوبت) | I10: 1800 | J10: 7 | K10: سنگهاي آتشفشاني | L10: 2800 | M10: 7
B11: آجر كاري باآجر ضد اسيد و ملات قيري | C11: 1900 | D11: 8 | E11: بتن با پوكه معدني و سيمان | F11: 1300 | G11: 8 | H11: بتن سبك با پوكه معدني و ملات سيمان | I11: 1300 | J11: 8 | K11: توف آتشفشاني | L11: 1600 | M11: 8
E12: بتن با پوكه صنعتي و سيمان | F12: 1000-1800 | G12: 9 | H12: لاشه سنگ | I12: 1400 | J12: 9 | K12: تراورتن | L12: 2500 | M12: 9
B13: ملات ها | H13: سرباره كوره آهن گدازي | I13: 1500 | J13: 10 | K13: گنايس | L13: 2800 | M13: 10
B14: ملات ماسه آهك | C14: 1850 | D14: 1 | E14: بنايي با سنگهاي طبيعي و ملات ماسه سيمان | H14: سرباره كوره آهن گدازي دانه به دانه | I14: 1000 | J14: 11 | K14: شيست | L14: 2800 | M14: 11
B15: ملات ماسه سيمان و آهك (باتارد) | C15: 2000 | D15: 2 | E15: گرانيت و پورفيت | F15: 2800 | G15: 1 | H15: پوزولان ها | I15: 1000 | J15: 12 | K15: ماسه سنگ | L15: 2700 | M15: 12
B16: ملات ماسه سيمان | C16: 2100 | D16: 3 | E16: لاشه آذرين (تراشيت) | F16: 2600 | G16: 2 | H16: پوكه معدني | I16: 600 | J16: 13 | K16: مارل | L16: 2300 | M16: 13
B17: ملات گچ | C17: 1300 | D17: 4 | E17: ماسه سنگ | F17: 2300 | G17: 3 | H17: پوكه كك | I17: 700 | J17: 14 | K17: سنگ آهك متخلخل | L17: 2000 | M17: 14
B18: ملات خاك نسوز | C18: 1900 | D18: 5 | E18: سنگ آهكي فشرده (دولوميت مرمر گل سنگ آهكي) | F18: 2700 | G18: 4 | H18: جوش زغال | I18: 1000 | J18: 15 | K18: سنگ آهك ابي | L18: 2400 | M18: 15
B19: كاهگل | C19: 1600 | D19: 6 | E19: تراورتن | F19: 2400 | G19: 5 | H19: ذغال سنگ | I19: 800 | J19: 16 | K19: سنگ آهك سخت | L19: 2700 | M19: 16
B20: ملات گچ و خاك | C20: 1600 | D20: 7 | E20: اسليت (تخته سنگ) | F20: 2800 | G20: 6 | H20: ذغال چوب (از چوب نرم و سبك) | I20: 150 | J20: 17 | K20: دولوميت | L20: 2800 | M20: 17
B21: ملات گل | C21: 2000 | D21: 8 | E21: سنگ چيني با سنگ هاي لاشه آهكي مرمر | F21: 2500 | G21: 7 | H21: ذغال چوب (از چوب سفت و سنگين) | I21: 220 | J21: 18 | K21: سنگ مرمر | L21: 2700 | M21: 18
E22: سنگ چيني با سنگ توف | F22: 2000 | G22: 8 | H22: خرده آجر | I22: 1500 | J22: 19 | K22: تخته سنگ هاي رسي | L22: 2600 | M22: 19
B23: پوشش هاي سقف | H23: سنگ آهك پخته | I23: 700 | J23: 20
B24: پوشش شيرواني با سفال | C24: 70 | D24: 1 | E24: پوشش ها و مواد متفرقه ساختماني | H24: خاكستر كك | I24: 700 | J24: 21
B25: گوني قيراندود يك لا | C25: 10 | D25: 2 | E25: آسفالت | F25: 2200 | G25: 1 | H25: پودر سيمان توده شده و بطور آزاد | I25: 1300 | J25: 22
B26: گوني قيراندود دو لا | C26: 15 | D26: 3 | E26: قير | F26: 1200 | G26: 2 | H26: پودر سيمان در كيسه و جابجا شده | I26: 1800 | J26: 23
B27: سقف كاذب با اندود سيماني | C27: 75 | D27: 4 | E27: تخته هاي سقف پوش آزبستي (آردواز) | F27: 2000 | G27: 3
B28: سقف كاذب با اندود گچي | C28: 50 | D28: 5 | E28: ورق هاي موجدار آزبست | F28: 1600 | G28: 4 | H28: آجر ها و بلوك هاي ساختماني
B29: آسفالت | C29: 2200 | D29: 6 | E29: لوله هاي سيمان آزبست | F29: 1800 | G29: 5 | H29: آجر توپر پخته رسي معمولي (آجر فشاري) | I29: 1700 | J29: 1
E30: موزاييك سيماني | F30: 2250 | G30: 6 | H30: آجر سوراخدار پخته رسي (آجر سفال) | I30: 1300 | J30: 2
E31: سنگ موزاييك | F31: 2400 | G31: 7 | H31: آجر ماسه آهكي متخلخل | I31: 1450 | J31: 3
E32: آجر فرش با آجر سوراخدار | F32: 1350 | G32: 8 | H32: آجر ماسه آهكي توپر | I32: 1800 | J32: 4
E33: آجر فرش با آجر توپر | F33: 1600 | G33: 9 | H33: آجر نسوز | I33: 1850 | J33: 5
E34: رزين اپوكسي بدون فيلر (افزودني) | F34: 1150 | G34: 10 | H34: آجر ضد اسيد | I34: 2000 | J34: 6
E35: رزين با مواد معدني | F35: 2000 | G35: 11 | H35: آجر شيشه اي مجوف | I35: 1250 | J35: 7
E36: رزين با فايبر گلاس | F36: 1800 | G36: 12 | H36: آجر مجوف | I36: 600 | J36: 8
E37: كف پوش لاستيكي | F37: 1800 | G37: 13 | H37: بلوك سيماني | I37: 900-300 | J37: 9
E38: ورق پي وي سي | F38: 1400 | G38: 14
E39: كف پوش پي وي سي | F39: 1700 | G39: 15
E40: صفحات گچ و پرليت جهت سقف كاذب | F40: 850 | G40: 16
E41: شيشه جام | F41: 2500 | G41: 17
E42: شيشه مسلح | F42: 3000 | G42: 18
E43: كاشي سراميكي ديواري | F43: 1700 | G43: 19
E44: كاشي سراميكي كفي | F44: 2100 | G44: 20

Sheet ديوار تيفه
C20: وزن واحد سطح ديوارهاي جدا كننده (تيغه ها):
C21: مصالح مصرفي | D21: وزن مخصوص (kg/m3) | E21: ضخامت(m) | F21: تعداد | G21: شدت بار(kg/m2)
A22: 6 | C22: =CHOOSE(A22,'وزن مصالح'!B4,'وزن مصالح'!B5,'وزن مصالح'!B6,'وزن مصالح'!B7,'وزن مصالح'!B8,'وزن مصالح'!B9,'وزن مصالح'!B10,'وزن مصالح'!B11) -> آجركاري با آجر مجوف و ملات ماسه سيمان | D22: =CHOOSE(A22,'وزن مصالح'!C4,'وزن مصالح'!C5,'وزن مصالح'!C6,'وزن مصالح'!C7,'وزن مصالح'!C8,'وزن مصالح'!C9,'وزن مصالح'!C10,'وزن مصالح'!C11) -> 850 | E22: 0.1 | F22: 1 | G22: =D22*E22*F22 -> 85
A23: 7 | C23: =CHOOSE(A23,'وزن مصالح'!B14,'وزن مصالح'!B15,'وزن مصالح'!B16,'وزن مصالح'!B17,'وزن مصالح'!B18,'وزن مصالح'!B19,'وزن مصالح'!B20,'وزن مصالح'!B21) -> ملات گچ و خاك | D23: =CHOOSE(A23,'وزن مصالح'!C14,'وزن مصالح'!C15,'وزن مصالح'!C16,'وزن مصالح'!C17,'وزن مصالح'!C18,'وزن مصالح'!C19,'وزن مصالح'!C20,'وزن مصالح'!C21) -> 1600 | E23: 0.02 | F23: 2 | G23: =F23*E23*D23 -> 64
A24: 4 | C24: =CHOOSE(A24,'وزن مصالح'!B14,'وزن مصالح'!B15,'وزن مصالح'!B16,'وزن مصالح'!B17,'وزن مصالح'!B18,'وزن مصالح'!B19,'وزن مصالح'!B20,'وزن مصالح'!B21) -> ملات گچ | D24: =CHOOSE(A24,'وزن مصالح'!C14,'وزن مصالح'!C15,'وزن مصالح'!C16,'وزن مصالح'!C17,'وزن مصالح'!C18,'وزن مصالح'!C19,'وزن مصالح'!C20,'وزن مصالح'!C21) -> 1300 | E24: 0.01 | F24: 2 | G24: 26
C25: حاصل جمع | E25: =G24+G23+G22 -> 175
C28: با توجه به مبحث ششم در صورتي كه وزن يك متر مربع سطح تيغه هاي داخلي از 275 كيلوگرم كمتر باشد ميتوان بار تيغه ها را به صورت معادل يكنواخت به بار مرده سقف افزود.كه از 100 كيلوگرم نبايد كمتر باشد.
C33: w=وزن هر متر مربع تيغه | D33: =E25 -> 175
C34: h=ارتفاع طبقه | D34: 2.9
C35: l=طول كل تيغه ها | D35: 25
C36: A=مساحت كل طبقه | D36: 155
F38: =D33*D34*D35/D36 -> 81.85483871
F40: =MAX(CEILING(D33*D34*D35/D36,5),100) -> 100

Sheet ديوار محيطي
C20: وزن واحد سطح ديوارهاي محيطي مجاور همسايه:
C21: مصالح مصرفي | D21: وزن مخصوص (kg/m3) | E21: ضخامت(m) | F21: تعداد | G21: شدت بار(kg/m2)
A22: 6 | C22: =CHOOSE(A22,'وزن مصالح'!B4,'وزن مصالح'!B5,'وزن مصالح'!B6,'وزن مصالح'!B7,'وزن مصالح'!B8,'وزن مصالح'!B9,'وزن مصالح'!B10,'وزن مصالح'!B11) -> آجركاري با آجر مجوف و ملات ماسه سيمان | D22: =CHOOSE(A22,'وزن مصالح'!C4,'وزن مصالح'!C5,'وزن مصالح'!C6,'وزن مصالح'!C7,'وزن مصالح'!C8,'وزن مصالح'!C9,'وزن مصالح'!C10,'وزن مصالح'!C11) -> 850 | E22: 0.2 | F22: 1 | G22: =D22*E22*F22 -> 170
A23: 7 | C23: =CHOOSE(A23,'وزن مصالح'!B14,'وزن مصالح'!B15,'وزن مصالح'!B16,'وزن مصالح'!B17,'وزن مصالح'!B18,'وزن مصالح'!B19,'وزن مصالح'!B20,'وزن مصالح'!B21) -> ملات گچ و خاك | D23: =CHOOSE(A23,'وزن مصالح'!C14,'وزن مصالح'!C15,'وزن مصالح'!C16,'وزن مصالح'!C17,'وزن مصالح'!C18,'وزن مصالح'!C19,'وزن مصالح'!C20,'وزن مصالح'!C21) -> 1600 | E23: 0.02 | F23: 1 | G23: =F23*E23*D23 -> 32
A24: 4 | C24: =CHOOSE(A24,'وزن مصالح'!B14,'وزن مصالح'!B15,'وزن مصالح'!B16,'وزن مصالح'!B17,'وزن مصالح'!B18,'وزن مصالح'!B19,'وزن مصالح'!B20,'وزن مصالح'!B21) -> ملات گچ | D24: =CHOOSE(A24,'وزن مصالح'!C14,'وزن مصالح'!C15,'وزن مصالح'!C16,'وزن مصالح'!C17,'وزن مصالح'!C18,'وزن مصالح'!C19,'وزن مصالح'!C20,'وزن مصالح'!C21) -> 1300 | E24: 0.01 | F24: 1 | G24: 13
A25: 3 | C25: =CHOOSE(A25,'وزن مصالح'!B14,'وزن مصالح'!B15,'وزن مصالح'!B16,'وزن مصالح'!B17,'وزن مصالح'!B18,'وزن مصالح'!B19,'وزن مصالح'!B20,'وزن مصالح'!B21) -> ملات ماسه سيمان | D25: =CHOOSE(A25,'وزن مصالح'!C14,'وزن مصالح'!C15,'وزن مصالح'!C16,'وزن مصالح'!C17,'وزن مصالح'!C18,'وزن مصالح'!C19,'وزن مصالح'!C20,'وزن مصالح'!C21) -> 2100 | E25: 0.02 | F25: 1 | G25: =F25*E25*D25 -> 42
C26: حاصل جمع | E26: =G24+G23+G22+G25 -> 257
G29: محاسبه وزن واحد طول ديوار:
D32: 3
D34: =CEILING(E26*D32,5) -> 775

Sheet ديوار نما
C20: وزن واحد سطح ديوارهاي محيطي (نماي ساختمان):
A21: dsdsdfgfg | C21: مصالح مصرفي | D21: وزن مخصوص (kg/m3) | E21: ضخامت(m) | F21: تعداد | G21: شدت بار(kg/m2)
A22: 6 | C22: =CHOOSE(A22,'وزن مصالح'!B4,'وزن مصالح'!B5,'وزن مصالح'!B6,'وزن مصالح'!B7,'وزن مصالح'!B8,'وزن مصالح'!B9,'وزن مصالح'!B10,'وزن مصالح'!B11) -> آجركاري با آجر مجوف و ملات ماسه سيمان | D22: =CHOOSE(A22,'وزن مصالح'!C4,'وزن مصالح'!C5,'وزن مصالح'!C6,'وزن مصالح'!C7,'وزن مصالح'!C8,'وزن مصالح'!C9,'وزن مصالح'!C10,'وزن مصالح'!C11) -> 850 | E22: 0.2 | F22: 1 | G22: =D22*E22*F22 -> 170
A23: 7 | C23: =CHOOSE(A23,'وزن مصالح'!B14,'وزن مصالح'!B15,'وزن مصالح'!B16,'وزن مصالح'!B17,'وزن مصالح'!B18,'وزن مصالح'!B19,'وزن مصالح'!B20,'وزن مصالح'!B21) -> ملات گچ و خاك | D23: =CHOOSE(A23,'وزن مصالح'!C14,'وزن مصالح'!C15,'وزن مصالح'!C16,'وزن مصالح'!C17,'وزن مصالح'!C18,'وزن مصالح'!C19,'وزن مصالح'!C20,'وزن مصالح'!C21) -> 1600 | E23: 0.02 | F23: 1 | G23: =D23*E23*F23 -> 32
A24: 4 | C24: =CHOOSE(A24,'وزن مصالح'!B14,'وزن مصالح'!B15,'وزن مصالح'!B16,'وزن مصالح'!B17,'وزن مصالح'!B18,'وزن مصالح'!B19,'وزن مصالح'!B20,'وزن مصالح'!B21) -> ملات گچ | D24: =CHOOSE(A24,'وزن مصالح'!C14,'وزن مصالح'!C15,'وزن مصالح'!C16,'وزن مصالح'!C17,'وزن مصالح'!C18,'وزن مصالح'!C19,'وزن مصالح'!C20,'وزن مصالح'!C21) -> 1300 | E24: 0.01 | F24: 1 | G24: 13
A25: 3 | C25: =CHOOSE(A25,'وزن مصالح'!B14,'وزن مصالح'!B15,'وزن مصالح'!B16,'وزن مصالح'!B17,'وزن مصالح'!B18,'وزن مصالح'!B19,'وزن مصالح'!B20,'وزن مصالح'!B21) -> ملات ماسه سيمان | D25: =CHOOSE(A25,'وزن مصالح'!C14,'وزن مصالح'!C15,'وزن مصالح'!C16,'وزن مصالح'!C17,'وزن مصالح'!C18,'وزن مصالح'!C19,'وزن مصالح'!C20,'وزن مصالح'!C21) -> 2100 | E25: 0.02 | F25: 1 | G25: 42
A26: 18 | C26: =CHOOSE(A26,'وزن مصالح'!K4,'وزن مصالح'!K5,'وزن مصالح'!K6,'وزن مصالح'!K7,'وزن مصالح'!K8,'وزن مصالح'!K9,'وزن مصالح'!K10,'وزن مصالح'!K11,'وزن مصالح'!K12,'وزن مصالح'!K13,'وزن مصالح'!K14,'وزن مصالح'!K15,'وزن مصالح'!K16,'وزن مصالح'!K17,'وزن مصالح'!K18,'وزن مصالح'!K19,'وزن مصالح'!K20,'وزن مصالح'!K21,'وزن مصالح'!K22) -> سنگ مرمر | D26: =CHOOSE(A26,'وزن مصالح'!L4,'وزن مصالح'!L5,'وزن مصالح'!L6,'وزن مصالح'!L7,'وزن مصالح'!L8,'وزن مصالح'!L9,'وزن مصالح'!L10,'وزن مصالح'!L11,'وزن مصالح'!L12,'وزن مصالح'!L13,'وزن مصالح'!L14,'وزن مصالح'!L15,'وزن مصالح'!L16,'وزن مصالح'!L17,'وزن مصالح'!L18,'وزن مصالح'!L19,'وزن مصالح'!L20,'وزن مصالح'!L21,'وزن مصالح'!L22) -> 2700 | E26: 0.02 | F26: 1 | G26: 54
C27: حاصل جمع | E27: =SUM(G22:G26) -> 311
G30: محاسبه وزن واحد طول ديوار:
D32: 3
D34: =D32*E27 -> 933
D36: 0.3
D38: =CEILING(D34*(1-D36),5) -> 655

Sheet ديوار جان پناه
C20: وزن واحد سطح ديوار هاي جان پناه پشت بام:
C21: مصالح مصرفي | D21: وزن مخصوص (kg/m3) | E21: ضخامت(m) | F21: تعداد | G21: شدت بار(kg/m2)
A22: 6 | C22: =CHOOSE(A22,'وزن مصالح'!B4,'وزن مصالح'!B5,'وزن مصالح'!B6,'وزن مصالح'!B7,'وزن مصالح'!B8,'وزن مصالح'!B9,'وزن مصالح'!B10,'وزن مصالح'!B11) -> آجركاري با آجر مجوف و ملات ماسه سيمان | D22: =CHOOSE(A22,'وزن مصالح'!C4,'وزن مصالح'!C5,'وزن مصالح'!C6,'وزن مصالح'!C7,'وزن مصالح'!C8,'وزن مصالح'!C9,'وزن مصالح'!C10,'وزن مصالح'!C11) -> 850 | E22: 0.2 | F22: 1 | G22: =D22*E22*F22 -> 170
A23: 3 | C23: =CHOOSE(A23,'وزن مصالح'!B14,'وزن مصالح'!B15,'وزن مصالح'!B16,'وزن مصالح'!B17,'وزن مصالح'!B18,'وزن مصالح'!B19,'وزن مصالح'!B20,'وزن مصالح'!B21) -> ملات ماسه سيمان | D23: =CHOOSE(A23,'وزن مصالح'!C14,'وزن مصالح'!C15,'وزن مصالح'!C16,'وزن مصالح'!C17,'وزن مصالح'!C18,'وزن مصالح'!C19,'وزن مصالح'!C20,'وزن مصالح'!C21) -> 2100 | E23: 0.03 | F23: 1 | G23: =D23*E23*F23 -> 63
A24: 3 | C24: =CHOOSE(A24,'وزن مصالح'!B14,'وزن مصالح'!B15,'وزن مصالح'!B16,'وزن مصالح'!B17,'وزن مصالح'!B18,'وزن مصالح'!B19,'وزن مصالح'!B20,'وزن مصالح'!B21) -> ملات ماسه سيمان | D24: =CHOOSE(A24,'وزن مصالح'!C14,'وزن مصالح'!C15,'وزن مصالح'!C16,'وزن مصالح'!C17,'وزن مصالح'!C18,'وزن مصالح'!C19,'وزن مصالح'!C20,'وزن مصالح'!C21) -> 2100 | E24: 0.02 | F24: 1 | G24: 42
A25: 18 | C25: =CHOOSE(A25,'وزن مصالح'!K4,'وزن مصالح'!K5,'وزن مصالح'!K6,'وزن مصالح'!K7,'وزن مصالح'!K8,'وزن مصالح'!K9,'وزن مصالح'!K10,'وزن مصالح'!K11,'وزن مصالح'!K12,'وزن مصالح'!K13,'وزن مصالح'!K14,'وزن مصالح'!K15,'وزن مصالح'!K16,'وزن مصالح'!K17,'وزن مصالح'!K18,'وزن مصالح'!K19,'وزن مصالح'!K20,'وزن مصالح'!K21,'وزن مصالح'!K22) -> سنگ مرمر | D25: =CHOOSE(A25,'وزن مصالح'!L4,'وزن مصالح'!L5,'وزن مصالح'!L6,'وزن مصالح'!L7,'وزن مصالح'!L8,'وزن مصالح'!L9,'وزن مصالح'!L10,'وزن مصالح'!L11,'وزن مصالح'!L12,'وزن مصالح'!L13,'وزن مصالح'!L14,'وزن مصالح'!L15,'وزن مصالح'!L16,'وزن مصالح'!L17,'وزن مصالح'!L18,'وزن مصالح'!L19,'وزن مصالح'!L20,'وزن مصالح'!L21,'وزن مصالح'!L22) -> 2700 | E25: 0.02 | F25: 1 | G25: 54
C26: حاصل جمع | E26: =SUM(G22:G25) -> 329
G29: محاسبه وزن واحد طول ديوار:
D32: 0.8
D34: =CEILING(E26*D32,5) -> 265

Sheet مورب پله
A12: =RADIANS(A14) -> 0.5235987756
A13: زاويه قسمت مورب پله با افق
A14: 30
A15: ارتفاع پيشاني پله
A16: 0.15
A17: عرض كف پله
A18: 0.3
C20: وزن واحد سطح قسمت مورب پله:
C21: مصالح مصرفي | D21: وزن مخصوص (kg/m3) | E21: ضخامت(m) | F21: تعداد | G21: شدت بار(kg/m2)
A22: 18 | C22: =CHOOSE(A22,'وزن مصالح'!K4,'وزن مصالح'!K5,'وزن مصالح'!K6,'وزن مصالح'!K7,'وزن مصالح'!K8,'وزن مصالح'!K9,'وزن مصالح'!K10,'وزن مصالح'!K11,'وزن مصالح'!K12,'وزن مصالح'!K13,'وزن مصالح'!K14,'وزن مصالح'!K15,'وزن مصالح'!K16,'وزن مصالح'!K17,'وزن مصالح'!K18,'وزن مصالح'!K19,'وزن مصالح'!K20,'وزن مصالح'!K21,'وزن مصالح'!K22) -> سنگ مرمر | D22: =CHOOSE(A22,'وزن مصالح'!L4,'وزن مصالح'!L5,'وزن مصالح'!L6,'وزن مصالح'!L7,'وزن مصالح'!L8,'وزن مصالح'!L9,'وزن مصالح'!L10,'وزن مصالح'!L11,'وزن مصالح'!L12,'وزن مصالح'!L13,'وزن مصالح'!L14,'وزن مصالح'!L15,'وزن مصالح'!L16,'وزن مصالح'!L17,'وزن مصالح'!L18,'وزن مصالح'!L19,'وزن مصالح'!L20,'وزن مصالح'!L21,'وزن مصالح'!L22) -> 2700 | E22: 0.03 | F22: 1 | G22: =D22*E22*F22 -> 81
A23: 9 | C23: =CHOOSE(A23,'وزن مصالح'!K4,'وزن مصالح'!K5,'وزن مصالح'!K6,'وزن مصالح'!K7,'وزن مصالح'!K8,'وزن مصالح'!K9,'وزن مصالح'!K10,'وزن مصالح'!K11,'وزن مصالح'!K12,'وزن مصالح'!K13,'وزن مصالح'!K14,'وزن مصالح'!K15,'وزن مصالح'!K16,'وزن مصالح'!K17,'وزن مصالح'!K18,'وزن مصالح'!K19,'وزن مصالح'!K20,'وزن مصالح'!K21,'وزن مصالح'!K22) -> تراورتن | D23: =CHOOSE(A23,'وزن مصالح'!L4,'وزن مصالح'!L5,'وزن مصالح'!L6,'وزن مصالح'!L7,'وزن مصالح'!L8,'وزن مصالح'!L9,'وزن مصالح'!L10,'وزن مصالح'!L11,'وزن مصالح'!L12,'وزن مصالح'!L13,'وزن مصالح'!L14,'وزن مصالح'!L15,'وزن مصالح'!L16,'وزن مصالح'!L17,'وزن مصالح'!L18,'وزن مصالح'!L19,'وزن مصالح'!L20,'وزن مصالح'!L21,'وزن مصالح'!L22) -> 2500 | E23: =A16*0.02 -> 0.003 | F23: =ROUND((1/A18),1) -> 3.3 | G23: =ROUND(D23*E23*F23,0) -> 25
A24: 8 | C24: =CHOOSE(A24,'وزن مصالح'!H4,'وزن مصالح'!H5,'وزن مصالح'!H6,'وزن مصالح'!H7,'وزن مصالح'!H8,'وزن مصالح'!H9,'وزن مصالح'!H10,'وزن مصالح'!H11,'وزن مصالح'!H12,'وزن مصالح'!H13,'وزن مصالح'!H14,'وزن مصالح'!H15,'وزن مصالح'!H16,'وزن مصالح'!H17,'وزن مصالح'!H18,'وزن مصالح'!H19,'وزن مصالح'!H20,'وزن مصالح'!H21,'وزن مصالح'!H22,'وزن مصالح'!H23,'وزن مصالح'!H24,'وزن مصالح'!H25,'وزن مصالح'!H26) -> بتن سبك با پوكه معدني و ملات سيمان | D24: =CHOOSE(A24,'وزن مصالح'!I4,'وزن مصالح'!I5,'وزن مصالح'!I6,'وزن مصالح'!I7,'وزن مصالح'!I8,'وزن مصالح'!I9,'وزن مصالح'!I10,'وزن مصالح'!I11,'وزن مصالح'!I12,'وزن مصالح'!I13,'وزن مصالح'!I14,'وزن مصالح'!I15,'وزن مصالح'!I16,'وزن مصالح'!I17,'وزن مصالح'!I18,'وزن مصالح'!I19,'وزن مصالح'!I20,'وزن مصالح'!I21,'وزن مصالح'!I22,'وزن مصالح'!I23,'وزن مصالح'!I24,'وزن مصالح'!I25,'وزن مصالح'!I26) -> 1300 | E24: =(A16*A18/2) -> 0.0225 | F24: =ROUND((1/A18),1) -> 3.3 | G24: =ROUND(D24*E24*F24,0) -> 97
A25: 2 | C25: =CHOOSE(A25,'وزن مصالح'!E4,'وزن مصالح'!E5,'وزن مصالح'!E6,'وزن مصالح'!E7,'وزن مصالح'!E8,'وزن مصالح'!E9,'وزن مصالح'!E10,'وزن مصالح'!E11,'وزن مصالح'!E12) -> بتن آرمه | D25: =CHOOSE(A25,'وزن مصالح'!F4,'وزن مصالح'!F5,'وزن مصالح'!F6,'وزن مصالح'!F7,'وزن مصالح'!F8,'وزن مصالح'!F9,'وزن مصالح'!F10,'وزن مصالح'!F11,'وزن مصالح'!F12) -> 2500 | E25: 0.15 | F25: 1/COS(α) | G25: =ROUND(D25*E25*(1/COS(A12)),0) -> 433
A26: 7 | C26: =CHOOSE(A26,'وزن مصالح'!B14,'وزن مصالح'!B15,'وزن مصالح'!B16,'وزن مصالح'!B17,'وزن مصالح'!B18,'وزن مصالح'!B19,'وزن مصالح'!B20,'وزن مصالح'!B21) -> ملات گچ و خاك | D26: =CHOOSE(A26,'وزن مصالح'!C14,'وزن مصالح'!C15,'وزن مصالح'!C16,'وزن مصالح'!C17,'وزن مصالح'!C18,'وزن مصالح'!C19,'وزن مصالح'!C20,'وزن مصالح'!C21) -> 1600 | E26: 0.02 | F26: 1/COS(α) | G26: =ROUND(D26*E26*(1/COS(A12)),0) -> 37
A27: 4 | C27: =CHOOSE(A27,'وزن مصالح'!B14,'وزن مصالح'!B15,'وزن مصالح'!B16,'وزن مصالح'!B17,'وزن مصالح'!B18,'وزن مصالح'!B19,'وزن مصالح'!B20,'وزن مصالح'!B21) -> ملات گچ | D27: =CHOOSE(A27,'وزن مصالح'!C14,'وزن مصالح'!C15,'وزن مصالح'!C16,'وزن مصالح'!C17,'وزن مصالح'!C18,'وزن مصالح'!C19,'وزن مصالح'!C20,'وزن مصالح'!C21) -> 1300 | E27: 0.01 | F27: 1/COS(α) | G27: =ROUND(D27*E27*(1/COS(A12)),0) -> 15
C28: حاصل جمع | E28: =CEILING(SUM(G22:G27),5) -> 690

Sheet ديوار پله
C20: وزن واحد سطح ديوارهاي پله :
C21: مصالح مصرفي | D21: وزن مخصوص (kg/m3) | E21: ضخامت(m) | F21: تعداد | G21: شدت بار(kg/m2)
A22: 6 | C22: =CHOOSE(A22,'وزن مصالح'!B4,'وزن مصالح'!B5,'وزن مصالح'!B6,'وزن مصالح'!B7,'وزن مصالح'!B8,'وزن مصالح'!B9,'وزن مصالح'!B10,'وزن مصالح'!B11) -> آجركاري با آجر مجوف و ملات ماسه سيمان | D22: =CHOOSE(A22,'وزن مصالح'!C4,'وزن مصالح'!C5,'وزن مصالح'!C6,'وزن مصالح'!C7,'وزن مصالح'!C8,'وزن مصالح'!C9,'وزن مصالح'!C10,'وزن مصالح'!C11) -> 850 | E22: 0.2 | F22: 1 | G22: =D22*E22*F22 -> 170
A23: 7 | C23: =CHOOSE(A23,'وزن مصالح'!B14,'وزن مصالح'!B15,'وزن مصالح'!B16,'وزن مصالح'!B17,'وزن مصالح'!B18,'وزن مصالح'!B19,'وزن مصالح'!B20,'وزن مصالح'!B21) -> ملات گچ و خاك | D23: =CHOOSE(A23,'وزن مصالح'!C14,'وزن مصالح'!C15,'وزن مصالح'!C16,'وزن مصالح'!C17,'وزن مصالح'!C18,'وزن مصالح'!C19,'وزن مصالح'!C20,'وزن مصالح'!C21) -> 1600 | E23: 0.02 | F23: 2 | G23: =F23*E23*D23 -> 64
A24: 4 | C24: =CHOOSE(A24,'وزن مصالح'!B14,'وزن مصالح'!B15,'وزن مصالح'!B16,'وزن مصالح'!B17,'وزن مصالح'!B18,'وزن مصالح'!B19,'وزن مصالح'!B20,'وزن مصالح'!B21) -> ملات گچ | D24: =CHOOSE(A24,'وزن مصالح'!C14,'وزن مصالح'!C15,'وزن مصالح'!C16,'وزن مصالح'!C17,'وزن مصالح'!C18,'وزن مصالح'!C19,'وزن مصالح'!C20,'وزن مصالح'!C21) -> 1300 | E24: 0.01 | F24: 2 | G24: 26
C25: حاصل جمع | E25: =G22+G23+G24 -> 260
G29: محاسبه وزن واحد طول ديوار:
D32: 3
D34: =CEILING(E25*D32,5) -> 780

Sheet كامپوزيت در طبقات
C17: وزن واحد سطح اجزا و مصالح در طبقات:
C18: مصالح مصرفي | D18: وزن مخصوص (kg/m3) | E18: ضخامت(m) | F18: تعداد | G18: شدت بار(kg/m2)
A19: 2 | C19: =CHOOSE(A19,'وزن مصالح'!E4,'وزن مصالح'!E5,'وزن مصالح'!E6,'وزن مصالح'!E7,'وزن مصالح'!E8,'وزن مصالح'!E9,'وزن مصالح'!E10,'وزن مصالح'!E11,'وزن مصالح'!E12) -> بتن آرمه | D19: =CHOOSE(A19,'وزن مصالح'!F4,'وزن مصالح'!F5,'وزن مصالح'!F6,'وزن مصالح'!F7,'وزن مصالح'!F8,'وزن مصالح'!F9,'وزن مصالح'!F10,'وزن مصالح'!F11,'وزن مصالح'!F12) -> 2500 | E19: 0.1 | F19: 1 | G19: =D19*E19*F19 -> 250
A20: 20 | C20: =CHOOSE(A20,'وزن مصالح'!E25,'وزن مصالح'!E26,'وزن مصالح'!E27,'وزن مصالح'!E28,'وزن مصالح'!E29,'وزن مصالح'!E30,'وزن مصالح'!E31,'وزن مصالح'!E32,'وزن مصالح'!E33,'وزن مصالح'!E34,'وزن مصالح'!E35,'وزن مصالح'!E36,'وزن مصالح'!E37,'وزن مصالح'!E38,'وزن مصالح'!E39,'وزن مصالح'!E40,'وزن مصالح'!E41,'وزن مصالح'!E42,'وزن مصالح'!E43,'وزن مصالح'!E44) -> كاشي سراميكي كفي | D20: =CHOOSE(A20,'وزن مصالح'!F25,'وزن مصالح'!F26,'وزن مصالح'!F27,'وزن مصالح'!F28,'وزن مصالح'!F29,'وزن مصالح'!F30,'وزن مصالح'!F31,'وزن مصالح'!F32,'وزن مصالح'!F33,'وزن مصالح'!F34,'وزن مصالح'!F35,'وزن مصالح'!F36,'وزن مصالح'!F37,'وزن مصالح'!F38,'وزن مصالح'!F39,'وزن مصالح'!F40,'وزن مصالح'!F41,'وزن مصالح'!F42,'وزن مصالح'!F43,'وزن مصالح'!F44) -> 2100 | E20: 0.01 | F20: 1 | G20: =D20*E20*F20 -> 21
A21: 3 | C21: =CHOOSE(A21,'وزن مصالح'!B14,'وزن مصالح'!B15,'وزن مصالح'!B16,'وزن مصالح'!B17,'وزن مصالح'!B18,'وزن مصالح'!B19,'وزن مصالح'!B20,'وزن مصالح'!B21) -> ملات ماسه سيمان | D21: =CHOOSE(A21,'وزن مصالح'!C14,'وزن مصالح'!C15,'وزن مصالح'!C16,'وزن مصالح'!C17,'وزن مصالح'!C18,'وزن مصالح'!C19,'وزن مصالح'!C20,'وزن مصالح'!C21) -> 2100 | E21: 0.03 | F21: 1 | G21: 63
A22: 5 | C22: =CHOOSE(A22,'وزن مصالح'!B24,'وزن مصالح'!B25,'وزن مصالح'!B26,'وزن مصالح'!B27,'وزن مصالح'!B28,'وزن مصالح'!B29) -> سقف كاذب با اندود گچي | D22: =CHOOSE(A22,'وزن مصالح'!C24,'وزن مصالح'!C25,'وزن مصالح'!C26,'وزن مصالح'!C27,'وزن مصالح'!C28,'وزن مصالح'!C29) -> 50 | E22: ----- | F22: ----- | G22: =D22 -> 50
A23: 13 | C23: =CHOOSE(A23,'وزن مصالح'!H4,'وزن مصالح'!H5,'وزن مصالح'!H6,'وزن مصالح'!H7,'وزن مصالح'!H8,'وزن مصالح'!H9,'وزن مصالح'!H10,'وزن مصالح'!H11,'وزن مصالح'!H12,'وزن مصالح'!H13,'وزن مصالح'!H14,'وزن مصالح'!H15,'وزن مصالح'!H16,'وزن مصالح'!H17,'وزن مصالح'!H18,'وزن مصالح'!H19,'وزن مصالح'!H20,'وزن مصالح'!H21,'وزن مصالح'!H22,'وزن مصالح'!H23,'وزن مصالح'!H24,'وزن مصالح'!H25,'وزن مصالح'!H26) -> پوكه معدني | D23: =CHOOSE(A23,'وزن مصالح'!I4,'وزن مصالح'!I5,'وزن مصالح'!I6,'وزن مصالح'!I7,'وزن مصالح'!I8,'وزن مصالح'!I9,'وزن مصالح'!I10,'وزن مصالح'!I11,'وزن مصالح'!I12,'وزن مصالح'!I13,'وزن مصالح'!I14,'وزن مصالح'!I15,'وزن مصالح'!I16,'وزن مصالح'!I17,'وزن مصالح'!I18,'وزن مصالح'!I19,'وزن مصالح'!I20,'وزن مصالح'!I21,'وزن مصالح'!I22,'وزن مصالح'!I23,'وزن مصالح'!I24,'وزن مصالح'!I25,'وزن مصالح'!I26) -> 600 | E23: 0.05 | F23: 1 | G23: =D23*E23*F23 -> 30
A24: 9 | C24: وزن واحد تير آهن فرضي | D24: 18.8 | E24: ----- | F24: 1 | G24: =D24*F24 -> 18.8
C25: حاصل جمع | E25: =SUM(G19:G24) -> 432.8
D30: TRUE | G30: TRUE
G33: TRUE
C34: وزن واحد سطح اجزا و مصالح در طبقات: | D34: =CEILING(IF(AND(G30=TRUE,D30=TRUE),E25+'ديوار تيفه'!F40-G19-G24,IF(AND(G30=TRUE,D30=FALSE),E25+'ديوار تيفه'!F40,IF(AND(G30=FALSE,D30=TRUE),E25-G19-G24,IF(AND(G30=FALSE,D30=FALSE),E25)))),5) -> 265 | G34: FALSE

Sheet كامپوزيت در بام
C17: وزن واحد سطح اجزا و مصالح در بام:
C18: مصالح مصرفي | D18: وزن مخصوص (kg/m3) | E18: ضخامت(m) | F18: تعداد | G18: شدت بار(kg/m2)
A19: 2 | C19: =CHOOSE(A19,'وزن مصالح'!E4,'وزن مصالح'!E5,'وزن مصالح'!E6,'وزن مصالح'!E7,'وزن مصالح'!E8,'وزن مصالح'!E9,'وزن مصالح'!E10,'وزن مصالح'!E11,'وزن مصالح'!E12) -> بتن آرمه | D19: =CHOOSE(A19,'وزن مصالح'!F4,'وزن مصالح'!F5,'وزن مصالح'!F6,'وزن مصالح'!F7,'وزن مصالح'!F8,'وزن مصالح'!F9,'وزن مصالح'!F10,'وزن مصالح'!F11,'وزن مصالح'!F12) -> 2500 | E19: 0.1 | F19: 1 | G19: =D19*E19*F19 -> 250
A20: 7 | C20: =CHOOSE(A20,'وزن مصالح'!E25,'وزن مصالح'!E26,'وزن مصالح'!E27,'وزن مصالح'!E28,'وزن مصالح'!E29,'وزن مصالح'!E30,'وزن مصالح'!E31,'وزن مصالح'!E32,'وزن مصالح'!E33,'وزن مصالح'!E34,'وزن مصالح'!E35,'وزن مصالح'!E36,'وزن مصالح'!E37,'وزن مصالح'!E38,'وزن مصالح'!E39,'وزن مصالح'!E40,'وزن مصالح'!E41,'وزن مصالح'!E42,'وزن مصالح'!E43,'وزن مصالح'!E44) -> سنگ موزاييك | D20: =CHOOSE(A20,'وزن مصالح'!F25,'وزن مصالح'!F26,'وزن مصالح'!F27,'وزن مصالح'!F28,'وزن مصالح'!F29,'وزن مصالح'!F30,'وزن مصالح'!F31,'وزن مصالح'!F32,'وزن مصالح'!F33,'وزن مصالح'!F34,'وزن مصالح'!F35,'وزن مصالح'!F36,'وزن مصالح'!F37,'وزن مصالح'!F38,'وزن مصالح'!F39,'وزن مصالح'!F40,'وزن مصالح'!F41,'وزن مصالح'!F42,'وزن مصالح'!F43,'وزن مصالح'!F44) -> 2400 | E20: 0.01 | F20: 1 | G20: =D20*E20*F20 -> 24
A21: 3 | C21: =CHOOSE(A21,'وزن مصالح'!B14,'وزن مصالح'!B15,'وزن مصالح'!B16,'وزن مصالح'!B17,'وزن مصالح'!B18,'وزن مصالح'!B19,'وزن مصالح'!B20,'وزن مصالح'!B21) -> ملات ماسه سيمان | D21: =CHOOSE(A21,'وزن مصالح'!C14,'وزن مصالح'!C15,'وزن مصالح'!C16,'وزن مصالح'!C17,'وزن مصالح'!C18,'وزن مصالح'!C19,'وزن مصالح'!C20,'وزن مصالح'!C21) -> 2100 | E21: 0.03 | F21: 1 | G21: 63
A22: 5 | C22: =CHOOSE(A22,'وزن مصالح'!B24,'وزن مصالح'!B25,'وزن مصالح'!B26,'وزن مصالح'!B27,'وزن مصالح'!B28,'وزن مصالح'!B29) -> سقف كاذب با اندود گچي | D22: =CHOOSE(A22,'وزن مصالح'!C24,'وزن مصالح'!C25,'وزن مصالح'!C26,'وزن مصالح'!C27,'وزن مصالح'!C28,'وزن مصالح'!C29) -> 50 | E22: ----- | F22: ----- | G22: =D22 -> 50
A23: 3 | C23: =CHOOSE(A23,'وزن مصالح'!B24,'وزن مصالح'!B25,'وزن مصالح'!B26,'وزن مصالح'!B27,'وزن مصالح'!B28,'وزن مصالح'!B29) -> گوني قيراندود دو لا | D23: =CHOOSE(A23,'وزن مصالح'!C24,'وزن مصالح'!C25,'وزن مصالح'!C26,'وزن مصالح'!C27,'وزن مصالح'!C28,'وزن مصالح'!C29) -> 15 | E23: ----- | F23: ----- | G23: =D23 -> 15
A24: 13 | C24: =CHOOSE(A24,'وزن مصالح'!H4,'وزن مصالح'!H5,'وزن مصالح'!H6,'وزن مصالح'!H7,'وزن مصالح'!H8,'وزن مصالح'!H9,'وزن مصالح'!H10,'وزن مصالح'!H11,'وزن مصالح'!H12,'وزن مصالح'!H13,'وزن مصالح'!H14,'وزن مصالح'!H15,'وزن مصالح'!H16,'وزن مصالح'!H17,'وزن مصالح'!H18,'وزن مصالح'!H19,'وزن مصالح'!H20,'وزن مصالح'!H21,'وزن مصالح'!H22,'وزن مصالح'!H23,'وزن مصالح'!H24,'وزن مصالح'!H25,'وزن مصالح'!H26) -> پوكه معدني | D24: =CHOOSE(A24,'وزن مصالح'!I4,'وزن مصالح'!I5,'وزن مصالح'!I6,'وزن مصالح'!I7,'وزن مصالح'!I8,'وزن مصالح'!I9,'وزن مصالح'!I10,'وزن مصالح'!I11,'وزن مصالح'!I12,'وزن مصالح'!I13,'وزن مصالح'!I14,'وزن مصالح'!I15,'وزن مصالح'!I16,'وزن مصالح'!I17,'وزن مصالح'!I18,'وزن مصالح'!I19,'وزن مصالح'!I20,'وزن مصالح'!I21,'وزن مصالح'!I22,'وزن مصالح'!I23,'وزن مصالح'!I24,'وزن مصالح'!I25,'وزن مصالح'!I26) -> 600 | E24: 0.1 | F24: 1 | G24: =D24*E24*F24 -> 60
A25: 9 | C25: وزن واحد تير آهن فرضي | D25: 18.8 | E25: ----- | F25: ----- | G25: =D25 -> 18.8
C26: حاصل جمع | E26: =SUM(G19:G25) -> 480.8
G33: TRUE
C34: وزن واحد سطح اجزا و مصالح دربام: | D34: =CEILING(IF(G33=TRUE,E26-G19-G25,E26),5) -> 215 | G34: TRUE
G35: FALSE

Sheet تيرچه بلوك در طبقات
C17: وزن واحد سطح اجزا و مصالح در طبقات:
A18: 841 | C18: مصالح مصرفي | D18: وزن مخصوص (kg/m3) | E18: ضخامت(m) | F18: تعداد | G18: شدت بار(kg/m2)
A19: 2 | C19: =CHOOSE(A19,'وزن مصالح'!E4,'وزن مصالح'!E5,'وزن مصالح'!E6,'وزن مصالح'!E7,'وزن مصالح'!E8,'وزن مصالح'!E9,'وزن مصالح'!E10,'وزن مصالح'!E11,'وزن مصالح'!E12) -> بتن آرمه | D19: =CHOOSE(A19,'وزن مصالح'!F4,'وزن مصالح'!F5,'وزن مصالح'!F6,'وزن مصالح'!F7,'وزن مصالح'!F8,'وزن مصالح'!F9,'وزن مصالح'!F10,'وزن مصالح'!F11,'وزن مصالح'!F12) -> 2500 | E19: 0.05 | F19: 1 | G19: =D19*E19*F19 -> 125
A20: 2 | C20: =CHOOSE(A20,'وزن مصالح'!E4,'وزن مصالح'!E5,'وزن مصالح'!E6,'وزن مصالح'!E7,'وزن مصالح'!E8,'وزن مصالح'!E9,'وزن مصالح'!E10,'وزن مصالح'!E11,'وزن مصالح'!E12) -> بتن آرمه | D20: =CHOOSE(A20,'وزن مصالح'!F4,'وزن مصالح'!F5,'وزن مصالح'!F6,'وزن مصالح'!F7,'وزن مصالح'!F8,'وزن مصالح'!F9,'وزن مصالح'!F10,'وزن مصالح'!F11,'وزن مصالح'!F12) -> 2500 | E20: 0.02 | F20: 2 | G20: =D20*E20*F20 -> 100
A21: 13 | C21: =CHOOSE(A21,'وزن مصالح'!H4,'وزن مصالح'!H5,'وزن مصالح'!H6,'وزن مصالح'!H7,'وزن مصالح'!H8,'وزن مصالح'!H9,'وزن مصالح'!H10,'وزن مصالح'!H11,'وزن مصالح'!H12,'وزن مصالح'!H13,'وزن مصالح'!H14,'وزن مصالح'!H15,'وزن مصالح'!H16,'وزن مصالح'!H17,'وزن مصالح'!H18,'وزن مصالح'!H19,'وزن مصالح'!H20,'وزن مصالح'!H21,'وزن مصالح'!H22,'وزن مصالح'!H23,'وزن مصالح'!H24,'وزن مصالح'!H25,'وزن مصالح'!H26) -> پوكه معدني | D21: =CHOOSE(A21,'وزن مصالح'!I4,'وزن مصالح'!I5,'وزن مصالح'!I6,'وزن مصالح'!I7,'وزن مصالح'!I8,'وزن مصالح'!I9,'وزن مصالح'!I10,'وزن مصالح'!I11,'وزن مصالح'!I12,'وزن مصالح'!I13,'وزن مصالح'!I14,'وزن مصالح'!I15,'وزن مصالح'!I16,'وزن مصالح'!I17,'وزن مصالح'!I18,'وزن مصالح'!I19,'وزن مصالح'!I20,'وزن مصالح'!I21,'وزن مصالح'!I22,'وزن مصالح'!I23,'وزن مصالح'!I24,'وزن مصالح'!I25,'وزن مصالح'!I26) -> 600 | E21: 0.05 | F21: 1 | G21: 30
A22: 3 | C22: =CHOOSE(A22,'وزن مصالح'!B14,'وزن مصالح'!B15,'وزن مصالح'!B16,'وزن مصالح'!B17,'وزن مصالح'!B18,'وزن مصالح'!B19,'وزن مصالح'!B20,'وزن مصالح'!B21) -> ملات ماسه سيمان | D22: =CHOOSE(A22,'وزن مصالح'!C14,'وزن مصالح'!C15,'وزن مصالح'!C16,'وزن مصالح'!C17,'وزن مصالح'!C18,'وزن مصالح'!C19,'وزن مصالح'!C20,'وزن مصالح'!C21) -> 2100 | E22: 0.03 | F22: 1 | G22: 63
A23: 20 | C23: =CHOOSE(A23,'وزن مصالح'!E25,'وزن مصالح'!E26,'وزن مصالح'!E27,'وزن مصالح'!E28,'وزن مصالح'!E29,'وزن مصالح'!E30,'وزن مصالح'!E31,'وزن مصالح'!E32,'وزن مصالح'!E33,'وزن مصالح'!E34,'وزن مصالح'!E35,'وزن مصالح'!E36,'وزن مصالح'!E37,'وزن مصالح'!E38,'وزن مصالح'!E39,'وزن مصالح'!E40,'وزن مصالح'!E41,'وزن مصالح'!E42,'وزن مصالح'!E43,'وزن مصالح'!E44) -> كاشي سراميكي كفي | D23: =CHOOSE(A23,'وزن مصالح'!F25,'وزن مصالح'!F26,'وزن مصالح'!F27,'وزن مصالح'!F28,'وزن مصالح'!F29,'وزن مصالح'!F30,'وزن مصالح'!F31,'وزن مصالح'!F32,'وزن مصالح'!F33,'وزن مصالح'!F34,'وزن مصالح'!F35,'وزن مصالح'!F36,'وزن مصالح'!F37,'وزن مصالح'!F38,'وزن مصالح'!F39,'وزن مصالح'!F40,'وزن مصالح'!F41,'وزن مصالح'!F42,'وزن مصالح'!F43,'وزن مصالح'!F44) -> 2100 | E23: 0.01 | F23: 1 | G23: 21
A24: 7 | C24: =CHOOSE(A24,'وزن مصالح'!B14,'وزن مصالح'!B15,'وزن مصالح'!B16,'وزن مصالح'!B17,'وزن مصالح'!B18,'وزن مصالح'!B19,'وزن مصالح'!B20,'وزن مصالح'!B21) -> ملات گچ و خاك | D24: =CHOOSE(A24,'وزن مصالح'!C14,'وزن مصالح'!C15,'وزن مصالح'!C16,'وزن مصالح'!C17,'وزن مصالح'!C18,'وزن مصالح'!C19,'وزن مصالح'!C20,'وزن مصالح'!C21) -> 1600 | E24: 0.02 | F24: 1 | G24: 32
A25: 4 | C25: =CHOOSE(A25,'وزن مصالح'!B14,'وزن مصالح'!B15,'وزن مصالح'!B16,'وزن مصالح'!B17,'وزن مصالح'!B18,'وزن مصالح'!B19,'وزن مصالح'!B20,'وزن مصالح'!B21) -> ملات گچ | D25: =CHOOSE(A25,'وزن مصالح'!C14,'وزن مصالح'!C15,'وزن مصالح'!C16,'وزن مصالح'!C17,'وزن مصالح'!C18,'وزن مصالح'!C19,'وزن مصالح'!C20,'وزن مصالح'!C21) -> 1300 | E25: 0.01 | F25: 1 | G25: 13
A26: 9 | C26: وزن بلوك | D26: 10 | E26: ----- | F26: 8 | G26: =D26*F26 -> 80
C27: حاصل جمع | E27: =G19+G20+G21+G22+G23+G24+G25+G26 -> 464
G33: TRUE
C34: وزن واحد سطح اجزا و مصالح در طبقات: | D34: =CEILING(IF(G33=TRUE,E27+'ديوار تيفه'!F40,E27),5) -> 565 | G34: TRUE
G35: FALSE

Sheet تيرچه بلوك در بام
C17: وزن واحد سطح اجزا و مصالح در بام:
C18: مصالح مصرفي | D18: وزن مخصوص (kg/m3) | E18: ضخامت(m) | F18: تعداد | G18: شدت بار(kg/m2)
A19: 2 | C19: =CHOOSE(A19,'وزن مصالح'!E4,'وزن مصالح'!E5,'وزن مصالح'!E6,'وزن مصالح'!E7,'وزن مصالح'!E8,'وزن مصالح'!E9,'وزن مصالح'!E10,'وزن مصالح'!E11,'وزن مصالح'!E12) -> بتن آرمه | D19: =CHOOSE(A19,'وزن مصالح'!F4,'وزن مصالح'!F5,'وزن مصالح'!F6,'وزن مصالح'!F7,'وزن مصالح'!F8,'وزن مصالح'!F9,'وزن مصالح'!F10,'وزن مصالح'!F11,'وزن مصالح'!F12) -> 2500 | E19: 0.05 | F19: 1 | G19: =D19*E19*F19 -> 125
A20: 2 | C20: =CHOOSE(A20,'وزن مصالح'!E4,'وزن مصالح'!E5,'وزن مصالح'!E6,'وزن مصالح'!E7,'وزن مصالح'!E8,'وزن مصالح'!E9,'وزن مصالح'!E10,'وزن مصالح'!E11,'وزن مصالح'!E12) -> بتن آرمه | D20: =CHOOSE(A20,'وزن مصالح'!F4,'وزن مصالح'!F5,'وزن مصالح'!F6,'وزن مصالح'!F7,'وزن مصالح'!F8,'وزن مصالح'!F9,'وزن مصالح'!F10,'وزن مصالح'!F11,'وزن مصالح'!F12) -> 2500 | E20: 0.02 | F20: 2 | G20: =D20*E20*F20 -> 100
A21: 13 | C21: =CHOOSE(A21,'وزن مصالح'!H4,'وزن مصالح'!H5,'وزن مصالح'!H6,'وزن مصالح'!H7,'وزن مصالح'!H8,'وزن مصالح'!H9,'وزن مصالح'!H10,'وزن مصالح'!H11,'وزن مصالح'!H12,'وزن مصالح'!H13,'وزن مصالح'!H14,'وزن مصالح'!H15,'وزن مصالح'!H16,'وزن مصالح'!H17,'وزن مصالح'!H18,'وزن مصالح'!H19,'وزن مصالح'!H20,'وزن مصالح'!H21,'وزن مصالح'!H22,'وزن مصالح'!H23,'وزن مصالح'!H24,'وزن مصالح'!H25,'وزن مصالح'!H26) -> پوكه معدني | D21: =CHOOSE(A21,'وزن مصالح'!I4,'وزن مصالح'!I5,'وزن مصالح'!I6,'وزن مصالح'!I7,'وزن مصالح'!I8,'وزن مصالح'!I9,'وزن مصالح'!I10,'وزن مصالح'!I11,'وزن مصالح'!I12,'وزن مصالح'!I13,'وزن مصالح'!I14,'وزن مصالح'!I15,'وزن مصالح'!I16,'وزن مصالح'!I17,'وزن مصالح'!I18,'وزن مصالح'!I19,'وزن مصالح'!I20,'وزن مصالح'!I21,'وزن مصالح'!I22,'وزن مصالح'!I23,'وزن مصالح'!I24,'وزن مصالح'!I25,'وزن مصالح'!I26) -> 600 | E21: 0.1 | F21: 1 | G21: 60
A22: 3 | C22: =CHOOSE(A22,'وزن مصالح'!B14,'وزن مصالح'!B15,'وزن مصالح'!B16,'وزن مصالح'!B17,'وزن مصالح'!B18,'وزن مصالح'!B19,'وزن مصالح'!B20,'وزن مصالح'!B21) -> ملات ماسه سيمان | D22: =CHOOSE(A22,'وزن مصالح'!C14,'وزن مصالح'!C15,'وزن مصالح'!C16,'وزن مصالح'!C17,'وزن مصالح'!C18,'وزن مصالح'!C19,'وزن مصالح'!C20,'وزن مصالح'!C21) -> 2100 | E22: 0.03 | F22: 1 | G22: 63
A23: 7 | C23: =CHOOSE(A23,'وزن مصالح'!E25,'وزن مصالح'!E26,'وزن مصالح'!E27,'وزن مصالح'!E28,'وزن مصالح'!E29,'وزن مصالح'!E30,'وزن مصالح'!E31,'وزن مصالح'!E32,'وزن مصالح'!E33,'وزن مصالح'!E34,'وزن مصالح'!E35,'وزن مصالح'!E36,'وزن مصالح'!E37,'وزن مصالح'!E38,'وزن مصالح'!E39,'وزن مصالح'!E40,'وزن مصالح'!E41,'وزن مصالح'!E42,'وزن مصالح'!E43,'وزن مصالح'!E44) -> سنگ موزاييك | D23: =CHOOSE(A23,'وزن مصالح'!F25,'وزن مصالح'!F26,'وزن مصالح'!F27,'وزن مصالح'!F28,'وزن مصالح'!F29,'وزن مصالح'!F30,'وزن مصالح'!F31,'وزن مصالح'!F32,'وزن مصالح'!F33,'وزن مصالح'!F34,'وزن مصالح'!F35,'وزن مصالح'!F36,'وزن مصالح'!F37,'وزن مصالح'!F38,'وزن مصالح'!F39,'وزن مصالح'!F40,'وزن مصالح'!F41,'وزن مصالح'!F42,'وزن مصالح'!F43,'وزن مصالح'!F44) -> 2400 | E23: 0.01 | F23: 1 | G23: 24
A24: 7 | C24: =CHOOSE(A24,'وزن مصالح'!B14,'وزن مصالح'!B15,'وزن مصالح'!B16,'وزن مصالح'!B17,'وزن مصالح'!B18,'وزن مصالح'!B19,'وزن مصالح'!B20,'وزن مصالح'!B21) -> ملات گچ و خاك | D24: =CHOOSE(A24,'وزن مصالح'!C14,'وزن مصالح'!C15,'وزن مصالح'!C16,'وزن مصالح'!C17,'وزن مصالح'!C18,'وزن مصالح'!C19,'وزن مصالح'!C20,'وزن مصالح'!C21) -> 1600 | E24: 0.02 | F24: 1 | G24: 32
A25: 4 | C25: =CHOOSE(A25,'وزن مصالح'!B14,'وزن مصالح'!B15,'وزن مصالح'!B16,'وزن مصالح'!B17,'وزن مصالح'!B18,'وزن مصالح'!B19,'وزن مصالح'!B20,'وزن مصالح'!B21) -> ملات گچ | D25: =CHOOSE(A25,'وزن مصالح'!C14,'وزن مصالح'!C15,'وزن مصالح'!C16,'وزن مصالح'!C17,'وزن مصالح'!C18,'وزن مصالح'!C19,'وزن مصالح'!C20,'وزن مصالح'!C21) -> 1300 | E25: 0.01 | F25: 1 | G25: 13
A26: 3 | C26: =CHOOSE(A26,'وزن مصالح'!B24,'وزن مصالح'!B25,'وزن مصالح'!B26,'وزن مصالح'!B27,'وزن مصالح'!B28,'وزن مصالح'!B29) -> گوني قيراندود دو لا | D26: =CHOOSE(A26,'وزن مصالح'!C24,'وزن مصالح'!C25,'وزن مصالح'!C26,'وزن مصالح'!C27,'وزن مصالح'!C28,'وزن مصالح'!C29) -> 15 | E26: ----- | F26: ----- | G26: =D26 -> 15
A27: 9 | C27: وزن بلوك | D27: 10 | E27: ----- | F27: 8 | G27: =D27*F27 -> 80
C28: حاصل جمع | E28: =SUM(G19:G27) -> 512
C34: وزن واحد سطح اجزا و مصالح در بام : | D34: =CEILING(E28,5) -> 515

Sheet کرمیت در طبقات
C17: وزن واحد سطح اجزا و مصالح در طبقات:
C18: مصالح مصرفي | D18: وزن مخصوص (kg/m3) | E18: ضخامت(m) | F18: تعداد | G18: شدت بار(kg/m2)
A19: 2 | C19: =CHOOSE(A19,'وزن مصالح'!E4,'وزن مصالح'!E5,'وزن مصالح'!E6,'وزن مصالح'!E7,'وزن مصالح'!E8,'وزن مصالح'!E9,'وزن مصالح'!E10,'وزن مصالح'!E11,'وزن مصالح'!E12) -> بتن آرمه | D19: =CHOOSE(A19,'وزن مصالح'!F4,'وزن مصالح'!F5,'وزن مصالح'!F6,'وزن مصالح'!F7,'وزن مصالح'!F8,'وزن مصالح'!F9,'وزن مصالح'!F10,'وزن مصالح'!F11,'وزن مصالح'!F12) -> 2500 | E19: 0.055 | F19: 1 | G19: =D19*E19*F19 -> 137.5
A20: 2 | C20: =CHOOSE(A20,'وزن مصالح'!E4,'وزن مصالح'!E5,'وزن مصالح'!E6,'وزن مصالح'!E7,'وزن مصالح'!E8,'وزن مصالح'!E9,'وزن مصالح'!E10,'وزن مصالح'!E11,'وزن مصالح'!E12) -> بتن آرمه | D20: =CHOOSE(A20,'وزن مصالح'!F4,'وزن مصالح'!F5,'وزن مصالح'!F6,'وزن مصالح'!F7,'وزن مصالح'!F8,'وزن مصالح'!F9,'وزن مصالح'!F10,'وزن مصالح'!F11,'وزن مصالح'!F12) -> 2500 | E20: 0.02 | F20: 2 | G20: =D20*E20*F20 -> 100
A21: 13 | C21: =CHOOSE(A21,'وزن مصالح'!H4,'وزن مصالح'!H5,'وزن مصالح'!H6,'وزن مصالح'!H7,'وزن مصالح'!H8,'وزن مصالح'!H9,'وزن مصالح'!H10,'وزن مصالح'!H11,'وزن مصالح'!H12,'وزن مصالح'!H13,'وزن مصالح'!H14,'وزن مصالح'!H15,'وزن مصالح'!H16,'وزن مصالح'!H17,'وزن مصالح'!H18,'وزن مصالح'!H19,'وزن مصالح'!H20,'وزن مصالح'!H21,'وزن مصالح'!H22,'وزن مصالح'!H23,'وزن مصالح'!H24,'وزن مصالح'!H25,'وزن مصالح'!H26) -> پوكه معدني | D21: =CHOOSE(A21,'وزن مصالح'!I4,'وزن مصالح'!I5,'وزن مصالح'!I6,'وزن مصالح'!I7,'وزن مصالح'!I8,'وزن مصالح'!I9,'وزن مصالح'!I10,'وزن مصالح'!I11,'وزن مصالح'!I12,'وزن مصالح'!I13,'وزن مصالح'!I14,'وزن مصالح'!I15,'وزن مصالح'!I16,'وزن مصالح'!I17,'وزن مصالح'!I18,'وزن مصالح'!I19,'وزن مصالح'!I20,'وزن مصالح'!I21,'وزن مصالح'!I22,'وزن مصالح'!I23,'وزن مصالح'!I24,'وزن مصالح'!I25,'وزن مصالح'!I26) -> 600 | E21: 0.075 | F21: 1 | G21: 45
A22: 3 | C22: =CHOOSE(A22,'وزن مصالح'!B14,'وزن مصالح'!B15,'وزن مصالح'!B16,'وزن مصالح'!B17,'وزن مصالح'!B18,'وزن مصالح'!B19,'وزن مصالح'!B20,'وزن مصالح'!B21) -> ملات ماسه سيمان | D22: =CHOOSE(A22,'وزن مصالح'!C14,'وزن مصالح'!C15,'وزن مصالح'!C16,'وزن مصالح'!C17,'وزن مصالح'!C18,'وزن مصالح'!C19,'وزن مصالح'!C20,'وزن مصالح'!C21) -> 2100 | E22: 0.025 | F22: 1 | G22: 52.5
A23: 13 | C23: =CHOOSE(A23,'وزن مصالح'!E25,'وزن مصالح'!E26,'وزن مصالح'!E27,'وزن مصالح'!E28,'وزن مصالح'!E29,'وزن مصالح'!E30,'وزن مصالح'!E31,'وزن مصالح'!E32,'وزن مصالح'!E33,'وزن مصالح'!E34,'وزن مصالح'!E35,'وزن مصالح'!E36,'وزن مصالح'!E37,'وزن مصالح'!E38,'وزن مصالح'!E39,'وزن مصالح'!E40,'وزن مصالح'!E41,'وزن مصالح'!E42,'وزن مصالح'!E43,'وزن مصالح'!E44) -> كف پوش لاستيكي | D23: =CHOOSE(A23,'وزن مصالح'!F25,'وزن مصالح'!F26,'وزن مصالح'!F27,'وزن مصالح'!F28,'وزن مصالح'!F29,'وزن مصالح'!F30,'وزن مصالح'!F31,'وزن مصالح'!F32,'وزن مصالح'!F33,'وزن مصالح'!F34,'وزن مصالح'!F35,'وزن مصالح'!F36,'وزن مصالح'!F37,'وزن مصالح'!F38,'وزن مصالح'!F39,'وزن مصالح'!F40,'وزن مصالح'!F41,'وزن مصالح'!F42,'وزن مصالح'!F43,'وزن مصالح'!F44) -> 1800 | E23: 0.005 | F23: 1 | G23: 9
A24: 7 | C24: =CHOOSE(A24,'وزن مصالح'!B14,'وزن مصالح'!B15,'وزن مصالح'!B16,'وزن مصالح'!B17,'وزن مصالح'!B18,'وزن مصالح'!B19,'وزن مصالح'!B20,'وزن مصالح'!B21) -> ملات گچ و خاك | D24: =CHOOSE(A24,'وزن مصالح'!C14,'وزن مصالح'!C15,'وزن مصالح'!C16,'وزن مصالح'!C17,'وزن مصالح'!C18,'وزن مصالح'!C19,'وزن مصالح'!C20,'وزن مصالح'!C21) -> 1600 | E24: 0.02 | F24: 1 | G24: 32
A25: 4 | C25: =CHOOSE(A25,'وزن مصالح'!B14,'وزن مصالح'!B15,'وزن مصالح'!B16,'وزن مصالح'!B17,'وزن مصالح'!B18,'وزن مصالح'!B19,'وزن مصالح'!B20,'وزن مصالح'!B21) -> ملات گچ | D25: =CHOOSE(A25,'وزن مصالح'!C14,'وزن مصالح'!C15,'وزن مصالح'!C16,'وزن مصالح'!C17,'وزن مصالح'!C18,'وزن مصالح'!C19,'وزن مصالح'!C20,'وزن مصالح'!C21) -> 1300 | E25: 0.01 | F25: 1 | G25: 13
A26: 9 | C26: وزن بلوك | D26: 5 | E26: ----- | F26: 1 | G26: =D26*F26 -> 5
C27: حاصل جمع | E27: =G19+G20+G21+G22+G23+G24+G25+G26 -> 394
G33: TRUE
C34: وزن واحد سطح اجزا و مصالح در طبقات: | D34: =CEILING(IF(G33=TRUE,E27+'ديوار تيفه'!F40,E27),5) -> 495 | G34: TRUE
G35: FALSE

Sheet کرمیت در بام
C17: وزن واحد سطح اجزا و مصالح در بام:
C18: مصالح مصرفي | D18: وزن مخصوص (kg/m3) | E18: ضخامت(m) | F18: تعداد | G18: شدت بار(kg/m2)
A19: 2 | C19: =CHOOSE(A19,'وزن مصالح'!E4,'وزن مصالح'!E5,'وزن مصالح'!E6,'وزن مصالح'!E7,'وزن مصالح'!E8,'وزن مصالح'!E9,'وزن مصالح'!E10,'وزن مصالح'!E11,'وزن مصالح'!E12) -> بتن آرمه | D19: =CHOOSE(A19,'وزن مصالح'!F4,'وزن مصالح'!F5,'وزن مصالح'!F6,'وزن مصالح'!F7,'وزن مصالح'!F8,'وزن مصالح'!F9,'وزن مصالح'!F10,'وزن مصالح'!F11,'وزن مصالح'!F12) -> 2500 | E19: 0.055 | F19: 1 | G19: =D19*E19*F19 -> 137.5
A20: 2 | C20: =CHOOSE(A20,'وزن مصالح'!E4,'وزن مصالح'!E5,'وزن مصالح'!E6,'وزن مصالح'!E7,'وزن مصالح'!E8,'وزن مصالح'!E9,'وزن مصالح'!E10,'وزن مصالح'!E11,'وزن مصالح'!E12) -> بتن آرمه | D20: =CHOOSE(A20,'وزن مصالح'!F4,'وزن مصالح'!F5,'وزن مصالح'!F6,'وزن مصالح'!F7,'وزن مصالح'!F8,'وزن مصالح'!F9,'وزن مصالح'!F10,'وزن مصالح'!F11,'وزن مصالح'!F12) -> 2500 | E20: 0.02 | F20: 2 | G20: =D20*E20*F20 -> 100
A21: 13 | C21: =CHOOSE(A21,'وزن مصالح'!H4,'وزن مصالح'!H5,'وزن مصالح'!H6,'وزن مصالح'!H7,'وزن مصالح'!H8,'وزن مصالح'!H9,'وزن مصالح'!H10,'وزن مصالح'!H11,'وزن مصالح'!H12,'وزن مصالح'!H13,'وزن مصالح'!H14,'وزن مصالح'!H15,'وزن مصالح'!H16,'وزن مصالح'!H17,'وزن مصالح'!H18,'وزن مصالح'!H19,'وزن مصالح'!H20,'وزن مصالح'!H21,'وزن مصالح'!H22,'وزن مصالح'!H23,'وزن مصالح'!H24,'وزن مصالح'!H25,'وزن مصالح'!H26) -> پوكه معدني | D21: =CHOOSE(A21,'وزن مصالح'!I4,'وزن مصالح'!I5,'وزن مصالح'!I6,'وزن مصالح'!I7,'وزن مصالح'!I8,'وزن مصالح'!I9,'وزن مصالح'!I10,'وزن مصالح'!I11,'وزن مصالح'!I12,'وزن مصالح'!I13,'وزن مصالح'!I14,'وزن مصالح'!I15,'وزن مصالح'!I16,'وزن مصالح'!I17,'وزن مصالح'!I18,'وزن مصالح'!I19,'وزن مصالح'!I20,'وزن مصالح'!I21,'وزن مصالح'!I22,'وزن مصالح'!I23,'وزن مصالح'!I24,'وزن مصالح'!I25,'وزن مصالح'!I26) -> 600 | E21: 0.1 | F21: 1 | G21: 60
A22: 3 | C22: =CHOOSE(A22,'وزن مصالح'!B14,'وزن مصالح'!B15,'وزن مصالح'!B16,'وزن مصالح'!B17,'وزن مصالح'!B18,'وزن مصالح'!B19,'وزن مصالح'!B20,'وزن مصالح'!B21) -> ملات ماسه سيمان | D22: =CHOOSE(A22,'وزن مصالح'!C14,'وزن مصالح'!C15,'وزن مصالح'!C16,'وزن مصالح'!C17,'وزن مصالح'!C18,'وزن مصالح'!C19,'وزن مصالح'!C20,'وزن مصالح'!C21) -> 2100 | E22: 0.03 | F22: 1 | G22: 63
A23: 6 | C23: =CHOOSE(A23,'وزن مصالح'!E25,'وزن مصالح'!E26,'وزن مصالح'!E27,'وزن مصالح'!E28,'وزن مصالح'!E29,'وزن مصالح'!E30,'وزن مصالح'!E31,'وزن مصالح'!E32,'وزن مصالح'!E33,'وزن مصالح'!E34,'وزن مصالح'!E35,'وزن مصالح'!E36,'وزن مصالح'!E37,'وزن مصالح'!E38,'وزن مصالح'!E39,'وزن مصالح'!E40,'وزن مصالح'!E41,'وزن مصالح'!E42,'وزن مصالح'!E43,'وزن مصالح'!E44) -> موزاييك سيماني | D23: =CHOOSE(A23,'وزن مصالح'!F25,'وزن مصالح'!F26,'وزن مصالح'!F27,'وزن مصالح'!F28,'وزن مصالح'!F29,'وزن مصالح'!F30,'وزن مصالح'!F31,'وزن مصالح'!F32,'وزن مصالح'!F33,'وزن مصالح'!F34,'وزن مصالح'!F35,'وزن مصالح'!F36,'وزن مصالح'!F37,'وزن مصالح'!F38,'وزن مصالح'!F39,'وزن مصالح'!F40,'وزن مصالح'!F41,'وزن مصالح'!F42,'وزن مصالح'!F43,'وزن مصالح'!F44) -> 2250 | E23: 0.01 | F23: 1 | G23: 22.5
A24: 7 | C24: =CHOOSE(A24,'وزن مصالح'!B14,'وزن مصالح'!B15,'وزن مصالح'!B16,'وزن مصالح'!B17,'وزن مصالح'!B18,'وزن مصالح'!B19,'وزن مصالح'!B20,'وزن مصالح'!B21) -> ملات گچ و خاك | D24: =CHOOSE(A24,'وزن مصالح'!C14,'وزن مصالح'!C15,'وزن مصالح'!C16,'وزن مصالح'!C17,'وزن مصالح'!C18,'وزن مصالح'!C19,'وزن مصالح'!C20,'وزن مصالح'!C21) -> 1600 | E24: 0.02 | F24: 1 | G24: 32
A25: 4 | C25: =CHOOSE(A25,'وزن مصالح'!B14,'وزن مصالح'!B15,'وزن مصالح'!B16,'وزن مصالح'!B17,'وزن مصالح'!B18,'وزن مصالح'!B19,'وزن مصالح'!B20,'وزن مصالح'!B21) -> ملات گچ | D25: =CHOOSE(A25,'وزن مصالح'!C14,'وزن مصالح'!C15,'وزن مصالح'!C16,'وزن مصالح'!C17,'وزن مصالح'!C18,'وزن مصالح'!C19,'وزن مصالح'!C20,'وزن مصالح'!C21) -> 1300 | E25: 0.01 | F25: 1 | G25: 13
A26: 3 | C26: =CHOOSE(A26,'وزن مصالح'!B24,'وزن مصالح'!B25,'وزن مصالح'!B26,'وزن مصالح'!B27,'وزن مصالح'!B28,'وزن مصالح'!B29) -> گوني قيراندود دو لا | D26: =CHOOSE(A26,'وزن مصالح'!C24,'وزن مصالح'!C25,'وزن مصالح'!C26,'وزن مصالح'!C27,'وزن مصالح'!C28,'وزن مصالح'!C29) -> 15 | E26: ----- | F26: ----- | G26: =D26 -> 15
A27: 9 | C27: وزن بلوك | D27: 5 | E27: ----- | F27: 1 | G27: =D27*F27 -> 5
C28: حاصل جمع | E28: =SUM(G19:G27) -> 448
C34: وزن واحد سطح اجزا و مصالح در بام : | D34: =CEILING(E28,5) -> 450

Sheet کرمیت کامپوزیت در طبقات
C17: وزن واحد سطح اجزا و مصالح در طبقات:
A18: 841 | C18: مصالح مصرفي | D18: وزن مخصوص (kg/m3) | E18: ضخامت(m) | F18: تعداد | G18: شدت بار(kg/m2)
A19: 2 | C19: =CHOOSE(A19,'وزن مصالح'!E4,'وزن مصالح'!E5,'وزن مصالح'!E6,'وزن مصالح'!E7,'وزن مصالح'!E8,'وزن مصالح'!E9,'وزن مصالح'!E10,'وزن مصالح'!E11,'وزن مصالح'!E12) -> بتن آرمه | D19: =CHOOSE(A19,'وزن مصالح'!F4,'وزن مصالح'!F5,'وزن مصالح'!F6,'وزن مصالح'!F7,'وزن مصالح'!F8,'وزن مصالح'!F9,'وزن مصالح'!F10,'وزن مصالح'!F11,'وزن مصالح'!F12) -> 2500 | E19: 0.05 | F19: 1 | G19: =D19*E19*F19 -> 125
A20: 2 | C20: =CHOOSE(A20,'وزن مصالح'!E4,'وزن مصالح'!E5,'وزن مصالح'!E6,'وزن مصالح'!E7,'وزن مصالح'!E8,'وزن مصالح'!E9,'وزن مصالح'!E10,'وزن مصالح'!E11,'وزن مصالح'!E12) -> بتن آرمه | D20: =CHOOSE(A20,'وزن مصالح'!F4,'وزن مصالح'!F5,'وزن مصالح'!F6,'وزن مصالح'!F7,'وزن مصالح'!F8,'وزن مصالح'!F9,'وزن مصالح'!F10,'وزن مصالح'!F11,'وزن مصالح'!F12) -> 2500 | E20: 0.02 | F20: 2 | G20: =D20*E20*F20 -> 100
A21: 13 | C21: =CHOOSE(A21,'وزن مصالح'!H4,'وزن مصالح'!H5,'وزن مصالح'!H6,'وزن مصالح'!H7,'وزن مصالح'!H8,'وزن مصالح'!H9,'وزن مصالح'!H10,'وزن مصالح'!H11,'وزن مصالح'!H12,'وزن مصالح'!H13,'وزن مصالح'!H14,'وزن مصالح'!H15,'وزن مصالح'!H16,'وزن مصالح'!H17,'وزن مصالح'!H18,'وزن مصالح'!H19,'وزن مصالح'!H20,'وزن مصالح'!H21,'وزن مصالح'!H22,'وزن مصالح'!H23,'وزن مصالح'!H24,'وزن مصالح'!H25,'وزن مصالح'!H26) -> پوكه معدني | D21: =CHOOSE(A21,'وزن مصالح'!I4,'وزن مصالح'!I5,'وزن مصالح'!I6,'وزن مصالح'!I7,'وزن مصالح'!I8,'وزن مصالح'!I9,'وزن مصالح'!I10,'وزن مصالح'!I11,'وزن مصالح'!I12,'وزن مصالح'!I13,'وزن مصالح'!I14,'وزن مصالح'!I15,'وزن مصالح'!I16,'وزن مصالح'!I17,'وزن مصالح'!I18,'وزن مصالح'!I19,'وزن مصالح'!I20,'وزن مصالح'!I21,'وزن مصالح'!I22,'وزن مصالح'!I23,'وزن مصالح'!I24,'وزن مصالح'!I25,'وزن مصالح'!I26) -> 600 | E21: 0.05 | F21: 1 | G21: 30
A22: 3 | C22: =CHOOSE(A22,'وزن مصالح'!B14,'وزن مصالح'!B15,'وزن مصالح'!B16,'وزن مصالح'!B17,'وزن مصالح'!B18,'وزن مصالح'!B19,'وزن مصالح'!B20,'وزن مصالح'!B21) -> ملات ماسه سيمان | D22: =CHOOSE(A22,'وزن مصالح'!C14,'وزن مصالح'!C15,'وزن مصالح'!C16,'وزن مصالح'!C17,'وزن مصالح'!C18,'وزن مصالح'!C19,'وزن مصالح'!C20,'وزن مصالح'!C21) -> 2100 | E22: 0.03 | F22: 1 | G22: 63
A23: 20 | C23: =CHOOSE(A23,'وزن مصالح'!E25,'وزن مصالح'!E26,'وزن مصالح'!E27,'وزن مصالح'!E28,'وزن مصالح'!E29,'وزن مصالح'!E30,'وزن مصالح'!E31,'وزن مصالح'!E32,'وزن مصالح'!E33,'وزن مصالح'!E34,'وزن مصالح'!E35,'وزن مصالح'!E36,'وزن مصالح'!E37,'وزن مصالح'!E38,'وزن مصالح'!E39,'وزن مصالح'!E40,'وزن مصالح'!E41,'وزن مصالح'!E42,'وزن مصالح'!E43,'وزن مصالح'!E44) -> كاشي سراميكي كفي | D23: =CHOOSE(A23,'وزن مصالح'!F25,'وزن مصالح'!F26,'وزن مصالح'!F27,'وزن مصالح'!F28,'وزن مصالح'!F29,'وزن مصالح'!F30,'وزن مصالح'!F31,'وزن مصالح'!F32,'وزن مصالح'!F33,'وزن مصالح'!F34,'وزن مصالح'!F35,'وزن مصالح'!F36,'وزن مصالح'!F37,'وزن مصالح'!F38,'وزن مصالح'!F39,'وزن مصالح'!F40,'وزن مصالح'!F41,'وزن مصالح'!F42,'وزن مصالح'!F43,'وزن مصالح'!F44) -> 2100 | E23: 0.01 | F23: 1 | G23: 21
A24: 5 | C24: =CHOOSE(A24,'وزن مصالح'!B24,'وزن مصالح'!B25,'وزن مصالح'!B26,'وزن مصالح'!B27,'وزن مصالح'!B28,'وزن مصالح'!B29) -> سقف كاذب با اندود گچي | D24: =CHOOSE(A24,'وزن مصالح'!C24,'وزن مصالح'!C25,'وزن مصالح'!C26,'وزن مصالح'!C27,'وزن مصالح'!C28,'وزن مصالح'!C29) -> 50 | E24: 0.02 | F24: 1 | G24: 1
C25: حاصل جمع | E25: =G19+G20+G21+G22+G23+G24 -> 340
G33: TRUE
C34: وزن واحد سطح اجزا و مصالح در طبقات: | D34: =CEILING(IF(G33=TRUE,E25+'ديوار تيفه'!F40,E25),5) -> 440 | G34: TRUE
G35: FALSE

Sheet کرمیت کامپوزیت در بام
C17: وزن واحد سطح اجزا و مصالح در بام:
C18: مصالح مصرفي | D18: وزن مخصوص (kg/m3) | E18: ضخامت(m) | F18: تعداد | G18: شدت بار(kg/m2)
A19: 2 | C19: =CHOOSE(A19,'وزن مصالح'!E4,'وزن مصالح'!E5,'وزن مصالح'!E6,'وزن مصالح'!E7,'وزن مصالح'!E8,'وزن مصالح'!E9,'وزن مصالح'!E10,'وزن مصالح'!E11,'وزن مصالح'!E12) -> بتن آرمه | D19: =CHOOSE(A19,'وزن مصالح'!F4,'وزن مصالح'!F5,'وزن مصالح'!F6,'وزن مصالح'!F7,'وزن مصالح'!F8,'وزن مصالح'!F9,'وزن مصالح'!F10,'وزن مصالح'!F11,'وزن مصالح'!F12) -> 2500 | E19: 0.055 | F19: 1 | G19: =D19*E19*F19 -> 137.5
A20: 2 | C20: =CHOOSE(A20,'وزن مصالح'!E4,'وزن مصالح'!E5,'وزن مصالح'!E6,'وزن مصالح'!E7,'وزن مصالح'!E8,'وزن مصالح'!E9,'وزن مصالح'!E10,'وزن مصالح'!E11,'وزن مصالح'!E12) -> بتن آرمه | D20: =CHOOSE(A20,'وزن مصالح'!F4,'وزن مصالح'!F5,'وزن مصالح'!F6,'وزن مصالح'!F7,'وزن مصالح'!F8,'وزن مصالح'!F9,'وزن مصالح'!F10,'وزن مصالح'!F11,'وزن مصالح'!F12) -> 2500 | E20: 0.02 | F20: 2 | G20: =D20*E20*F20 -> 100
A21: 13 | C21: =CHOOSE(A21,'وزن مصالح'!H4,'وزن مصالح'!H5,'وزن مصالح'!H6,'وزن مصالح'!H7,'وزن مصالح'!H8,'وزن مصالح'!H9,'وزن مصالح'!H10,'وزن مصالح'!H11,'وزن مصالح'!H12,'وزن مصالح'!H13,'وزن مصالح'!H14,'وزن مصالح'!H15,'وزن مصالح'!H16,'وزن مصالح'!H17,'وزن مصالح'!H18,'وزن مصالح'!H19,'وزن مصالح'!H20,'وزن مصالح'!H21,'وزن مصالح'!H22,'وزن مصالح'!H23,'وزن مصالح'!H24,'وزن مصالح'!H25,'وزن مصالح'!H26) -> پوكه معدني | D21: =CHOOSE(A21,'وزن مصالح'!I4,'وزن مصالح'!I5,'وزن مصالح'!I6,'وزن مصالح'!I7,'وزن مصالح'!I8,'وزن مصالح'!I9,'وزن مصالح'!I10,'وزن مصالح'!I11,'وزن مصالح'!I12,'وزن مصالح'!I13,'وزن مصالح'!I14,'وزن مصالح'!I15,'وزن مصالح'!I16,'وزن مصالح'!I17,'وزن مصالح'!I18,'وزن مصالح'!I19,'وزن مصالح'!I20,'وزن مصالح'!I21,'وزن مصالح'!I22,'وزن مصالح'!I23,'وزن مصالح'!I24,'وزن مصالح'!I25,'وزن مصالح'!I26) -> 600 | E21: 0.1 | F21: 1 | G21: 60
A22: 3 | C22: =CHOOSE(A22,'وزن مصالح'!B14,'وزن مصالح'!B15,'وزن مصالح'!B16,'وزن مصالح'!B17,'وزن مصالح'!B18,'وزن مصالح'!B19,'وزن مصالح'!B20,'وزن مصالح'!B21) -> ملات ماسه سيمان | D22: =CHOOSE(A22,'وزن مصالح'!C14,'وزن مصالح'!C15,'وزن مصالح'!C16,'وزن مصالح'!C17,'وزن مصالح'!C18,'وزن مصالح'!C19,'وزن مصالح'!C20,'وزن مصالح'!C21) -> 2100 | E22: 0.03 | F22: 1 | G22: 63
A23: 6 | C23: =CHOOSE(A23,'وزن مصالح'!E25,'وزن مصالح'!E26,'وزن مصالح'!E27,'وزن مصالح'!E28,'وزن مصالح'!E29,'وزن مصالح'!E30,'وزن مصالح'!E31,'وزن مصالح'!E32,'وزن مصالح'!E33,'وزن مصالح'!E34,'وزن مصالح'!E35,'وزن مصالح'!E36,'وزن مصالح'!E37,'وزن مصالح'!E38,'وزن مصالح'!E39,'وزن مصالح'!E40,'وزن مصالح'!E41,'وزن مصالح'!E42,'وزن مصالح'!E43,'وزن مصالح'!E44) -> موزاييك سيماني | D23: =CHOOSE(A23,'وزن مصالح'!F25,'وزن مصالح'!F26,'وزن مصالح'!F27,'وزن مصالح'!F28,'وزن مصالح'!F29,'وزن مصالح'!F30,'وزن مصالح'!F31,'وزن مصالح'!F32,'وزن مصالح'!F33,'وزن مصالح'!F34,'وزن مصالح'!F35,'وزن مصالح'!F36,'وزن مصالح'!F37,'وزن مصالح'!F38,'وزن مصالح'!F39,'وزن مصالح'!F40,'وزن مصالح'!F41,'وزن مصالح'!F42,'وزن مصالح'!F43,'وزن مصالح'!F44) -> 2250 | E23: 0.01 | F23: 1 | G23: 22.5
A24: 1 | C24: =CHOOSE(A24,'وزن مصالح'!B24,'وزن مصالح'!B25,'وزن مصالح'!B26,'وزن مصالح'!B27,'وزن مصالح'!B28,'وزن مصالح'!B29) -> پوشش شيرواني با سفال | D24: =CHOOSE(A24,'وزن مصالح'!C24,'وزن مصالح'!C25,'وزن مصالح'!C26,'وزن مصالح'!C27,'وزن مصالح'!C28,'وزن مصالح'!C29) -> 70 | E24: 0.02 | F24: 1 | G24: 1.4
A25: 1 | C25: =CHOOSE(A25,'وزن مصالح'!B24,'وزن مصالح'!B25,'وزن مصالح'!B26,'وزن مصالح'!B27,'وزن مصالح'!B28,'وزن مصالح'!B29) -> پوشش شيرواني با سفال | D25: =CHOOSE(A25,'وزن مصالح'!C24,'وزن مصالح'!C25,'وزن مصالح'!C26,'وزن مصالح'!C27,'وزن مصالح'!C28,'وزن مصالح'!C29) -> 70 | E25: 0.01 | F25: 1 | G25: 0.7
A26: 1 | C26: حاصل جمع | E26: =SUM(G19:G25) -> 385.1
C34: وزن واحد سطح اجزا و مصالح در بام : | D34: =CEILING(E26,5) -> 390

Sheet دال در طبقات
C17: وزن واحد سطح اجزا و مصالح در طبقات:
C18: مصالح مصرفي | D18: وزن مخصوص (kg/m3) | E18: ضخامت(m) | F18: تعداد | G18: شدت بار(kg/m2)
A19: 2 | C19: =CHOOSE(A19,'وزن مصالح'!E4,'وزن مصالح'!E5,'وزن مصالح'!E6,'وزن مصالح'!E7,'وزن مصالح'!E8,'وزن مصالح'!E9,'وزن مصالح'!E10,'وزن مصالح'!E11,'وزن مصالح'!E12) -> بتن آرمه | D19: =CHOOSE(A19,'وزن مصالح'!F4,'وزن مصالح'!F5,'وزن مصالح'!F6,'وزن مصالح'!F7,'وزن مصالح'!F8,'وزن مصالح'!F9,'وزن مصالح'!F10,'وزن مصالح'!F11,'وزن مصالح'!F12) -> 2500 | E19: 0.1 | F19: 1 | G19: =D19*E19*F19 -> 250
A20: 13 | C20: =CHOOSE(A20,'وزن مصالح'!H4,'وزن مصالح'!H5,'وزن مصالح'!H6,'وزن مصالح'!H7,'وزن مصالح'!H8,'وزن مصالح'!H9,'وزن مصالح'!H10,'وزن مصالح'!H11,'وزن مصالح'!H12,'وزن مصالح'!H13,'وزن مصالح'!H14,'وزن مصالح'!H15,'وزن مصالح'!H16,'وزن مصالح'!H17,'وزن مصالح'!H18,'وزن مصالح'!H19,'وزن مصالح'!H20,'وزن مصالح'!H21,'وزن مصالح'!H22,'وزن مصالح'!H23,'وزن مصالح'!H24,'وزن مصالح'!H25,'وزن مصالح'!H26) -> پوكه معدني | D20: =CHOOSE(A20,'وزن مصالح'!I4,'وزن مصالح'!I5,'وزن مصالح'!I6,'وزن مصالح'!I7,'وزن مصالح'!I8,'وزن مصالح'!I9,'وزن مصالح'!I10,'وزن مصالح'!I11,'وزن مصالح'!I12,'وزن مصالح'!I13,'وزن مصالح'!I14,'وزن مصالح'!I15,'وزن مصالح'!I16,'وزن مصالح'!I17,'وزن مصالح'!I18,'وزن مصالح'!I19,'وزن مصالح'!I20,'وزن مصالح'!I21,'وزن مصالح'!I22,'وزن مصالح'!I23,'وزن مصالح'!I24,'وزن مصالح'!I25,'وزن مصالح'!I26) -> 600 | E20: 0.05 | F20: 1 | G20: =D20*E20*F20 -> 30
A21: 3 | C21: =CHOOSE(A21,'وزن مصالح'!B14,'وزن مصالح'!B15,'وزن مصالح'!B16,'وزن مصالح'!B17,'وزن مصالح'!B18,'وزن مصالح'!B19,'وزن مصالح'!B20,'وزن مصالح'!B21) -> ملات ماسه سيمان | D21: =CHOOSE(A21,'وزن مصالح'!C14,'وزن مصالح'!C15,'وزن مصالح'!C16,'وزن مصالح'!C17,'وزن مصالح'!C18,'وزن مصالح'!C19,'وزن مصالح'!C20,'وزن مصالح'!C21) -> 2100 | E21: 0.03 | F21: 1 | G21: 63
A22: 20 | C22: =CHOOSE(A22,'وزن مصالح'!E25,'وزن مصالح'!E26,'وزن مصالح'!E27,'وزن مصالح'!E28,'وزن مصالح'!E29,'وزن مصالح'!E30,'وزن مصالح'!E31,'وزن مصالح'!E32,'وزن مصالح'!E33,'وزن مصالح'!E34,'وزن مصالح'!E35,'وزن مصالح'!E36,'وزن مصالح'!E37,'وزن مصالح'!E38,'وزن مصالح'!E39,'وزن مصالح'!E40,'وزن مصالح'!E41,'وزن مصالح'!E42,'وزن مصالح'!E43,'وزن مصالح'!E44) -> كاشي سراميكي كفي | D22: =CHOOSE(A22,'وزن مصالح'!F25,'وزن مصالح'!F26,'وزن مصالح'!F27,'وزن مصالح'!F28,'وزن مصالح'!F29,'وزن مصالح'!F30,'وزن مصالح'!F31,'وزن مصالح'!F32,'وزن مصالح'!F33,'وزن مصالح'!F34,'وزن مصالح'!F35,'وزن مصالح'!F36,'وزن مصالح'!F37,'وزن مصالح'!F38,'وزن مصالح'!F39,'وزن مصالح'!F40,'وزن مصالح'!F41,'وزن مصالح'!F42,'وزن مصالح'!F43,'وزن مصالح'!F44) -> 2100 | E22: 0.01 | F22: 1 | G22: 21
A23: 5 | C23: =CHOOSE(A23,'وزن مصالح'!B24,'وزن مصالح'!B25,'وزن مصالح'!B26,'وزن مصالح'!B27,'وزن مصالح'!B28,'وزن مصالح'!B29) -> سقف كاذب با اندود گچي | D23: =CHOOSE(A23,'وزن مصالح'!C24,'وزن مصالح'!C25,'وزن مصالح'!C26,'وزن مصالح'!C27,'وزن مصالح'!C28,'وزن مصالح'!C29) -> 50 | E23: ---- | F23: ---- | G23: =D23 -> 50
C24: حاصل جمع | E24: =SUM(G19:G23) -> 414
D30: TRUE | G30: TRUE
G32: TRUE
G33: FALSE
C34: وزن واحد سطح اجزا و مصالح در طبقات: | D34: =CEILING(IF(AND(G30=TRUE,D30=TRUE),E24+'ديوار تيفه'!F40-G19,IF(AND(G30=TRUE,D30=FALSE),E24+'ديوار تيفه'!F40,IF(AND(G30=FALSE,D30=TRUE),E24-G19,IF(AND(G30=FALSE,D30=FALSE),E24)))),5) -> 265

Sheet دال در بام
C17: وزن واحد سطح اجزا و مصالح در بام :
C18: مصالح مصرفي | D18: وزن مخصوص (kg/m3) | E18: ضخامت(m) | F18: تعداد | G18: شدت بار(kg/m2)
A19: 2 | C19: =CHOOSE(A19,'وزن مصالح'!E4,'وزن مصالح'!E5,'وزن مصالح'!E6,'وزن مصالح'!E7,'وزن مصالح'!E8,'وزن مصالح'!E9,'وزن مصالح'!E10,'وزن مصالح'!E11,'وزن مصالح'!E12) -> بتن آرمه | D19: =CHOOSE(A19,'وزن مصالح'!F4,'وزن مصالح'!F5,'وزن مصالح'!F6,'وزن مصالح'!F7,'وزن مصالح'!F8,'وزن مصالح'!F9,'وزن مصالح'!F10,'وزن مصالح'!F11,'وزن مصالح'!F12) -> 2500 | E19: 0.1 | F19: 1 | G19: =D19*E19*F19 -> 250
A20: 13 | C20: =CHOOSE(A20,'وزن مصالح'!H4,'وزن مصالح'!H5,'وزن مصالح'!H6,'وزن مصالح'!H7,'وزن مصالح'!H8,'وزن مصالح'!H9,'وزن مصالح'!H10,'وزن مصالح'!H11,'وزن مصالح'!H12,'وزن مصالح'!H13,'وزن مصالح'!H14,'وزن مصالح'!H15,'وزن مصالح'!H16,'وزن مصالح'!H17,'وزن مصالح'!H18,'وزن مصالح'!H19,'وزن مصالح'!H20,'وزن مصالح'!H21,'وزن مصالح'!H22,'وزن مصالح'!H23,'وزن مصالح'!H24,'وزن مصالح'!H25,'وزن مصالح'!H26) -> پوكه معدني | D20: =CHOOSE(A20,'وزن مصالح'!I4,'وزن مصالح'!I5,'وزن مصالح'!I6,'وزن مصالح'!I7,'وزن مصالح'!I8,'وزن مصالح'!I9,'وزن مصالح'!I10,'وزن مصالح'!I11,'وزن مصالح'!I12,'وزن مصالح'!I13,'وزن مصالح'!I14,'وزن مصالح'!I15,'وزن مصالح'!I16,'وزن مصالح'!I17,'وزن مصالح'!I18,'وزن مصالح'!I19,'وزن مصالح'!I20,'وزن مصالح'!I21,'وزن مصالح'!I22,'وزن مصالح'!I23,'وزن مصالح'!I24,'وزن مصالح'!I25,'وزن مصالح'!I26) -> 600 | E20: 0.1 | F20: 1 | G20: =D20*E20*F20 -> 60
A21: 3 | C21: =CHOOSE(A21,'وزن مصالح'!B14,'وزن مصالح'!B15,'وزن مصالح'!B16,'وزن مصالح'!B17,'وزن مصالح'!B18,'وزن مصالح'!B19,'وزن مصالح'!B20,'وزن مصالح'!B21) -> ملات ماسه سيمان | D21: =CHOOSE(A21,'وزن مصالح'!C14,'وزن مصالح'!C15,'وزن مصالح'!C16,'وزن مصالح'!C17,'وزن مصالح'!C18,'وزن مصالح'!C19,'وزن مصالح'!C20,'وزن مصالح'!C21) -> 2100 | E21: 0.03 | F21: 1 | G21: 63
A22: 7 | C22: =CHOOSE(A22,'وزن مصالح'!E25,'وزن مصالح'!E26,'وزن مصالح'!E27,'وزن مصالح'!E28,'وزن مصالح'!E29,'وزن مصالح'!E30,'وزن مصالح'!E31,'وزن مصالح'!E32,'وزن مصالح'!E33,'وزن مصالح'!E34,'وزن مصالح'!E35,'وزن مصالح'!E36,'وزن مصالح'!E37,'وزن مصالح'!E38,'وزن مصالح'!E39,'وزن مصالح'!E40,'وزن مصالح'!E41,'وزن مصالح'!E42,'وزن مصالح'!E43,'وزن مصالح'!E44) -> سنگ موزاييك | D22: =CHOOSE(A22,'وزن مصالح'!F25,'وزن مصالح'!F26,'وزن مصالح'!F27,'وزن مصالح'!F28,'وزن مصالح'!F29,'وزن مصالح'!F30,'وزن مصالح'!F31,'وزن مصالح'!F32,'وزن مصالح'!F33,'وزن مصالح'!F34,'وزن مصالح'!F35,'وزن مصالح'!F36,'وزن مصالح'!F37,'وزن مصالح'!F38,'وزن مصالح'!F39,'وزن مصالح'!F40,'وزن مصالح'!F41,'وزن مصالح'!F42,'وزن مصالح'!F43,'وزن مصالح'!F44) -> 2400 | E22: 0.01 | F22: 1 | G22: 24
A23: 5 | C23: =CHOOSE(A23,'وزن مصالح'!B24,'وزن مصالح'!B25,'وزن مصالح'!B26,'وزن مصالح'!B27,'وزن مصالح'!B28,'وزن مصالح'!B29) -> سقف كاذب با اندود گچي | D23: =CHOOSE(A23,'وزن مصالح'!C24,'وزن مصالح'!C25,'وزن مصالح'!C26,'وزن مصالح'!C27,'وزن مصالح'!C28,'وزن مصالح'!C29) -> 50 | E23: ----- | F23: ---- | G23: =D23 -> 50
A24: 3 | C24: =CHOOSE(A24,'وزن مصالح'!B24,'وزن مصالح'!B25,'وزن مصالح'!B26,'وزن مصالح'!B27,'وزن مصالح'!B28,'وزن مصالح'!B29) -> گوني قيراندود دو لا | D24: =CHOOSE(A24,'وزن مصالح'!C24,'وزن مصالح'!C25,'وزن مصالح'!C26,'وزن مصالح'!C27,'وزن مصالح'!C28,'وزن مصالح'!C29) -> 15 | E24: ----- | F24: ----- | G24: =D24 -> 15
C25: حاصل جمع | E25: =SUM(G19:G24) -> 462
G31: TRUE
G32: TRUE
G33: FALSE
C34: وزن واحد سطح اجزا و مصالح در بام : | D34: =CEILING(IF(G31=TRUE,E25-G19,E25),5) -> 215

Sheet بار برف
D3: محاسبه بار برف | R3: 1 | S3: آستارا | T3: =IF(V3=1,"منطقه 1",IF(V3=2,"منطقه 2",IF(V3=3,"منطقه 3",IF(V3=4,"منطقه 4",IF(V3=5,"منطقه 5",IF(V3=6,"منطقه 6")))))) -> منطقه 5 | U3: =IF(V3=1,25,IF(V3=2,50,IF(V3=3,100,IF(V3=4,150,IF(V3=5,200,IF(V3=6,300)))))) -> 200 | V3: 5 | W3: 1
R4: 2 | S4: اراك | T4: =IF(V4=1,"منطقه 1",IF(V4=2,"منطقه 2",IF(V4=3,"منطقه 3",IF(V4=4,"منطقه 4",IF(V4=5,"منطقه 5",IF(V4=6,"منطقه 6")))))) -> منطقه 4 | U4: =IF(V4=1,25,IF(V4=2,50,IF(V4=3,100,IF(V4=4,150,IF(V4=5,200,IF(V4=6,300)))))) -> 150 | V4: 4 | W4: 2
R5: 3 | S5: اردبيل | T5: =IF(V5=1,"منطقه 1",IF(V5=2,"منطقه 2",IF(V5=3,"منطقه 3",IF(V5=4,"منطقه 4",IF(V5=5,"منطقه 5",IF(V5=6,"منطقه 6")))))) -> منطقه 5 | U5: 200 | V5: 5 | W5: 3
D6: تقسيم بندي مناطق از نظر بار برف | R6: 4 | S6: اردستان | T6: منطقه 2 | U6: 50 | V6: 2 | W6: 4
R7: 5 | S7: اروميه | T7: منطقه 4 | U7: 150 | V7: 4 | W7: 5
F8: 25 دكا نيوتن بر متر مربع | H8: منطقه 1-مناطق با برف نادر | R8: 6 | S8: اسلام آباد غرب | T8: منطقه 4 | U8: 150 | V8: 4 | W8: 6
F9: 50 دكا نيوتن بر متر مربع | H9: منطقه2-مناطق با برف كم | R9: 7 | S9: اصفهان | T9: منطقه 3 | U9: 100 | V9: 3 | W9: 7
F10: 100 دكا نيوتن بر متر مربع | H10: منطقه 3-مناطق با برف متوسط | R10: 8 | S10: اليگودرز | T10: منطقه 5 | U10: 200 | V10: 5 | W10: 8
F11: 150 دكا نيوتن بر متر مربع | H11: منطقه 4-مناطق با برف زياد | R11: 9 | S11: اميديه | T11: منطقه 1 | U11: 25 | V11: 1 | W11: 9
F12: 200 دكا نيوتن بر متر مربع | H12: منطقه5-مناطق با برف سنگين | R12: 10 | S12: انار | T12: منطقه 2 | U12: 50 | V12: 2 | W12: 10
F13: 300 دكا نيوتن بر متر مربع | H13: منطقه 6-مناطق با برف فوق سنگين | R13: 11 | S13: اهر | T13: منطقه 4 | U13: 150 | V13: 4 | W13: 11
R14: 12 | S14: اهواز | T14: منطقه 2 | U14: 50 | V14: 2 | W14: 12
J15: بار برف بامها:بار برف بامها از رابطه روبرو تعيين ميشود: | R15: 13 | S15: ايرانشهر | T15: منطقه 1 | U15: 25 | V15: 1 | W15: 13
R16: 14 | S16: ايلام | T16: منطقه 4 | U16: 150 | V16: 4 | W16: 14
R17: 15 | S17: ايوان غرب | T17: منطقه 3 | U17: 100 | V17: 3 | W17: 15
F18: تعيين بار برف مبنا (Ps) | R18: 16 | S18: آبادان | T18: منطقه 2 | U18: 50 | V18: 2 | W18: 16
R19: 17 | S19: آباده | T19: منطقه 3 | U19: 100 | V19: 3 | W19: 17
D20: شهر مورد نظر | F20: نوع منطقه | I20: بار برف مبنا | R20: 18 | S20: آبعلي | T20: منطقه 5 | U20: 200 | V20: 5 | W20: 18
R21: 19 | S21: آستارا | T21: منطقه 5 | U21: 200 | V21: 5 | W21: 19
D22: =CHOOSE(I56,S3,S4,S5,S6,S7,S8,S9,S10,S11,S12,S13,S14,S15,S16,S17,S18,S19,S20,S21,S22,S23,S24,S25,S26,S27,S28,S29,S30,S31,S32,S33,S34,S35,S36,S37,S38,S39,S40,S41,S42,S43,S44,S45,S46,S47,S48,S49,S50,S51,S52,S53,S54,S55,S56,S57,S58,S59,S60,S61,S62,S63,S64,S65,S66,S67,S68,S69,S70,S71,S72,S73,S74,S75,S76,S77,S78,S79,S80,S81,S82,S83,S84,S85,S86,S87,S88,S89,S90,S91,S92,S93,S94,S95,S96,S97,S98,S99,S100,S101,S102,S103,S104,S105,S106,S107,S108,S109,S110,S111,S112,S113,S114,S115,S116,S117,S118,S119,S120,S121,S122) -> گناباد | F22: =CHOOSE(I56,T3,T4,T5,T6,T7,T8,T9,T10,T11,T12,T13,T14,T15,T16,T17,T18,T19,T20,T21,T22,T23,T24,T25,T26,T27,T28,T29,T30,T31,T32,T33,T34,T35,T36,T37,T38,T39,T40,T41,T42,T43,T44,T45,T46,T47,T48,T49,T50,T51,T52,T53,T54,T55,T56,T57,T58,T59,T60,T61,T62,T63,T64,T65,T66,T67,T68,T69,T70,T71,T72,T73,T74,T75,T76,T77,T78,T79,T80,T81,T82,T83,T84,T85,T86,T87,T88,T89,T90,T91,T92,T93,T94,T95,T96,T97,T98,T99,T100,T101,T102,T103,T104,T105,T106,T107,T108,T109,T110,T111,T112,T113,T114,T115,T116,T117,T118,T119,T120,T121,T122) -> منطقه 2 | I22: =CHOOSE(I56,U3,U4,U5,U6,U7,U8,U9,U10,U11,U12,U13,U14,U15,U16,U17,U18,U19,U20,U21,U22,U23,U24,U25,U26,U27,U28,U29,U30,U31,U32,U33,U34,U35,U36,U37,U38,U39,U40,U41,U42,U43,U44,U45,U46,U47,U48,U49,U50,U51,U52,U53,U54,U55,U56,U57,U58,U59,U60,U61,U62,U63,U64,U65,U66,U67,U68,U69,U70,U71,U72,U73,U74,U75,U76,U77,U78,U79,U80,U81,U82,U83,U84,U85,U86,U87,U88,U89,U90,U91,U92,U93,U94,U95,U96,U97,U98,U99,U100,U101,U102,U103,U104,U105,U106,U107,U108,U109,U110,U111,U112,U113,U114,U115,U116,U117,U118,U119,U120,U121,U122) -> 50 | R22: 20 | S22: انزلي | T22: منطقه 4 | U22: 150 | V22: 4 | W22: 20
R23: 21 | S23: بافت | T23: منطقه 3 | U23: 100 | V23: 3 | W23: 21
R24: 22 | S24: بافق | T24: منطقه 2 | U24: 50 | V24: 2 | W24: 22
F25: تعيين ضريب اثر شيب (Cs) | R25: 23 | S25: بانه | T25: منطقه 5 | U25: 200 | V25: 5 | W25: 23
R26: 24 | S26: بجنورد | T26: منطقه 4 | U26: 150 | V26: 4 | W26: 24
D27: Cs | J27: نوع بام | R27: 25 | S27: بروجرد | T27: منطقه 4 | U27: 150 | V27: 4 | W27: 25
A28: زاويه بام (در حالتي كه زاويه بين 15 و 60 درجه است) | D28: 3-شيبدار با شيب بيشتر از 60 درجه | F28: 2-شيبدار بازاويه بين 15 درجه و 60 درجه | H28: 1-مسطح و شيبدار با شيب كمتر از 15 درجه | J28: الف:بام مسطح و شيب دار | R28: 26 | S28: بستان | T28: منطقه 2 | U28: 50 | V28: 2 | W28: 26
R29: 27 | S29: بشرويه | T29: منطقه 2 | U29: 50 | V29: 2 | W29: 27
D30: Cs=.25 | H30: Cs=1 | R30: 28 | S30: بم | T30: منطقه 2 | U30: 50 | V30: 2 | W30: 28
A31: 45 | R31: 29 | S31: بندرعباس | T31: منطقه 1 | U31: 25 | V31: 1 | W31: 29
D32: در بامهاي شيبدار دندانه اي ضريب اثر شيب براي كليه سطوح Cs=1 است. | J32: ب-بام شيبدار دندانه اي | R32: 30 | S32: بندر لنگه | T32: منطقه 1 | U32: 25 | V32: 1 | W32: 30
R33: 31 | S33: بوشهر | T33: منطقه 1 | U33: 25 | V33: 1 | W33: 31
R34: 32 | S34: بيجار | T34: منطقه 4 | U34: 150 | V34: 4 | W34: 32
D35: دربامهاي قوسي ضريب اثر شيب بايد با توجه به شيب قوس در طول آن تعيين گردد. | J35: ج-بام قوسي | R35: 33 | S35: بيرجند | T35: منطقه 2 | U35: 50 | V35: 2 | W35: 33
R36: 34 | S36: پيرانشهر | T36: منطقه 5 | U36: 200 | V36: 5 | W36: 34
R37: 35 | S37: تبريز | T37: منطقه 4 | U37: 150 | V37: 4 | W37: 35
R38: 36 | S38: تربت جام | T38: منطقه 4 | U38: 150 | V38: 4 | W38: 36
D39: نوع بام | H39: Cs | R39: 37 | S39: تربت حيدريه | T39: منطقه 3 | U39: 100 | V39: 3 | W39: 37
R40: 38 | S40: تكاب | T40: منطقه 4 | U40: 150 | V40: 4 | W40: 38
D41: =IF(F60=1,F61,IF(F60=2,F62,IF(F60=3,F63,IF(F60=4,F64,IF(F60=5,F65))))) -> مسطح و شيبدار با شيب كمتر از 15 درجه | H41: =IF(F60=1,1,IF(F60=2,F66,IF(F60=3,0.25,IF(F60=4,1,IF(F60=5,"با توجه به شيب قوس تعيين شود."))))) -> 1 | R41: 39 | S41: تهران مهرآباد | T41: منطقه 4 | U41: 150 | V41: 4 | W41: 39
R42: 40 | S42: تهران شمال | T42: منطقه 4 | U42: 150 | V42: 4 | W42: 40
R43: 41 | S43: جاسك | T43: منطقه 1 | U43: 25 | V43: 1 | W43: 41
R44: 42 | S44: جلفا | T44: منطقه 4 | U44: 150 | V44: 4 | W44: 42
G45: =ROUND(H41*I22,3) -> 50 | R45: 43 | S45: جيرفت | T45: منطقه 2 | U45: 50 | V45: 2 | W45: 43
R46: 44 | S46: چابهار | T46: منطقه 1 | U46: 25 | V46: 1 | W46: 44
R47: 45 | S47: خاش | T47: منطقه 1 | U47: 25 | V47: 1 | W47: 45
R48: 46 | S48: خدابنده | T48: منطقه 4 | U48: 150 | V48: 4 | W48: 46
R49: 47 | S49: خرم آباد | T49: منطقه 4 | U49: 150 | V49: 4 | W49: 47
R50: 48 | S50: خرم دره | T50: منطقه 4 | U50: 150 | V50: 4 | W50: 48
R51: 49 | S51: خلخال | T51: منطقه 5 | U51: 200 | V51: 5 | W51: 49
R52: 50 | S52: خور بيابانك | T52: منطقه 1 | U52: 25 | V52: 1 | W52: 50
R53: 51 | S53: خور بيرجند | T53: منطقه 2 | U53: 50 | V53: 2 | W53: 51
R54: 52 | S54: خوي | T54: منطقه 4 | U54: 150 | V54: 4 | W54: 52
R55: 53 | S55: داران | T55: منطقه 5 | U55: 200 | V55: 5 | W55: 53
I56: 103 | R56: 54 | S56: درود | T56: منطقه 5 | U56: 200 | V56: 5 | W56: 54
R57: 55 | S57: دزفول | T57: منطقه 3 | U57: 100 | V57: 3 | W57: 55
R58: 56 | S58: دهلران | T58: منطقه 3 | U58: 100 | V58: 3 | W58: 56
R59: 57 | S59: دوگنبدان | T59: منطقه 2 | U59: 50 | V59: 2 | W59: 57
F60: 1 | R60: 58 | S60: رامسر | T60: منطقه 4 | U60: 150 | V60: 4 | W60: 58
F61: مسطح و شيبدار با شيب كمتر از 15 درجه | R61: 59 | S61: رامهرمز | T61: منطقه 2 | U61: 50 | V61: 2 | W61: 59
F62: شيبدار بازاويه بين 15 درجه و 60 درجه | R62: 60 | S62: رباط پشت بام | T62: منطقه 2 | U62: 50 | V62: 2 | W62: 60
F63: شيبدار با شيب بيشتر از 60 درجه | R63: 61 | S63: رشت | T63: منطقه 5 | U63: 200 | V63: 5 | W63: 61
F64: بام شيبدار دندانه اي | R64: 62 | S64: رفسنجان | T64: منطقه 3 | U64: 100 | V64: 3 | W64: 62
F65: بام قوسي | R65: 63 | S65: روانسر | T65: منطقه 4 | U65: 150 | V65: 4 | W65: 63
F66: =1-((A31-15)/60) -> 0.5 | R66: 64 | S66: زابل | T66: منطقه 2 | U66: 50 | V66: 2 | W66: 64
R67: 65 | S67: زرينه اوباتو | T67: منطقه 5 | U67: 200 | V67: 5 | W67: 65
R68: 66 | S68: زنجان | T68: منطقه 4 | U68: =IF(V68=1,25,IF(V68=2,50,IF(V68=3,100,IF(V68=4,150,IF(V68=5,200,IF(V68=6,300)))))) -> 150 | V68: 4 | W68: 66
R69: 67 | S69: سبزوار | T69: =IF(V69=1,"منطقه 1",IF(V69=2,"منطقه 2",IF(V69=3,"منطقه 3",IF(V69=4,"منطقه 4",IF(V69=5,"منطقه 5",IF(V69=6,"منطقه 6")))))) -> منطقه 3 | U69: 100 | V69: 3 | W69: 67
R70: 68 | S70: سراب | T70: منطقه 4 | U70: 150 | V70: 4 | W70: 68
R71: 69 | S71: سراوان | T71: منطقه 1 | U71: 25 | V71: 1 | W71: 69
R72: 70 | S72: سرپل ذهاب | T72: منطقه 3 | U72: 100 | V72: 3 | W72: 70
R73: 71 | S73: سرخس | T73: منطقه 3 | U73: 100 | V73: 3 | W73: 71
R74: 72 | S74: سردشت | T74: منطقه 6 | U74: 300 | V74: 6 | W74: 72
R75: 73 | S75: سقز | T75: منطقه 5 | U75: 200 | V75: 5 | W75: 73
R76: 74 | S76: سمنان | T76: منطقه 3 | U76: 100 | V76: 3 | W76: 74
R77: 75 | S77: سنندج | T77: منطقه 4 | U77: 150 | V77: 4 | W77: 75
R78: 76 | S78: سيرجان | T78: منطقه 4 | U78: 150 | V78: 4 | W78: 76
R79: 77 | S79: شاهرود | T79: منطقه 3 | U79: 100 | V79: 3 | W79: 77
R80: 78 | S80: شهر بابك | T80: منطقه 3 | U80: 100 | V80: 3 | W80: 78
R81: 79 | S81: شهر كرد | T81: منطقه 4 | U81: 150 | V81: 4 | W81: 79
R82: 80 | S82: شيراز | T82: منطقه 3 | U82: 100 | V82: 3 | W82: 80
R83: 81 | S83: طبس | T83: منطقه 2 | U83: 50 | V83: 2 | W83: 81
R84: 82 | S84: فردوس | T84: منطقه 2 | U84: 50 | V84: 2 | W84: 82
R85: 83 | S85: فسا | T85: منطقه 3 | U85: 100 | V85: 3 | W85: 83
R86: 84 | S86: فيروزكوه | T86: منطقه 4 | U86: 150 | V86: 4 | W86: 84
R87: 85 | S87: قائن | T87: منطقه 2 | U87: 50 | V87: 2 | W87: 85
R88: 86 | S88: قراخيل | T88: منطقه 4 | U88: 150 | V88: 4 | W88: 86
R89: 87 | S89: قروه | T89: منطقه 4 | U89: 150 | V89: 4 | W89: 87
R90: 88 | S90: قزوين | T90: منطقه 4 | U90: 150 | V90: 4 | W90: 88
R91: 89 | S91: قم | T91: منطقه 3 | U91: 100 | V91: 3 | W91: 89
R92: 90 | S92: قوچان | T92: منطقه 4 | U92: 150 | V92: 4 | W92: 90
R93: 91 | S93: كاشان | T93: منطقه 3 | U93: 100 | V93: 3 | W93: 91
R94: 92 | S94: كاشمر | T94: منطقه 2 | U94: 50 | V94: 2 | W94: 92
R95: 93 | S95: كرج | T95: منطقه 4 | U95: 150 | V95: 4 | W95: 93
R96: 94 | S96: كرمان | T96: منطقه 3 | U96: 100 | V96: 3 | W96: 94
R97: 95 | S97: كرمانشاه | T97: منطقه 4 | U97: 150 | V97: 4 | W97: 95
R98: 96 | S98: كنگاور | T98: منطقه 4 | U98: 150 | V98: 4 | W98: 96
R99: 97 | S99: كهنوج | T99: منطقه 1 | U99: 25 | V99: 1 | W99: 97
R100: 98 | S100: كوهرنگ | T100: منطقه 6 | U100: 300 | V100: 6 | W100: 98
R101: 99 | S101: گرگان | T101: منطقه 3 | U101: 100 | V101: 3 | W101: 99
R102: 100 | S102: گرمسار | T102: منطقه 3 | U102: 100 | V102: 3 | W102: 100
R103: 101 | S103: گلپايگان | T103: منطقه 5 | U103: 200 | V103: 5 | W103: 101
R104: 102 | S104: گلمكان | T104: منطقه 4 | U104: 150 | V104: 4 | W104: 102
R105: 103 | S105: گناباد | T105: منطقه 2 | U105: 50 | V105: 2 | W105: 103
R106: 104 | S106: لار | T106: منطقه 1 | U106: 25 | V106: 1 | W106: 104
R107: 105 | S107: ماكو | T107: منطقه 4 | U107: 150 | V107: 4 | W107: 105
R108: 106 | S108: مراغه | T108: منطقه 4 | U108: 150 | V108: 4 | W108: 106
R109: 107 | S109: مريوان | T109: منطقه 5 | U109: 200 | V109: 5 | W109: 107
R110: 108 | S110: مسجد سليمان | T110: منطقه 3 | U110: 100 | V110: 3 | W110: 108
R111: 109 | S111: مشهد | T111: منطقه 4 | U111: 150 | V111: 4 | W111: 109
R112: 110 | S112: ملاير | T112: منطقه 4 | U112: 150 | V112: 4 | W112: 110
R113: 111 | S113: مهاباد | T113: منطقه 4 | U113: 150 | V113: 4 | W113: 111
R114: 112 | S114: ميانه | T114: منطقه 4 | U114: 150 | V114: 4 | W114: 112
R115: 113 | S115: نائيين | T115: منطقه 2 | U115: 50 | V115: 2 | W115: 113
R116: 114 | S116: نهاوند | T116: منطقه 4 | U116: 150 | V116: 4 | W116: 114
R117: 115 | S117: نهبندان | T117: منطقه 2 | U117: 50 | V117: 2 | W117: 115
R118: 116 | S118: نيشابور | T118: منطقه 4 | U118: 150 | V118: 4 | W118: 116
R119: 117 | S119: همدان فرودگاه | T119: منطقه 4 | U119: 150 | V119: 4 | W119: 117
R120: 118 | S120: همدان نوژه | T120: منطقه 4 | U120: 150 | V120: 4 | W120: 118
R121: 119 | S121: ياسوج | T121: منطقه 4 | U121: 150 | V121: 4 | W121: 119
R122: 120 | S122: يزد | T122: منطقه 2 | U122: 50 | V122: 2 | W122: 120

Sheet بار زنده
D3: حداقل بارهاي زنده گسترده يكنواخت
D5: نوع كاربري كف | J5: بار گسترده
A7: 3 | D7: 1-كاربري هاي مشترك | F7: =CHOOSE(A7,C55,C56,C57,C58,C59,C60,C61,C62,C63,C64,C65,C66,C67,C68,C69,C70) -> بامهاي تخت و يا با شيب كم كه به عنوان محل تجمع مورد استفاده قرار نميگيرد | J7: =CHOOSE(A7,J55,J56,J57,J58,J59,J60,J61,J62,J63,J64,J65,J66,J67,J68,J69,J70) -> 150
A9: 1 | D9: 2-ساختمانهاي مسكوني | F9: =CHOOSE(A9,C75,C76) -> اتاقها و راهروهاي خصوصي و سرويس ها | J9: =CHOOSE(A9,J75,J76) -> 200
A11: 4 | D11: 3-اماكن عمومي | F11: =CHOOSE(A11,C79,C80,C81,C82,C83,C84,C85) -> سينماها و تئاترها | J11: =CHOOSE(A11,J79,J80,J81,J82,J83,J84,J85) -> 500
A13: 1 | D13: 4-ساختمانهاي اداري | F13: =CHOOSE(A13,C88,C89,C90) -> دفاتر كار معمولي | J13: =CHOOSE(A13,J88,J89,J90) -> 250
A15: 1 | D15: 5-ساختمانهاي آموزشي | F15: =CHOOSE(A15,C93,C94,C95) -> كلاس هاي درس و آزمايشگاههاي سبك و قرائت خانه ها | J15: =CHOOSE(A15,J93,J94,J95) -> 350
A17: 1 | D17: 6-ساختمانهاي صنعتي | F17: =CHOOSE(A17,C98,C99,C100) -> كارگاههاي سبك صنعتي | J17: =CHOOSE(A17,J98,J99,J100) -> 600
A19: 1 | D19: 7-فروشگاهها | F19: =CHOOSE(A19,C103,C104) -> كف تمام طبقات غير از انبارها | J19: =CHOOSE(A19,J103,J104) -> 500
A21: 1 | D21: 8-ورزشگاهها | F21: =CHOOSE(A21,C107,C108,C109) -> سالنهاي تمرينات بدني و ورزشي | J21: =CHOOSE(A21,J107,J108,J109) -> 500
A23: 1 | D23: 9-مراكز درماني | F23: =CHOOSE(A23,C112,C113) -> اتاقهاي بيمار | J23: =CHOOSE(A23,J112,J113) -> 200
D27: حداقل بارهاي زنده متمركز
D29: نوع كاربري كف | J29: بار گسترده
A31: 7 | D31: =CHOOSE(A31,C117,C118,C119,C120,C121,C122,C123,C124,C125,C126) -> محل عبور يا پارك خودروهاي سواري با وزن حداكثر 2500 دكا نيوتن | J31: =CHOOSE(A31,J117,J118,J119,J120,J121,J122,J123,J124,J125,J126) -> 1000
C53: مشترك | J53: بار گسترده
C55: بامهاي شيبدار با پوشش سبك با شيب بيشتر از 10 درجه | J55: -
C56: بامهاي شيبدار با پوشش سبك با شيب كمتر از 10 درجه | J56: 50
C57: بامهاي تخت و يا با شيب كم كه به عنوان محل تجمع مورد استفاده قرار نميگيرد | J57: 150
C58: سالنهاي عمومي و محلهاي تجمع داراي صندلي ثابت | J58: 400
C59: سالنهاي عمومي و محلهاي تجمع بدون صندلي ثابت | J59: 500
C60: راهروهاي فرعي بين اتاقها كه امكان تجمع در آنها كم باشد | J60: مطابق بار زنده اتاق مجاور
C61: راهروهاي اصلي و پلكان ها كه در معرض رفت و آمد و تجمع كم باشد نظير ساختمانهاي مسكوني و اداري | J61: 350
C62: راهروهاي اصلي و پلكان ها كه در معرض رفت و آمد و تجمع زياد باشد نظير مدارس و مركز تجمع | J62: 500
C63: بالكنها | J63: حداقل 300 و در صورت تجمع 500
C64: موتورخانه ها | J64: 750
C65: اتاقهاي هواسازو پمپ و نظاير آن | J65: 500
C66: محل عبور و پارك خودروهاي سواري با وزن حداكثر 1500 دكا نيوتن | J66: 350
C67: محل عبور و پارك خودروهاي سواري با وزن حداكثر 2500 دكا نيوتن | J67: 500
C68: محل عبور و پارك خودروهاي سواري و كاميونت هاي با وزن حداكثر 4000 دكا نيوتن | J68: 600
C69: محل عبور و پارك خودروها با وزن حداكثر 600 دكا نيوتن | J69: 700
C70: محل عبور و پارك خودروها با وزن حداكثر 9000 دكا نيوتن | J70: 800
C73: مسكوني | J73: بار گسترده
C75: اتاقها و راهروهاي خصوصي و سرويس ها | J75: 200
C76: انبارها | J76: 500
C77: اماكن عمومي | J77: بار گسترده
C79: اتاقهاي خواب و اقامت در هتل ها | J79: 200
C80: سالنهاي غذاخوري و رستورانها | J80: 500
C81: شبستان مساجد و تكايا | J81: 600
C82: سينماها و تئاترها | J82: 500
C83: صحنه هاي سينما و تئاترها | J83: 750
C84: پايانه ها | J84: 600
C85: آشپزخانه و رخت شويخانه ها | J85: 500
C86: اداري | J86: بار گسترده
C88: دفاتر كار معمولي | J88: 250
C89: اتاقهاي بايگاني با قفسه ثابت | J89: 500
C90: اتاقهاي بايگاني با قفسه متحرك | J90: 1000
C91: آموزشي | J91: بار گسترده
C93: كلاس هاي درس و آزمايشگاههاي سبك و قرائت خانه ها | J93: 350
C94: مخازن كتاب با قفسه ثابت | J94: 250 به ازاي هر متر ارتفاع مفيد حداقل 750
C95: مخازن كتاب با قفسه متحرك | J95: 450 به ازاي هر متر ارتفاع مفيد حداقل 1000
C96: صنعتي | J96: بار گسترده
C98: كارگاههاي سبك صنعتي | J98: 600
C99: كارگاههاي متوسط صنعتي | J99: 1000
C100: سردخانه ها | J100: 500 به ازاي هر متر ارتفاع مفيد حداقل 1500
C101: فروشگاهها | J101: بار گسترده
C103: كف تمام طبقات غير از انبارها | J103: 500
C104: انبارها | J104: با توجه به مواد انبار شده حداقل 750
C105: ورزشگاها | J105: بار گسترده
C107: سالنهاي تمرينات بدني و ورزشي | J107: 500
C108: سكوهاي تماشاچيان با صندلي ثابت | J108: 500
C109: سكوهاي تماشاچيان بدون صندلي ثابت | J109: 600
C110: مراكز درماني | J110: بار گسترده
C112: اتاقهاي بيمار | J112: 200
C113: اتاقهاي عمل | J113: 300
C115: بار متمركز | J115: بار گسترده
C117: بامها | J117: 100
C118: كلاسها | J118: 450
C119: دفاتر كار اتاقهاي عمل و صحنه ها | J119: 900
C120: انبارها | J120: 900
C121: مخازن كتاب | J121: 700
C122: محل عبور يا پارك خودروهاي سواري با وزن حداكثر 1500 دكا نيوتن | J122: 750
C123: محل عبور يا پارك خودروهاي سواري با وزن حداكثر 2500 دكا نيوتن | J123: 1000
C124: محل عبور يا پارك خودروهاي سواري با وزن حداكثر 4000 دكا نيوتن | J124: 2000
C125: محل عبور يا پارك خودروهاي سواري با وزن حداكثر 6000 دكا نيوتن | J125: 3000
C126: محل عبور يا پارك خودروهاي سواري با وزن حداكثر 9000 دكا نيوتن | J126: 4000

Sheet ضريب زلزله X
E3: محاسبه ضريب زلزله در جهت X
B6: 1 | E6: شتاب مبنا | G6: =CHOOSE(B6,I59,I60,I61,I62) -> پهنه با خطر نسبي خيلي زياد | L6: =CHOOSE(B6,H59,H60,H61,H62) -> 0.35
B7: 3 | E7: ضريب اهميت ساختمان | G7: =CHOOSE(B7,E59,E60,E61,E62) -> ساختمان با اهميت متوسط | L7: =CHOOSE(B7,D59,D60,D61,D62) -> 1
E9: ضريب رفتار سازه
E10: سيستم سازه | G10: سيستم مقاوم در برابر نيروهاي جانبي | L10: R
B11: =E72 -> 2 | E11: =CHOOSE(B11,F65,F66,F67,F68) -> قاب ساختماني ساده | G11: =CHOOSE(N11,G78,G79,G80,G81,G82,G83,G84) -> ديوار برشي بتن آرمه متوسط | L11: =IF(AND(B11=1,N11=1),7,IF(AND(B11=1,N11=2),6,IF(AND(B11=1,N11=3),5,IF(AND(B11=1,N11=4),4,IF(AND(B11=2,N11=1),8,IF(AND(B11=2,N11=2),7,IF(AND(B11=2,N11=3),5,IF(AND(B11=2,N11=4),4,IF(AND(B11=2,N11=5),7,IF(AND(B11=2,N11=6),6,IF(AND(B11=3,N11=1),10,IF(AND(B11=3,N11=2),7,IF(AND(B11=3,N11=3),4,IF(AND(B11=3,N11=4),10,IF(AND(B11=3,N11=5),7,IF(AND(B11=3,N11=6),5,IF(AND(B11=4,N11=1),11,IF(AND(B11=4,N11=2),8,IF(AND(B11=4,N11=3),8,IF(AND(B11=4,N11=4),10,IF(AND(B11=4,N11=5),9,IF(AND(B11=4,N11=6),7,IF(AND(B11=4,N11=7),7))))))))))))))))))))))) -> 7 | N11: =H74 -> 2
E13: ضريب بازتاب سازه
B14: 2 | E14: ارتفاع ساختمان از تراز پايه | H14: 25 | I14: نوع زمين | J14: =CHOOSE(B14,Q59,Q60,Q61,Q62) -> تيپ2
B15: 5 | E15: زمان تناوب اصلي نوسان (T) | H15: نوع سيستم | J15: =CHOOSE(B15,L65,L66,L67,L68,L69) -> ساير سيستم ها
G16: T= | I16: =CHOOSE(B15,O65,O66,O67,O68,O69) -> 0.559
G17: T0= | I17: =CHOOSE(B14,P59,P60,P61,P62) -> 0.1
G18: Ts= | I18: =CHOOSE(B14,O59,O60,O61,O62) -> 0.5
G19: S= | I19: =CHOOSE(B14,N59,N60,N61,IF(B6>2,2.25,IF(B6<=2,1.75))) -> 1.5
H21: 0≤T≤T0
E22: B=S+1 | H22: T0≤T≤Ts | K22: =ROUND(IF(K74=TRUE,L74,IF(K75=TRUE,L75,IF(K76=TRUE,L76))),3) -> 2.321
H23: T≥Ts
E26: محاسبه ضريب زلزله در جهت X
I29: =ROUND((L6*K22*L7/L11),4) -> 0.1161
M57: خطر زياد | N57: خطر كم
D58: ضريب اهميت | E58: طبقه بندي ساختمان | H58: شتاب مبنا | I58: توصيف | M58: S | N58: S | O58: TS | P58: T0 | Q58: نوع زمين
D59: 1.4 | E59: ساختمان با اهميت خيلي زياد | H59: 0.35 | I59: پهنه با خطر نسبي خيلي زياد | M59: 1.5 | N59: 1.5 | O59: 0.4 | P59: 0.1 | Q59: تيپ1
D60: 1.2 | E60: ساختمان با اهميت زياد | H60: 0.3 | I60: پهنه با خطر نسبي زياد | M60: 1.5 | N60: 1.5 | O60: 0.5 | P60: 0.1 | Q60: تيپ2
D61: 1 | E61: ساختمان با اهميت متوسط | H61: 0.25 | I61: پهنه با خطر نسبي متوسط | M61: 1.75 | N61: 1.75 | O61: 0.7 | P61: 0.15 | Q61: تيپ3
D62: 0.8 | E62: ساختمان با اهميت كم | H62: 0.2 | I62: پهنه با خطر نسبي كم | M62: 1.75 | N62: 2.25 | O62: 1 | P62: 0.15 | Q62: تيپ4
G64: ديوار باربر | H64: قاب ساختماني ساده | I64: قاب خمشي | J64: تركيبي
F65: ديوار باربر | G65: ديوار برشي بتن آرمه ويژه | H65: ديوار برشي بتن آرمه ويژه | I65: قاب خمشي بتن آرمه ويژه | J65: قاب خمشي ويژه(فولادي يا بتني)+ديوار برشي بتن آرمه ويژه | L65: قاب خمشي فولادي | O65: =ROUND(0.08*H14^(3/4),3) -> 0.894
F66: قاب ساختماني ساده | G66: ديوار برشي بتن آرمه متوسط | H66: ديوار برشي بتن آرمه متوسط | I66: قاب خمشي بتن آرمه متوسط | J66: قاب خمشي بتني متوسط+ديوار برشي بتن آرمه متوسط | L66: قاب خمشي بتن آرمه | O66: =ROUND(0.07*H14^(3/4),3) -> 0.783
F67: قاب خمشي | G67: ديوار برشي بتن آرمه معمولي | H67: ديوار برشي بتن آرمه معمولي | I67: قاب خمشي بتن آرمه معمولي | J67: قاب خمشي فولادي متوسط+ديوار برشي بتن آرمه متوسط | L67: قاب خمشي فولادي با جداگرهاي ميانقابي | O67: =ROUND(0.8*O65,3) -> 0.715
F68: تركيبي | G68: ديوار برشي با مصالح بنايي مسلح | H68: ديوار برشي با مصالح بنايي مسلح | I68: قاب خمشي فولادي ويژه | J68: قاب خمشي فولادي ويژه + مهاربند برون محور فولادي | L68: قاب خمشي بتني با جداگرهاي ميانقابي | O68: =ROUND(0.8*O66,3) -> 0.626
H69: مهاربندي برون محور فولادي | I69: قاب خمشي فولادي متوسط | J69: قاب خمشي فولادي ويژه + مهاربند هم محور فولادي | L69: ساير سيستم ها | O69: =ROUND(0.05*H14^(3/4),3) -> 0.559
H70: مهاربندي هم محور فولادي | I70: قاب خمشي فولادي معمولي | J70: قاب خمشي فولادي متوسط + مهاربند برون محور فولادي
J71: قاب خمشي فولادي متوسط + مهاربند هم محور فولادي
E72: 2
E73: =E72 -> 2
E74: =E73 -> 2 | H74: 2 | K74: =IF(AND(I16>=0,I16<=I17),TRUE,FALSE) -> FALSE | L74: =1+(I19*(I16/I17)) -> 9.385
E75: 2 | K75: =IF(AND(I16>=I17,I16<=I18),TRUE,FALSE) -> FALSE | L75: =I19+1 -> 2.5
E76: 2 | K76: =IF(I16>I18,TRUE,FALSE) -> TRUE | L76: =(I19+1)*(I18/I16)^(2/3) -> 2.320841453
E77: 2
E78: 2 | G78: =IF(E72=1,G65,IF(E72=2,H65,IF(E72=3,I65,IF(E72=4,J65)))) -> ديوار برشي بتن آرمه ويژه
E79: 2 | G79: =IF(E73=1,G66,IF(E73=2,H66,IF(E73=3,I66,IF(E73=4,J66)))) -> ديوار برشي بتن آرمه متوسط
E80: 2 | G80: ديوار برشي بتن آرمه معمولي
E81: 2 | G81: ديوار برشي با مصالح بنايي مسلح
E82: 2 | G82: مهاربندي برون محور فولادي
E83: 2 | G83: مهاربندي هم محور فولادي
E84: 2

Sheet ضريب زلزله Y
E3: محاسبه ضريب زلزله در جهت Y
B6: 1 | E6: شتاب مبنا | G6: =CHOOSE(B6,I59,I60,I61,I62) -> پهنه با خطر نسبي خيلي زياد | L6: =CHOOSE(B6,H59,H60,H61,H62) -> 0.35
B7: 3 | E7: ضريب اهميت ساختمان | G7: =CHOOSE(B7,E59,E60,E61,E62) -> ساختمان با اهميت متوسط | L7: =CHOOSE(B7,D59,D60,D61,D62) -> 1
E9: ضريب رفتار سازه
E10: سيستم سازه | G10: سيستم مقاوم در برابر نيروهاي جانبي | L10: R
B11: =E72 -> 3 | E11: =CHOOSE(B11,F65,F66,F67,F68) -> قاب خمشي | G11: =CHOOSE(N11,G78,G79,G80,G81,G82,G83,G84) -> قاب خمشي بتن آرمه متوسط | L11: =IF(AND(B11=1,N11=1),7,IF(AND(B11=1,N11=2),6,IF(AND(B11=1,N11=3),5,IF(AND(B11=1,N11=4),4,IF(AND(B11=2,N11=1),8,IF(AND(B11=2,N11=2),7,IF(AND(B11=2,N11=3),5,IF(AND(B11=2,N11=4),4,IF(AND(B11=2,N11=5),7,IF(AND(B11=2,N11=6),6,IF(AND(B11=3,N11=1),10,IF(AND(B11=3,N11=2),7,IF(AND(B11=3,N11=3),4,IF(AND(B11=3,N11=4),10,IF(AND(B11=3,N11=5),7,IF(AND(B11=3,N11=6),5,IF(AND(B11=4,N11=1),11,IF(AND(B11=4,N11=2),8,IF(AND(B11=4,N11=3),8,IF(AND(B11=4,N11=4),10,IF(AND(B11=4,N11=5),9,IF(AND(B11=4,N11=6),7,IF(AND(B11=4,N11=7),7))))))))))))))))))))))) -> 7 | N11: =H74 -> 2
E13: ضريب بازتاب سازه
B14: 2 | E14: ارتفاع ساختمان از تراز پايه | H14: 25 | I14: نوع زمين | J14: =CHOOSE(B14,R59,R60,R61,R62) -> تيپ2
B15: 2 | E15: زمان تناوب اصلي نوسان (T) | H15: نوع سيستم | J15: =CHOOSE(B15,L65,L66,L67,L68,L69) -> قاب خمشي بتن آرمه
G16: T= | I16: =CHOOSE(B15,P65,P66,P67,P68,P69) -> 0.783
G17: T0= | I17: =CHOOSE(B14,Q59,Q60,Q61,Q62) -> 0.1
G18: Ts= | I18: =CHOOSE(B14,P59,P60,P61,P62) -> 0.5
G19: S= | I19: =CHOOSE(B14,N59,N60,N61,IF(B6>2,2.25,IF(B6<=2,1.75))) -> 1.5
H21: 0≤T≤T0
E22: B=S+1 | H22: T0≤T≤Ts | K22: =ROUND(IF(K74=TRUE,L74,IF(K75=TRUE,L75,IF(K76=TRUE,L76))),3) -> 1.854
H23: T≥Ts
E26: محاسبه ضريب زلزله در جهت Y
I29: =ROUND((L6*K22*L7/L11),4) -> 0.0927
M57: خطر زياد | N57: خطر كم
D58: ضريب اهميت | E58: طبقه بندي ساختمان | H58: شتاب مبنا | I58: توصيف | M58: S | N58: S | P58: TS | Q58: T0 | R58: نوع زمين
D59: 1.4 | E59: ساختمان با اهميت خيلي زياد | H59: 0.35 | I59: پهنه با خطر نسبي خيلي زياد | M59: 1.5 | N59: 1.5 | P59: 0.4 | Q59: 0.1 | R59: تيپ1
D60: 1.2 | E60: ساختمان با اهميت زياد | H60: 0.3 | I60: پهنه با خطر نسبي زياد | M60: 1.5 | N60: 1.5 | P60: 0.5 | Q60: 0.1 | R60: تيپ2
D61: 1 | E61: ساختمان با اهميت متوسط | H61: 0.25 | I61: پهنه با خطر نسبي متوسط | M61: 1.75 | N61: 1.75 | P61: 0.7 | Q61: 0.15 | R61: تيپ3
D62: 0.8 | E62: ساختمان با اهميت كم | H62: 0.2 | I62: پهنه با خطر نسبي كم | M62: 1.75 | N62: 2.25 | P62: 1 | Q62: 0.15 | R62: تيپ4
G64: ديوار باربر | H64: قاب ساختماني ساده | I64: قاب خمشي | J64: تركيبي
F65: ديوار باربر | G65: ديوار برشي بتن آرمه ويژه | H65: ديوار برشي بتن آرمه ويژه | I65: قاب خمشي بتن آرمه ويژه | J65: قاب خمشي ويژه(فولادي يا بتني)+ديوار برشي بتن آرمه ويژه | L65: قاب خمشي فولادي | P65: =ROUND(0.08*H14^(3/4),3) -> 0.894
F66: قاب ساختماني ساده | G66: ديوار برشي بتن آرمه متوسط | H66: ديوار برشي بتن آرمه متوسط | I66: قاب خمشي بتن آرمه متوسط | J66: قاب خمشي بتني متوسط+ديوار برشي بتن آرمه متوسط | L66: قاب خمشي بتن آرمه | P66: =ROUND(0.07*H14^(3/4),3) -> 0.783
F67: قاب خمشي | G67: ديوار برشي بتن آرمه معمولي | H67: ديوار برشي بتن آرمه معمولي | I67: قاب خمشي بتن آرمه معمولي | J67: قاب خمشي فولادي متوسط+ديوار برشي بتن آرمه متوسط | L67: قاب خمشي فولادي با جداگرهاي ميانقابي | P67: =ROUND(0.8*P65,3) -> 0.715
F68: تركيبي | G68: ديوار برشي با مصالح بنايي مسلح | H68: ديوار برشي با مصالح بنايي مسلح | I68: قاب خمشي فولادي ويژه | J68: قاب خمشي فولادي ويژه + مهاربند برون محور فولادي | L68: قاب خمشي بتني با جداگرهاي ميانقابي | P68: =ROUND(0.8*P66,3) -> 0.626
H69: مهاربندي برون محور فولادي | I69: قاب خمشي فولادي متوسط | J69: قاب خمشي فولادي ويژه + مهاربند هم محور فولادي | L69: ساير سيستم ها | P69: =ROUND(0.05*H14^(3/4),3) -> 0.559
H70: مهاربندي هم محور فولادي | I70: قاب خمشي فولادي معمولي | J70: قاب خمشي فولادي متوسط + مهاربند برون محور فولادي
J71: قاب خمشي فولادي متوسط + مهاربند هم محور فولادي
E72: 3
E73: =E72 -> 3
E74: =E73 -> 3 | H74: 2 | K74: =IF(AND(I16>=0,I16<=I17),TRUE,FALSE) -> FALSE | L74: =1+(I19*(I16/I17)) -> 12.745
E75: 3 | K75: =IF(AND(I16>=I17,I16<=I18),TRUE,FALSE) -> FALSE | L75: =I19+1 -> 2.5
E76: 3 | K76: =IF(I16>I18,TRUE,FALSE) -> TRUE | L76: =(I19+1)*(I18/I16)^(2/3) -> 1.853868123
E77: 3
E78: 3 | G78: =IF(E72=1,G65,IF(E72=2,H65,IF(E72=3,I65,IF(E72=4,J65)))) -> قاب خمشي بتن آرمه ويژه
E79: 3 | G79: =IF(E73=1,G66,IF(E73=2,H66,IF(E73=3,I66,IF(E73=4,J66)))) -> قاب خمشي بتن آرمه متوسط
E80: 3 | G80: قاب خمشي بتن آرمه معمولي
E81: 3 | G81: قاب خمشي فولادي ويژه
E82: 3 | G82: قاب خمشي فولادي متوسط
E83: 3 | G83: قاب خمشي فولادي معمولي
E84: 3

Sheet خلاصه
D3: خلاصه بارهاي وارد بر ساختمان
D6: بارهاي ثقلي
D7: بار زنده | F7: بار مرده | H7: اجزا سازه
D8: ---- | F8: ='ديوار محيطي'!D34 -> 775 | H8: ديوار محيطي همسايه
D9: ---- | F9: ='ديوار نما'!D38 -> 655 | H9: ديوار نما
D10: ---- | F10: ='ديوار جان پناه'!D34 -> 265 | H10: ديوار جانپناه
D11: ---- | F11: ='ديوار پله'!D34 -> 780 | H11: ديوارهاي پله
D12: 350 | F12: ='مورب پله'!E28 -> 690 | H12: قسمت مورب پله
D13: 200 | F13: =' كامپوزيت در طبقات'!D34 -> 265 | H13: كامپوزيت در طبقات
D14: 150 | F14: =' كامپوزيت در بام'!D34 -> 215 | H14: كامپوزيت در بام
D15: 200 | F15: ='تيرچه بلوك در طبقات '!D34 -> 565 | H15: تيرچه بلوك در طبقات
D16: 150 | F16: ='تيرچه بلوك در بام'!D34 -> 515 | H16: تيرچه بلوك دربام
D17: 200 | F17: ='کرمیت در طبقات'!D34 -> 495 | H17: کرمیت در طبقات
D18: 150 | F18: ='کرمیت در بام'!$D$34 -> 450 | H18: کرمیت در بام
D19: 200 | F19: ='کرمیت کامپوزیت در طبقات'!$D$34 -> 440 | H19: کرمیت کامپوزیت در طبقات
D20: 150 | F20: ='کرمیت کامپوزیت در بام'!D34 -> 390 | H20: کرمیت کامپوزیت در بام
D21: 200 | F21: ='دال در طبقات'!D34 -> 265 | H21: دال در طبقات
D22: 150 | F22: ='دال در بام'!D34 -> 215 | H22: دال در بام
D25: بار برف
D26: ='بار برف'!G45 -> 50
D28: بار زلزله
D29: ='ضريب زلزله Y'!I29 -> 0.0927 | E29: ضريب زلزله در جهت Y= | H29: ='ضريب زلزله X'!I29 -> 0.1161 | I29: ضريب زلزله در جهت X=

Sheet وزن سازه بتنی
E2: تیپ 1:پارکینگ | P2: محاسبه وزن ساختمان در طبقه
E4: مشخصات سازه | I4: مساحت سازه (m2) | Q4: مساحت ایستگاه پله (m2) | Y4: ارتفاع طبقه (m)
I5: 145 | Q5: 15 | Y5: 2.8
I6: ارتفاع مفید طبقه (m) | Q6: طول ستون (cm) | Y6: عرض ستون (cm)
A7: وزن مخصوص بتن (ton/m3) | I7: 2.5 | Q7: 40 | Y7: 40
I8: عرض تیر (cm) | Q8: ارتفاع تیر (cm) | Y8: ضخامت دیوار برشی(cm)
A9: 2.5 | I9: 30 | Q9: 40 | Y9: 30
E10: وزن اجزا مختلف سازه
E11: دیوار نما | L11: طول کل | S11: وزن | Z11: وزن کل ( ton )
L12: 14.25 | S12: =خلاصه!$F$9 -> 655 | Z12: =L12*S12*0.001 -> 9.33375
E13: دیوار مجاور همسایه | L13: طول کل | S13: وزن | Z13: وزن کل
L14: 18 | S14: =خلاصه!$F$8 -> 775 | Z14: =L14*S14*0.001 -> 13.95
E15: دیوار جان پناه | L15: طول کل | S15: وزن | Z15: وزن کل
L16: 0 | S16: =خلاصه!$F$10 -> 265 | Z16: =L16*S16*0.001 -> 0
E17: دیوار برشی | L17: طول کل | S17: حجم | Z17: وزن کل
L18: 12 | S18: =L18*Y9*I7*0.01 -> 9 | Z18: =S18*A9 -> 22.5
E19: تیرها | L19: طول کل | S19: حجم | Z19: وزن کل
L20: 74 | S20: =L20*I9*Q9*0.0001 -> 8.88 | Z20: =S20*$A$9 -> 22.2
E21: ستون ها | L21: تعداد | S21: حجم | Z21: وزن کل
L22: 14 | S22: =L22*I7*Q7*Y7*0.0001 -> 5.6 | Z22: =S22*A9 -> 14
E23: بار مرده سقف | L23: مساحت کل | S23: وزن | Z23: وزن کل | AJ23: 3
L24: =I5 -> 145 | S24: =CHOOSE(AJ23,خلاصه!$F$13,خلاصه!$F$14,خلاصه!$F$15,خلاصه!$F$16,خلاصه!$F$17,خلاصه!$F$18,خلاصه!$F$19,خلاصه!$F$20,خلاصه!$F$21,خلاصه!$F$22) -> 565 | Z24: =L24*S24*0.001 -> 81.925
E25: بار زنده سقف | L25: مساحت کل | S25: وزن | Z25: وزن کل | AJ25: 3
L26: =I5 -> 145 | S26: =CHOOSE(AJ25,خلاصه!$D$13,خلاصه!$D$14,خلاصه!$D$15,خلاصه!$D$16,خلاصه!$D$17,خلاصه!$D$18,خلاصه!$D$19,خلاصه!$D$20,خلاصه!$D$21,خلاصه!$D$22) -> 200 | Z26: =I5*S26*0.001 -> 29
E27: بار مرده راه پله | L27: مساحت کل | S27: وزن | Z27: وزن کل
L28: =Q5 -> 15 | S28: =خلاصه!$F$12 -> 690 | Z28: =L28*S28*0.001 -> 10.35
E29: بار زنده راه پله | L29: مساحت کل | S29: وزن | Z29: وزن کل
L30: =Q5 -> 15 | S30: =خلاصه!$D$12 -> 350 | Z30: =L30*S30*0.001 -> 5.25
E32: وزن کل | L32: کل بار مرده | S32: کل بار زنده | Z32: کل بار مرده وزنده
L33: =Z12+Z14+Z16+Z18+Z20+Z22+Z24+Z28 -> 174.25875 | S33: =Z30+Z26 -> 34.25 | Z33: =L33+S33 -> 208.50875
E36: تیپ 2:مسکونی | P36: محاسبه وزن ساختمان در طبقه
E38: مشخصات سازه | I38: مساحت سازه (m2) | Q38: مساحت ایستگاه پله (m2) | Y38: ارتفاع طبقه (m)
I39: 145 | Q39: 15 | Y39: 3.5
I40: ارتفاع مفید طبقه (m) | Q40: طول ستون (cm) | Y40: عرض ستون (cm)
I41: 3.1 | Q41: 40 | Y41: 40
I42: عرض تیر (cm) | Q42: ارتفاع تیر (cm) | Y42: ضخامت دیوار برشی(cm)
I43: 30 | Q43: 40 | Y43: 30
E44: وزن اجزا مختلف سازه
E45: دیوار نما | L45: طول کل | S45: وزن | Z45: وزن کل ( ton )
L46: 14.25 | S46: =خلاصه!$F$9 -> 655 | Z46: =L46*S46*0.001 -> 9.33375
E47: دیوار مجاور همسایه | L47: طول کل | S47: وزن | Z47: وزن کل
L48: 18 | S48: =خلاصه!$F$8 -> 775 | Z48: =L48*S48*0.001 -> 13.95
E49: دیوار جان پناه | L49: طول کل | S49: وزن | Z49: وزن کل
L50: 0 | S50: =خلاصه!$F$10 -> 265 | Z50: =L50*S50*0.001 -> 0
E51: دیوار برشی | L51: طول کل | S51: حجم | Z51: وزن کل
L52: 12 | S52: =L52*Y43*I41*0.01 -> 11.16 | Z52: =S52*A9 -> 27.9
E53: تیرها | L53: طول کل | S53: حجم | Z53: وزن کل
L54: 74 | S54: =L54*I43*Q43*0.0001 -> 8.88 | Z54: =S54*$A$9 -> 22.2
E55: ستون ها | L55: تعداد | S55: حجم | Z55: وزن کل
L56: 14 | S56: =L56*I41*Q41*Y41*0.0001 -> 6.944 | Z56: =S56*A9 -> 17.36
E57: بار مرده سقف | L57: مساحت کل | S57: وزن | Z57: وزن کل | AJ57: 3
L58: =I39 -> 145 | S58: =CHOOSE(AJ57,خلاصه!$F$13,خلاصه!$F$14,خلاصه!$F$15,خلاصه!$F$16,خلاصه!$F$17,خلاصه!$F$18,خلاصه!$F$19,خلاصه!$F$20,خلاصه!$F$21,خلاصه!$F$22) -> 565 | Z58: =L58*S58*0.001 -> 81.925
E59: بار زنده سقف | L59: مساحت کل | S59: وزن | Z59: وزن کل | AJ59: 3
L60: =I39 -> 145 | S60: =CHOOSE(AJ59,خلاصه!$D$13,خلاصه!$D$14,خلاصه!$D$15,خلاصه!$D$16,خلاصه!$D$17,خلاصه!$D$18,خلاصه!$D$19,خلاصه!$D$20,خلاصه!$D$21,خلاصه!$D$22) -> 200 | Z60: =I39*S60*0.001 -> 29
E61: بار مرده راه پله | L61: مساحت کل | S61: وزن | Z61: وزن کل
L62: =Q39 -> 15 | S62: =خلاصه!$F$12 -> 690 | Z62: =L62*S62*0.001 -> 10.35
E63: بار زنده راه پله | L63: مساحت کل | S63: وزن | Z63: وزن کل
L64: =Q39 -> 15 | S64: =خلاصه!$D$12 -> 350 | Z64: =L64*S64*0.001 -> 5.25
E66: وزن کل | L66: کل بار مرده | S66: کل بار زنده | Z66: کل بار مرده وزنده
L67: =Z46+Z48+Z50+Z52+Z54+Z56+Z58+Z62 -> 183.01875 | S67: =Z64+Z60 -> 34.25 | Z67: =L67+S67 -> 217.26875
E70: تیپ 3:بام | P70: محاسبه وزن ساختمان در طبقه
E72: مشخصات سازه | I72: مساحت سازه (m2) | Q72: مساحت ایستگاه پله (m2) | Y72: ارتفاع طبقه (m)
I73: 145 | Q73: 15 | Y73: 3.2
I74: ارتفاع مفید طبقه (m) | Q74: طول ستون (cm) | Y74: عرض ستون (cm)
I75: 2.9 | Q75: 40 | Y75: 40
I76: عرض تیر (cm) | Q76: ارتفاع تیر (cm) | Y76: ضخامت دیوار برشی(cm)
I77: 30 | Q77: 40 | Y77: 30
E78: وزن اجزا مختلف سازه
E79: دیوار نما | L79: طول کل | S79: وزن | Z79: وزن کل ( ton )
L80: 14.25 | S80: =خلاصه!$F$9 -> 655 | Z80: =L80*S80*0.001 -> 9.33375
E81: دیوار مجاور همسایه | L81: طول کل | S81: وزن | Z81: وزن کل
L82: 18 | S82: =خلاصه!$F$8 -> 775 | Z82: =L82*S82*0.001 -> 13.95
E83: دیوار جان پناه | L83: طول کل | S83: وزن | Z83: وزن کل
L84: 45 | S84: =خلاصه!$F$10 -> 265 | Z84: =L84*S84*0.001 -> 11.925
E85: دیوار برشی | L85: طول کل | S85: حجم | Z85: وزن کل
L86: 12 | S86: =L86*Y77*I75*0.01 -> 10.44 | Z86: =S86*A9 -> 26.1
E87: تیرها | L87: طول کل | S87: حجم | Z87: وزن کل
L88: 74 | S88: =L88*I77*Q77*0.0001 -> 8.88 | Z88: =S88*$A$9 -> 22.2
E89: ستون ها | L89: تعداد | S89: حجم | Z89: وزن کل
L90: 14 | S90: =L90*I75*Q75*Y75*0.0001 -> 6.496 | Z90: =S90*A9 -> 16.24
E91: بار مرده سقف | L91: مساحت کل | S91: وزن | Z91: وزن کل | AJ91: 4
L92: =I73 -> 145 | S92: =CHOOSE(AJ91,خلاصه!$F$13,خلاصه!$F$14,خلاصه!$F$15,خلاصه!$F$16,خلاصه!$F$17,خلاصه!$F$18,خلاصه!$F$19,خلاصه!$F$20,خلاصه!$F$21,خلاصه!$F$22) -> 515 | Z92: =L92*S92*0.001 -> 74.675
E93: بار زنده سقف | L93: مساحت کل | S93: وزن | Z93: وزن کل | AJ93: 4
L94: =I73 -> 145 | S94: =CHOOSE(AJ93,خلاصه!$D$13,خلاصه!$D$14,خلاصه!$D$15,خلاصه!$D$16,خلاصه!$D$17,خلاصه!$D$18,خلاصه!$D$19,خلاصه!$D$20,خلاصه!$D$21,خلاصه!$D$22) -> 150 | Z94: =I73*S94*0.001 -> 21.75
E95: بار مرده راه پله | L95: مساحت کل | S95: وزن | Z95: وزن کل
L96: =Q73 -> 15 | S96: =خلاصه!$F$12 -> 690 | Z96: =L96*S96*0.001 -> 10.35
E97: بار زنده راه پله | L97: مساحت کل | S97: وزن | Z97: وزن کل
L98: =Q73 -> 15 | S98: =خلاصه!$D$12 -> 350 | Z98: =L98*S98*0.001 -> 5.25
E100: وزن کل | L100: کل بار مرده | S100: کل بار زنده | Z100: کل بار مرده وزنده
L101: =Z80+Z82+Z84+Z86+Z88+Z90+Z92+Z96 -> 184.77375 | S101: =Z98+Z94 -> 27 | Z101: =L101+S101 -> 211.77375
E104: تیپ 4:خرپشته | P104: محاسبه وزن ساختمان در طبقه
E106: مشخصات سازه | I106: مساحت سازه (m2) | Q106: مساحت ایستگاه پله (m2) | Y106: ارتفاع طبقه (m)
I107: 15 | Q107: 0 | Y107: 2.9
I108: ارتفاع مفید طبقه (m) | Q108: طول ستون (cm) | Y108: عرض ستون (cm)
I109: 2.5 | Q109: 40 | Y109: 40
I110: عرض تیر (cm) | Q110: ارتفاع تیر (cm) | Y110: ضخامت دیوار برشی(cm)
I111: 30 | Q111: 40 | Y111: 0
E112: وزن اجزا مختلف سازه
E113: دیوار نما | L113: طول کل | S113: وزن | Z113: وزن کل ( ton )
L114: 0 | S114: =خلاصه!$F$9 -> 655 | Z114: =L114*S114*0.001 -> 0
E115: دیوار مجاور همسایه | L115: طول کل | S115: وزن | Z115: وزن کل
L116: 16 | S116: =خلاصه!$F$8 -> 775 | Z116: =L116*S116*0.001 -> 12.4
E117: دیوار جان پناه | L117: طول کل | S117: وزن | Z117: وزن کل
L118: 0 | S118: =خلاصه!$F$10 -> 265 | Z118: =L118*S118*0.001 -> 0
E119: دیوار برشی | L119: طول کل | S119: حجم | Z119: وزن کل
L120: 0 | S120: =L120*Y111*I109*0.01 -> 0 | Z120: =S120*A9 -> 0
E121: تیرها | L121: طول کل | S121: حجم | Z121: وزن کل
L122: 16 | S122: =L122*I111*Q111*0.0001 -> 1.92 | Z122: =S122*$A$9 -> 4.8
E123: ستون ها | L123: تعداد | S123: حجم | Z123: وزن کل
L124: 4 | S124: =L124*I109*Q109*Y109*0.0001 -> 1.6 | Z124: =S124*A9 -> 4
E125: بار مرده سقف | L125: مساحت کل | S125: وزن | Z125: وزن کل | AJ125: 4
L126: =I107 -> 15 | S126: =CHOOSE(AJ125,خلاصه!$F$13,خلاصه!$F$14,خلاصه!$F$15,خلاصه!$F$16,خلاصه!$F$17,خلاصه!$F$18,خلاصه!$F$19,خلاصه!$F$20,خلاصه!$F$21,خلاصه!$F$22) -> 515 | Z126: =L126*S126*0.001 -> 7.725
E127: بار زنده سقف | L127: مساحت کل | S127: وزن | Z127: وزن کل | AJ127: 4
L128: =I107 -> 15 | S128: =CHOOSE(AJ127,خلاصه!$D$13,خلاصه!$D$14,خلاصه!$D$15,خلاصه!$D$16,خلاصه!$D$17,خلاصه!$D$18,خلاصه!$D$19,خلاصه!$D$20,خلاصه!$D$21,خلاصه!$D$22) -> 150 | Z128: =I107*S128*0.001 -> 2.25
E129: بار مرده راه پله | L129: مساحت کل | S129: وزن | Z129: وزن کل
L130: =Q107 -> 0 | S130: =خلاصه!$F$12 -> 690 | Z130: =L130*S130*0.001 -> 0
E131: بار زنده راه پله | L131: مساحت کل | S131: وزن | Z131: وزن کل
L132: =Q107 -> 0 | S132: =خلاصه!$D$12 -> 350 | Z132: =L132*S132*0.001 -> 0
E134: وزن کل | L134: کل بار مرده | S134: کل بار زنده | Z134: کل بار مرده وزنده
L135: =Z114+Z116+Z118+Z120+Z122+Z124+Z126+Z130 -> 28.925 | S135: =Z132+Z128 -> 2.25 | Z135: =L135+S135 -> 31.175

Sheet وزن سازه فولادی
E2: تیپ 1:زیرزمین | P2: محاسبه وزن ساختمان در طبقه
E5: مشخصات سازه | I5: مساحت سازه (m2) | Q5: مساحت ایستگاه پله (m2) | Y5: ارتفاع طبقه (m)
I6: 145 | Q6: 15 | Y6: 3.2
A7: وزن مخصوص بتن (ton/m3) | I7: ارتفاع مفید طبقه (m) | Q7: وزن اعضا سازه ای(kg/m2) | Y7: ضخامت دیوار برشی(cm)
I8: 2.9 | Q8: 50 | Y8: 30
A9: 2.5 | E9: وزن اجزا مختلف سازه
E11: دیوار نما | L11: طول کل | S11: وزن | Z11: وزن کل
L12: 0 | S12: =خلاصه!$F$9 -> 655 | Z12: =L12*S12*0.001 -> 0
E13: دیوار مجاور همسایه | L13: طول کل | S13: وزن | Z13: وزن کل
L14: 45 | S14: =خلاصه!$F$8 -> 775 | Z14: =L14*S14*0.001 -> 34.875
E15: دیوار جان پناه | L15: طول کل | S15: وزن | Z15: وزن کل
L16: 0 | S16: =خلاصه!$F$10 -> 265 | Z16: =L16*S16*0.001 -> 0
E17: دیوار برشی | L17: طول کل | S17: حجم | Z17: وزن کل
L18: 0 | S18: =L18*Y8*0.01*I8 -> 0 | Z18: =S18*$A$9 -> 0
E19: بار مرده سقف | L19: مساحت کل | S19: وزن | Z19: وزن کل | AJ19: 3
L20: =I6 -> 145 | S20: =CHOOSE(AJ19,خلاصه!$F$13,خلاصه!$F$14,خلاصه!$F$15,خلاصه!$F$16,خلاصه!$F$17,خلاصه!$F$18,خلاصه!$F$19,خلاصه!$F$20,خلاصه!$F$21,خلاصه!$F$22) -> 565 | Z20: =L20*S20*0.001 -> 81.925
E21: بار زنده سقف | L21: مساحت کل | S21: وزن | Z21: وزن کل | AJ21: 3
L22: =I6 -> 145 | S22: =CHOOSE(AJ21,خلاصه!$D$13,خلاصه!$D$14,خلاصه!$D$15,خلاصه!$D$16,خلاصه!$D$17,خلاصه!$D$18,خلاصه!$D$19,خلاصه!$D$20,خلاصه!$D$21,خلاصه!$D$22) -> 200 | Z22: =I6*S22*0.001 -> 29
E23: بار مرده راه پله | L23: مساحت کل | S23: وزن | Z23: وزن کل
L24: =Q6 -> 15 | S24: =خلاصه!$F$12 -> 690 | Z24: =L24*S24*0.001 -> 10.35
E25: بار زنده راه پله | L25: مساحت کل | S25: وزن | Z25: وزن کل
L26: =Q6 -> 15 | S26: =خلاصه!$D$12 -> 350 | Z26: =L26*S26*0.001 -> 5.25
E27: بار اعضای سازه ای | L27: مساحت کل | S27: وزن | Z27: وزن کل
L28: =I6+Q6 -> 160 | S28: =Q8 -> 50 | Z28: =L28*S28*0.001 -> 8
E31: وزن کل | L31: کل بار مرده | S31: کل بار زنده | Z31: کل بار مرده وزنده
L32: =Z12+Z14+Z16+Z18+Z20+Z24+Z28 -> 135.15 | S32: =Z26+Z22 -> 34.25 | Z32: =L32+S32 -> 169.4
E36: تیپ 2:مسکونی | P36: محاسبه وزن ساختمان در طبقه
E39: مشخصات سازه | I39: مساحت سازه (m2) | Q39: مساحت ایستگاه پله (m2) | Y39: ارتفاع طبقه (m)
I40: 145 | Q40: 15 | Y40: 3.2
I41: ارتفاع مفید طبقه (m) | Q41: وزن اعضا سازه ای(kg/m2) | Y41: ضخامت دیوار برشی(cm)
I42: 2.9 | Q42: 50 | Y42: 30
E43: وزن اجزا مختلف سازه
E45: دیوار نما | L45: طول کل | S45: وزن | Z45: وزن کل
L46: 14.25 | S46: =خلاصه!$F$9 -> 655 | Z46: =L46*S46*0.001 -> 9.33375
E47: دیوار مجاور همسایه | L47: طول کل | S47: وزن | Z47: وزن کل
L48: 18 | S48: =خلاصه!$F$8 -> 775 | Z48: =L48*S48*0.001 -> 13.95
E49: دیوار جان پناه | L49: طول کل | S49: وزن | Z49: وزن کل
L50: 0 | S50: =خلاصه!$F$10 -> 265 | Z50: =L50*S50*0.001 -> 0
E51: دیوار برشی | L51: طول کل | S51: حجم | Z51: وزن کل
L52: 12 | S52: =L52*Y42*0.01*I42 -> 10.44 | Z52: =S52*$A$9 -> 26.1
E53: بار مرده سقف | L53: مساحت کل | S53: وزن | Z53: وزن کل | AJ53: 3
L54: =I40 -> 145 | S54: =CHOOSE(AJ53,خلاصه!$F$13,خلاصه!$F$14,خلاصه!$F$15,خلاصه!$F$16,خلاصه!$F$17,خلاصه!$F$18,خلاصه!$F$19,خلاصه!$F$20,خلاصه!$F$21,خلاصه!$F$22) -> 565 | Z54: =L54*S54*0.001 -> 81.925
E55: بار زنده سقف | L55: مساحت کل | S55: وزن | Z55: وزن کل | AJ55: 3
L56: =I40 -> 145 | S56: =CHOOSE(AJ55,خلاصه!$D$13,خلاصه!$D$14,خلاصه!$D$15,خلاصه!$D$16,خلاصه!$D$17,خلاصه!$D$18,خلاصه!$D$19,خلاصه!$D$20,خلاصه!$D$21,خلاصه!$D$22) -> 200 | Z56: =I40*S56*0.001 -> 29
E57: بار مرده راه پله | L57: مساحت کل | S57: وزن | Z57: وزن کل
L58: =Q40 -> 15 | S58: =خلاصه!$F$12 -> 690 | Z58: =L58*S58*0.001 -> 10.35
E59: بار زنده راه پله | L59: مساحت کل | S59: وزن | Z59: وزن کل
L60: =Q40 -> 15 | S60: =خلاصه!$D$12 -> 350 | Z60: =L60*S60*0.001 -> 5.25
E61: بار اعضای سازه ای | L61: مساحت کل | S61: وزن | Z61: وزن کل
L62: =I40+Q40 -> 160 | S62: =Q42 -> 50 | Z62: =L62*S62*0.001 -> 8
E65: وزن کل | L65: کل بار مرده | S65: کل بار زنده | Z65: کل بار مرده وزنده
L66: =Z46+Z48+Z50+Z52+Z54+Z58+Z62 -> 149.65875 | S66: =Z60+Z56 -> 34.25 | Z66: =L66+S66 -> 183.90875
E70: تیپ 3:بام | P70: محاسبه وزن ساختمان در طبقه
E73: مشخصات سازه | I73: مساحت سازه (m2) | Q73: مساحت ایستگاه پله (m2) | Y73: ارتفاع طبقه (m)
I74: 145 | Q74: 15 | Y74: 3.2
I75: ارتفاع مفید طبقه (m) | Q75: وزن اعضا سازه ای(kg/m2) | Y75: ضخامت دیوار برشی(cm)
I76: 2.9 | Q76: 50 | Y76: 30
E77: وزن اجزا مختلف سازه
E79: دیوار نما | L79: طول کل | S79: وزن | Z79: وزن کل
L80: 14.25 | S80: =خلاصه!$F$9 -> 655 | Z80: =L80*S80*0.001 -> 9.33375
E81: دیوار مجاور همسایه | L81: طول کل | S81: وزن | Z81: وزن کل
L82: 18 | S82: =خلاصه!$F$8 -> 775 | Z82: =L82*S82*0.001 -> 13.95
E83: دیوار جان پناه | L83: طول کل | S83: وزن | Z83: وزن کل
L84: 45 | S84: =خلاصه!$F$10 -> 265 | Z84: =L84*S84*0.001 -> 11.925
E85: دیوار برشی | L85: طول کل | S85: حجم | Z85: وزن کل
L86: 12 | S86: =L86*Y76*0.01*I76 -> 10.44 | Z86: =S86*$A$9 -> 26.1
E87: بار مرده سقف | L87: مساحت کل | S87: وزن | Z87: وزن کل | AJ87: 4
L88: =I74 -> 145 | S88: =CHOOSE(AJ87,خلاصه!$F$13,خلاصه!$F$14,خلاصه!$F$15,خلاصه!$F$16,خلاصه!$F$17,خلاصه!$F$18,خلاصه!$F$19,خلاصه!$F$20,خلاصه!$F$21,خلاصه!$F$22) -> 515 | Z88: =L88*S88*0.001 -> 74.675
E89: بار زنده سقف | L89: مساحت کل | S89: وزن | Z89: وزن کل | AJ89: 4
L90: =I74 -> 145 | S90: =CHOOSE(AJ89,خلاصه!$D$13,خلاصه!$D$14,خلاصه!$D$15,خلاصه!$D$16,خلاصه!$D$17,خلاصه!$D$18,خلاصه!$D$19,خلاصه!$D$20,خلاصه!$D$21,خلاصه!$D$22) -> 150 | Z90: =I74*S90*0.001 -> 21.75
E91: بار مرده راه پله | L91: مساحت کل | S91: وزن | Z91: وزن کل
L92: =Q74 -> 15 | S92: =خلاصه!$F$12 -> 690 | Z92: =L92*S92*0.001 -> 10.35
E93: بار زنده راه پله | L93: مساحت کل | S93: وزن | Z93: وزن کل
L94: =Q74 -> 15 | S94: =خلاصه!$D$12 -> 350 | Z94: =L94*S94*0.001 -> 5.25
E95: بار اعضای سازه ای | L95: مساحت کل | S95: وزن | Z95: وزن کل
L96: =I74+Q74 -> 160 | S96: =Q76 -> 50 | Z96: =L96*S96*0.001 -> 8
E99: وزن کل | L99: کل بار مرده | S99: کل بار زنده | Z99: کل بار مرده وزنده
L100: =Z80+Z82+Z84+Z86+Z88+Z92+Z96 -> 154.33375 | S100: =Z94+Z90 -> 27 | Z100: =L100+S100 -> 181.33375
E104: تیپ 4:خرپشته | P104: محاسبه وزن ساختمان در طبقه
E107: مشخصات سازه | I107: مساحت سازه (m2) | Q107: مساحت ایستگاه پله (m2) | Y107: ارتفاع طبقه (m)
I108: 145 | Q108: 15 | Y108: 3.2
I109: ارتفاع مفید طبقه (m) | Q109: وزن اعضا سازه ای(kg/m2) | Y109: ضخامت دیوار برشی(cm)
I110: 2.9 | Q110: 50 | Y110: 30
E111: وزن اجزا مختلف سازه
E113: دیوار نما | L113: طول کل | S113: وزن | Z113: وزن کل
L114: 0 | S114: =خلاصه!$F$9 -> 655 | Z114: =L114*S114*0.001 -> 0
E115: دیوار مجاور همسایه | L115: طول کل | S115: وزن | Z115: وزن کل
L116: 15 | S116: =خلاصه!$F$8 -> 775 | Z116: =L116*S116*0.001 -> 11.625
E117: دیوار جان پناه | L117: طول کل | S117: وزن | Z117: وزن کل
L118: 0 | S118: =خلاصه!$F$10 -> 265 | Z118: =L118*S118*0.001 -> 0
E119: دیوار برشی | L119: طول کل | S119: حجم | Z119: وزن کل
L120: 0 | S120: =L120*Y110*0.01*I110 -> 0 | Z120: =S120*$A$9 -> 0
E121: بار مرده سقف | L121: مساحت کل | S121: وزن | Z121: وزن کل | AJ121: 3
L122: 15 | S122: =CHOOSE(AJ121,خلاصه!$F$13,خلاصه!$F$14,خلاصه!$F$15,خلاصه!$F$16,خلاصه!$F$17,خلاصه!$F$18,خلاصه!$F$19,خلاصه!$F$20,خلاصه!$F$21,خلاصه!$F$22) -> 565 | Z122: =L122*S122*0.001 -> 8.475
E123: بار زنده سقف | L123: مساحت کل | S123: وزن | Z123: وزن کل | AJ123: 3
L124: 15 | S124: =CHOOSE(AJ123,خلاصه!$D$13,خلاصه!$D$14,خلاصه!$D$15,خلاصه!$D$16,خلاصه!$D$17,خلاصه!$D$18,خلاصه!$D$19,خلاصه!$D$20,خلاصه!$D$21,خلاصه!$D$22) -> 200 | Z124: =I108*S124*0.001 -> 29
E125: بار مرده راه پله | L125: مساحت کل | S125: وزن | Z125: وزن کل
L126: 0 | S126: =خلاصه!$F$12 -> 690 | Z126: =L126*S126*0.001 -> 0
E127: بار زنده راه پله | L127: مساحت کل | S127: وزن | Z127: وزن کل
L128: 0 | S128: =خلاصه!$D$12 -> 350 | Z128: =L128*S128*0.001 -> 0
E129: بار اعضای سازه ای | L129: مساحت کل | S129: وزن | Z129: وزن کل
L130: 15 | S130: =Q110 -> 50 | Z130: =L130*S130*0.001 -> 0.75
E133: وزن کل | L133: کل بار مرده | S133: کل بار زنده | Z133: کل بار مرده وزنده
L134: =Z114+Z116+Z118+Z120+Z122+Z126+Z130 -> 20.85 | S134: =Z128+Z124 -> 29 | Z134: =L134+S134 -> 49.85

Sheet 3 طبقه
AJ1: بتنی | AM1: فولادی | AP1: select
A2: سیستم سازه | D2: محاسبه و تقسیم بار زلزله | AJ2: ='وزن سازه بتنی'!E2 -> تیپ 1:پارکینگ | AK2: ='وزن سازه بتنی'!L33 -> 174.25875 | AL2: ='وزن سازه بتنی'!S33 -> 34.25 | AM2: ='وزن سازه فولادی'!E2 -> تیپ 1:زیرزمین | AN2: ='وزن سازه فولادی'!L32 -> 135.15 | AO2: ='وزن سازه فولادی'!S32 -> 34.25 | AP2: =IF($AL$6=1,AM2,AJ2) -> تیپ 1:زیرزمین | AQ2: 135.15 | AR2: 34.25
AJ3: ='وزن سازه بتنی'!E36 -> تیپ 2:مسکونی | AK3: ='وزن سازه بتنی'!L67 -> 183.01875 | AL3: ='وزن سازه بتنی'!S67 -> 34.25 | AM3: ='وزن سازه فولادی'!E36 -> تیپ 2:مسکونی | AN3: ='وزن سازه فولادی'!L66 -> 149.65875 | AO3: ='وزن سازه فولادی'!S66 -> 34.25 | AP3: تیپ 2:مسکونی | AQ3: 149.65875 | AR3: 34.25
E4: جهت تعیین بار جانبی زلزله ابتدا باید وزن سازه و ضریب زازله را بدست آوریم: | AJ4: ='وزن سازه بتنی'!E70 -> تیپ 3:بام | AK4: ='وزن سازه بتنی'!L101 -> 184.77375 | AL4: ='وزن سازه بتنی'!S101 -> 27 | AM4: ='وزن سازه فولادی'!E70 -> تیپ 3:بام | AN4: ='وزن سازه فولادی'!L100 -> 154.33375 | AO4: ='وزن سازه فولادی'!S100 -> 27 | AP4: تیپ 3:بام | AQ4: 154.33375 | AR4: 27
E5: شماره طبقه | I5: بار مرده | O5: بار زنده | U5: درصد مشارکت یار زنده | AA5: مجموع بار مرده و زنده | AJ5: ='وزن سازه بتنی'!E104 -> تیپ 4:خرپشته | AK5: ='وزن سازه بتنی'!L135 -> 28.925 | AL5: ='وزن سازه بتنی'!S135 -> 2.25 | AM5: ='وزن سازه فولادی'!E104 -> تیپ 4:خرپشته | AN5: ='وزن سازه فولادی'!L134 -> 20.85 | AO5: ='وزن سازه فولادی'!S134 -> 29 | AP5: تیپ 4:خرپشته | AQ5: 20.85 | AR5: 29
E6: طبقه اول | I6: =CHOOSE(AJ6,$AQ$2,$AQ$3,$AQ$4,$AQ$5) -> 135.15 | O6: =CHOOSE(AJ6,$AR$2,$AR$3,$AR$4,$AR$5) -> 34.25 | U6: 0.2 | AA6: =I6+O6*U6 -> 142 | AJ6: 1 | AL6: 1
E7: طبقه دوم | I7: 149.65875 | O7: 34.25 | U7: 0.2 | AA7: =I7+O7*U7 -> 156.50875 | AJ7: 2
E8: طبقه سوم | I8: 154.33375 | O8: 27 | U8: 0.2 | AA8: 159.73375 | AJ8: 3
E9: خرپشته | I9: 20.85 | O9: 29 | U9: 0.2 | AA9: 26.65 | AJ9: 4
U10: مجموع وزن سازه | AA10: =AA6+AA7+AA8+AA9 -> 484.8925
E12: ضریب زلزله در جهت X | S12: ضریب زلزله در جهت Y
E13: =خلاصه!H29 -> 0.1161 | L13: =AA10*E13 -> 56.29601925 | S13: =خلاصه!D29 -> 0.0927 | Z13: =AA10*S13 -> 44.94953475
E15: توزیع نیروی برشی در جهت X
E16: شماره طبقه | I16: وزن طبقه | N16: ارتفاع طبقه | R16: ارتفاع از تراز پایه | W16: Wi×Hi | AB16: Fi
E17: طبقه اول | I17: =AA6 -> 142 | N17: 2.8 | R17: =N17 -> 2.8 | W17: =I17*R17 -> 397.6 | AB17: =$L$13*W17/$W$20 -> 7.590141934
E18: طبقه دوم | I18: =AA7 -> 156.50875 | N18: 3.5 | R18: =R17+N18 -> 6.3 | W18: =I18*R18 -> 986.005125 | AB18: =$L$13*W18/$W$20 -> 18.82273352
E19: طبقه سوم | I19: 159.73375 | N19: 3.5 | R19: =R18+N19 -> 9.8 | W19: 1565.39075 | AB19: =$L$13*W19/$W$20 -> 29.8831438
R20: ΣWi×Hi= | W20: =W17+W18+W19 -> 2948.995875 | AB20: =AB17+AB18+AB19 -> 56.29601925
E22: توزیع نیروی برشی در جهت Y
E23: شماره طبقه | I23: وزن طبقه | N23: ارتفاع طبقه | R23: ارتفاع از تراز پایه | W23: Wi×Hi | AB23: Fi
E24: طبقه اول | I24: =AA6 -> 142 | N24: =N17 -> 2.8 | R24: =N24 -> 2.8 | W24: =I24*R24 -> 397.6 | AB24: =$Z$13*W24/$W$27 -> 6.060345885
E25: طبقه دوم | I25: =AA7 -> 156.50875 | N25: =N18 -> 3.5 | R25: =R24+N25 -> 6.3 | W25: =I25*R25 -> 986.005125 | AB25: =$Z$13*W25/$W$27 -> 15.02900428
E26: طبقه سوم | I26: 159.73375 | N26: 3.5 | R26: =R25+N26 -> 9.8 | W26: 1565.39075 | AB26: =$Z$13*W26/$W$27 -> 23.86018458
R27: ΣWi×Hi= | W27: =W24+W25+W26 -> 2948.995875 | AB27: =AB24+AB25+AB26 -> 44.94953475
E31: پخش نیروهای هر تراز بین قاب ها
E33: در جهت X | S33: در جهت Y
E34: سهم قاب مورد نظر از نیروی جانبی (درصد) | P34: 0.2 | S34: سهم قاب مورد نظر از نیروی جانبی (درصد) | AD34: 0.3
E36: شماره طبقه | I36: نیرو در جهت X | O36: نیرو در جهت Y | U36: نیروی جانبی در جهت X | AA36: نیروی جانبی در جهت Y
E37: طبقه اول | I37: =AB17 -> 7.590141934 | O37: =AB24 -> 6.060345885 | U37: =I37*$P$34 -> 1.518028387 | AA37: =O37*$AD$34 -> 1.818103766
E38: طبقه دوم | I38: =AB18 -> 18.82273352 | O38: =AB25 -> 15.02900428 | U38: =I38*$P$34 -> 3.764546703 | AA38: =O38*$AD$34 -> 4.508701284
E39: طبقه سوم | I39: 29.8831438 | O39: 23.86018458 | U39: 5.97662876 | AA39: 7.158055375
E42: محاسبه لنگر واژگونی در جهت X
E43: شماره طبقه | I43: ارتفاع طبقه | O43: ارتفاع از تراز پابه | U43: Fi | AA43: Fi × Hi
E44: طبقه اول | I44: =N17 -> 2.8 | O44: =I44 -> 2.8 | U44: =AB17 -> 7.590141934 | AA44: =O44*U44 -> 21.25239741
E45: طبقه دوم | I45: =N18 -> 3.5 | O45: =O44+I45 -> 6.3 | U45: =AB18 -> 18.82273352 | AA45: =O45*U45 -> 118.5832212
E46: طبقه سوم | I46: 3.5 | O46: =O45+I46 -> 9.8 | U46: 29.8831438 | AA46: 292.8548092
U47: Σ= | AA47: =AA44+AA45+AA46 -> 432.6904278
E50: محاسبه لنگر مقاوم در جهت X | M50: وزن سازه | R50: مرکز سطح X | W50: Mrx | AB50: =IF(W51/AA47>1.75,"OK","N.OK") -> OK
M51: =AA10 -> 484.8925 | R51: 4.2 | W51: =M51*R51 -> 2036.5485
E53: محاسبه لنگر واژگونی در جهت Y
E54: شماره طبقه | I54: ارتفاع طبقه | O54: ارتفاع از تراز پابه | U54: Fi | AA54: Fi × Hi
E55: طبقه اول | I55: =N17 -> 2.8 | O55: =I55 -> 2.8 | U55: =AB24 -> 6.060345885 | AA55: =O55*U55 -> 16.96896848
E56: طبقه دوم | I56: =N18 -> 3.5 | O56: =O55+I56 -> 6.3 | U56: =AB25 -> 15.02900428 | AA56: =O56*U56 -> 94.68272697
E57: طبقه سوم | I57: 3.5 | O57: =O56+I57 -> 9.8 | U57: 23.86018458 | AA57: 233.8298089
U58: Σ= | AA58: =AA55+AA56+AA57 -> 345.4815044
E61: محاسبه لنگر مقاوم در جهت Y | M61: وزن سازه | R61: مرکز سطح Y | W61: Mry | AB61: =IF(W62/AA58>1.75,"OK","N.OK") -> OK
M62: =AA10 -> 484.8925 | R62: 7.2 | W62: =M62*R62 -> 3491.226
G69: =U39 -> 5.97662876 | L69: 3 st
G73: =U38 -> 3.764546703 | L73: 2 st
G77: =U37 -> 1.518028387 | L77: 1 st
G85: =AA39 -> 7.158055375 | L85: 3 st
G89: =AA38 -> 4.508701284 | L89: 2 st
G93: =AA37 -> 1.818103766 | L93: 1 st

Sheet 4 طبقه
AJ1: بتنی | AM1: فولادی | AP1: select
A2: سیستم سازه | D2: محاسبه و تقسیم بار زلزله | AJ2: ='وزن سازه بتنی'!E2 -> تیپ 1:پارکینگ | AK2: ='وزن سازه بتنی'!L33 -> 174.25875 | AL2: ='وزن سازه بتنی'!S33 -> 34.25 | AM2: ='وزن سازه فولادی'!E2 -> تیپ 1:زیرزمین | AN2: ='وزن سازه فولادی'!L32 -> 135.15 | AO2: ='وزن سازه فولادی'!S32 -> 34.25 | AP2: =IF($AL$6=1,AM2,AJ2) -> تیپ 1:پارکینگ | AQ2: 174.25875 | AR2: 34.25
AJ3: ='وزن سازه بتنی'!E36 -> تیپ 2:مسکونی | AK3: ='وزن سازه بتنی'!L67 -> 183.01875 | AL3: ='وزن سازه بتنی'!S67 -> 34.25 | AM3: ='وزن سازه فولادی'!E36 -> تیپ 2:مسکونی | AN3: ='وزن سازه فولادی'!L66 -> 149.65875 | AO3: ='وزن سازه فولادی'!S66 -> 34.25 | AP3: تیپ 2:مسکونی | AQ3: 183.01875 | AR3: 34.25
E4: جهت تعیین بار جانبی زلزله ابتدا باید وزن سازه و ضریب زازله را بدست آوریم: | AJ4: ='وزن سازه بتنی'!E70 -> تیپ 3:بام | AK4: ='وزن سازه بتنی'!L101 -> 184.77375 | AL4: ='وزن سازه بتنی'!S101 -> 27 | AM4: ='وزن سازه فولادی'!E70 -> تیپ 3:بام | AN4: ='وزن سازه فولادی'!L100 -> 154.33375 | AO4: ='وزن سازه فولادی'!S100 -> 27 | AP4: تیپ 3:بام | AQ4: 184.77375 | AR4: 27
AJ5: ='وزن سازه بتنی'!E104 -> تیپ 4:خرپشته | AK5: ='وزن سازه بتنی'!L135 -> 28.925 | AL5: ='وزن سازه بتنی'!S135 -> 2.25 | AM5: ='وزن سازه فولادی'!E104 -> تیپ 4:خرپشته | AN5: ='وزن سازه فولادی'!L134 -> 20.85 | AO5: ='وزن سازه فولادی'!S134 -> 29 | AP5: تیپ 4:خرپشته | AQ5: 28.925 | AR5: 2.25
E6: شماره طبقه | I6: بار مرده | O6: بار زنده | U6: درصد مشارکت یار زنده | AA6: مجموع بار مرده و زنده | AL6: 2
E7: طبقه اول | I7: =CHOOSE(AJ7,$AQ$2,$AQ$3,$AQ$4,$AQ$5) -> 174.25875 | O7: =CHOOSE(AJ7,$AR$2,$AR$3,$AR$4,$AR$5) -> 34.25 | U7: 0.2 | AA7: =I7+O7*U7 -> 181.10875 | AJ7: 1
E8: طبقه دوم | I8: =CHOOSE(AJ8,$AQ$2,$AQ$3,$AQ$4,$AQ$5) -> 183.01875 | O8: =CHOOSE(AJ8,$AR$2,$AR$3,$AR$4,$AR$5) -> 34.25 | U8: 0.2 | AA8: =I8+O8*U8 -> 189.86875 | AJ8: 2
E9: طبقه سوم | I9: =CHOOSE(AJ9,$AQ$2,$AQ$3,$AQ$4,$AQ$5) -> 183.01875 | O9: =CHOOSE(AJ9,$AR$2,$AR$3,$AR$4,$AR$5) -> 34.25 | U9: 0.2 | AA9: 189.86875 | AJ9: 2
E10: طبقه چهارم | I10: =CHOOSE(AJ10,$AQ$2,$AQ$3,$AQ$4,$AQ$5) -> 184.77375 | O10: =CHOOSE(AJ10,$AR$2,$AR$3,$AR$4,$AR$5) -> 27 | U10: 0.2 | AA10: 190.17375 | AJ10: 3
E11: خرپشته | I11: =CHOOSE(AJ11,$AQ$2,$AQ$3,$AQ$4,$AQ$5) -> 28.925 | O11: =CHOOSE(AJ11,$AR$2,$AR$3,$AR$4,$AR$5) -> 2.25 | U11: 0.2 | AA11: 29.375 | AJ11: 4
U12: مجموع وزن سازه | AA12: =AA7+AA8+AA9+AA10+AA11 -> 780.395
E14: ضریب زلزله در جهت X | S14: ضریب زلزله در جهت Y
E15: =خلاصه!H29 -> 0.1161 | L15: =AA12*E15 -> 90.6038595 | S15: =خلاصه!D29 -> 0.0927 | Z15: =AA12*S15 -> 72.3426165
E17: توزیع نیروی برشی در جهت X
E18: شماره طبقه | I18: وزن طبقه | N18: ارتفاع طبقه | R18: ارتفاع از تراز پایه | W18: Wi×Hi | AB18: Fi
E19: طبقه اول | I19: =AA7 -> 181.10875 | N19: 2.8 | R19: =N19 -> 2.8 | W19: =I19*R19 -> 507.1045 | AB19: =$L$15*W19/$W$23 -> 7.540348892
E20: طبقه دوم | I20: =AA8 -> 189.86875 | N20: 3.5 | R20: =R19+N20 -> 6.3 | W20: =I20*R20 -> 1196.173125 | AB20: =$L$15*W20/$W$23 -> 17.78639846
E21: طبقه سوم | I21: =AA9 -> 189.86875 | N21: 3.5 | R21: =R20+N21 -> 9.8 | W21: 1860.71375 | AB21: =$L$15*W21/$W$23 -> 27.66773094
E22: طبقه چهارم | I22: =AA10 -> 190.17375 | N22: 3.5 | R22: 13.3 | W22: 2529.310875 | AB22: =$L$15*W22/$W$23 -> 37.60938121
R23: ΣWi×Hi= | W23: =W19+W20+W21+W22 -> 6093.30225 | AB23: =AB19+AB20+AB21+AB22 -> 90.6038595
E25: توزیع نیروی برشی در جهت Y
E26: شماره طبقه | I26: وزن طبقه | N26: ارتفاع طبقه | R26: ارتفاع از تراز پایه | W26: Wi×Hi | AB26: Fi
E27: طبقه اول | I27: =AA7 -> 181.10875 | N27: =N19 -> 2.8 | R27: =N27 -> 2.8 | W27: =I27*R27 -> 507.1045 | AB27: =$Z$15*W27/$W$31 -> 6.02058865
E28: طبقه دوم | I28: =AA8 -> 189.86875 | N28: =N20 -> 3.5 | R28: =R27+N28 -> 6.3 | W28: =I28*R28 -> 1196.173125 | AB28: =$Z$15*W28/$W$31 -> 14.20154296
E29: طبقه سوم | I29: =AA9 -> 189.86875 | N29: =N21 -> 3.5 | R29: =R28+N29 -> 9.8 | W29: 1860.71375 | AB29: =$Z$15*W29/$W$31 -> 22.09128904
E30: طبقه چهارم | I30: =AA10 -> 190.17375 | N30: =N22 -> 3.5 | R30: 13.3 | W30: 2529.310875 | AB30: =$Z$15*W30/$W$31 -> 30.02919585
R31: ΣWi×Hi= | W31: =W27+W28+W29+W30 -> 6093.30225 | AB31: =AB27+AB28+AB29+AB30 -> 72.3426165
E34: پخش نیروهای هر تراز بین قاب ها
E35: در جهت X | S35: در جهت Y
E36: سهم قاب مورد نظر از نیروی جانبی (درصد) | P36: 0.25 | S36: سهم قاب مورد نظر از نیروی جانبی (درصد) | AD36: 0.3
E38: شماره طبقه | I38: نیرو در جهت X | O38: نیرو در جهت Y | U38: نیروی جانبی در جهت X | AA38: نیروی جانبی در جهت Y
E39: طبقه اول | I39: =AB19 -> 7.540348892 | O39: =AB27 -> 6.02058865 | U39: =I39*$P$36 -> 1.885087223 | AA39: =O39*$AD$36 -> 1.806176595
E40: طبقه دوم | I40: =AB20 -> 17.78639846 | O40: =AB28 -> 14.20154296 | U40: =I40*$P$36 -> 4.446599615 | AA40: =O40*$AD$36 -> 4.260462887
E41: طبقه سوم | I41: 27.66773094 | O41: 22.09128904 | U41: =I41*$P$36 -> 6.916932734 | AA41: =O41*$AD$36 -> 6.627386713
E42: طبقه چهارم | I42: 37.60938121 | O42: 30.02919585 | U42: =I42*$P$36 -> 9.402345303 | AA42: =O42*$AD$36 -> 9.008758755
E44: محاسبه لنگر واژگونی در جهت X
E45: شماره طبقه | I45: ارتفاع طبقه | O45: ارتفاع از تراز پابه | U45: Fi | AA45: Fi × Hi
E46: طبقه اول | I46: =N19 -> 2.8 | O46: =I46 -> 2.8 | U46: =AB19 -> 7.540348892 | AA46: =O46*U46 -> 21.1129769
E47: طبقه دوم | I47: =N20 -> 3.5 | O47: =O46+I47 -> 6.3 | U47: =AB20 -> 17.78639846 | AA47: =O47*U47 -> 112.0543103
E48: طبقه سوم | I48: =N21 -> 3.5 | O48: =O47+I48 -> 9.8 | U48: 27.66773094 | AA48: 271.1437632
E49: طبقه چهارم | I49: =N22 -> 3.5 | O49: 13.3 | U49: 37.60938121 | AA49: 500.2047701
U50: Σ= | AA50: =AA46+AA47+AA48+AA49 -> 904.5158205
E52: محاسبه لنگر مقاوم در جهت X | M52: وزن سازه | R52: مرکز سطح X | W52: Mrx | AB52: =IF(W53/AA50>1.75,"OK","N.OK") -> OK
M53: =AA12 -> 780.395 | R53: 4.2 | W53: =M53*R53 -> 3277.659
E55: محاسبه لنگر واژگونی در جهت Y
E56: شماره طبقه | I56: ارتفاع طبقه | O56: ارتفاع از تراز پابه | U56: Fi | AA56: Fi × Hi
E57: طبقه اول | I57: =N19 -> 2.8 | O57: =I57 -> 2.8 | U57: =AB27 -> 6.02058865 | AA57: =O57*U57 -> 16.85764822
E58: طبقه دوم | I58: =N20 -> 3.5 | O58: =O57+I58 -> 6.3 | U58: =AB28 -> 14.20154296 | AA58: =O58*U58 -> 89.46972063
E59: طبقه سوم | I59: =N21 -> 3.5 | O59: =O58+I59 -> 9.8 | U59: 22.09128904 | AA59: 216.4946326
E60: طبقه چهارم | I60: =N22 -> 3.5 | O60: 13.3 | U60: 30.02919585 | AA60: 399.3883048
U61: Σ= | AA61: =AA57+AA58+AA59+AA60 -> 722.2103063
E63: محاسبه لنگر مقاوم در جهت Y | M63: وزن سازه | R63: مرکز سطح Y | W63: Mry | AB63: =IF(W64/AA61>1.75,"OK","N.OK") -> OK
M64: =AA12 -> 780.395 | R64: 7.2 | W64: =M64*R64 -> 5618.844
G68: =U42 -> 9.402345303 | L68: 4 st
G72: =U41 -> 6.916932734 | L72: 3 st
G76: =U40 -> 4.446599615 | L76: 2 st
G80: =U39 -> 1.885087223 | L80: 1 st
G84: =AA42 -> 9.008758755 | L84: 4 st
G88: =AA41 -> 6.627386713 | L88: 3 st
G92: =AA40 -> 4.260462887 | L92: 2 st
G96: =AA39 -> 1.806176595 | L96: 1 st

Sheet 5 طبقه
AJ1: بتنی | AM1: فولادی | AP1: select
A2: سیستم سازه | D2: محاسبه و تقسیم بار زلزله | AJ2: ='وزن سازه بتنی'!E2 -> تیپ 1:پارکینگ | AK2: ='وزن سازه بتنی'!L33 -> 174.25875 | AL2: ='وزن سازه بتنی'!S33 -> 34.25 | AM2: ='وزن سازه فولادی'!E2 -> تیپ 1:زیرزمین | AN2: ='وزن سازه فولادی'!L32 -> 135.15 | AO2: ='وزن سازه فولادی'!S32 -> 34.25 | AP2: =IF($AL$6=1,AM2,AJ2) -> تیپ 1:پارکینگ | AQ2: 174.25875 | AR2: 34.25
AJ3: ='وزن سازه بتنی'!E36 -> تیپ 2:مسکونی | AK3: ='وزن سازه بتنی'!L67 -> 183.01875 | AL3: ='وزن سازه بتنی'!S67 -> 34.25 | AM3: ='وزن سازه فولادی'!E36 -> تیپ 2:مسکونی | AN3: ='وزن سازه فولادی'!L66 -> 149.65875 | AO3: ='وزن سازه فولادی'!S66 -> 34.25 | AP3: تیپ 2:مسکونی | AQ3: 183.01875 | AR3: 34.25
E4: جهت تعیین بار جانبی زلزله ابتدا باید وزن سازه و ضریب زازله را بدست آوریم: | AJ4: ='وزن سازه بتنی'!E70 -> تیپ 3:بام | AK4: ='وزن سازه بتنی'!L101 -> 184.77375 | AL4: ='وزن سازه بتنی'!S101 -> 27 | AM4: ='وزن سازه فولادی'!E70 -> تیپ 3:بام | AN4: ='وزن سازه فولادی'!L100 -> 154.33375 | AO4: ='وزن سازه فولادی'!S100 -> 27 | AP4: تیپ 3:بام | AQ4: 184.77375 | AR4: 27
E5: شماره طبقه | I5: بار مرده | O5: بار زنده | U5: درصد مشارکت یار زنده | AA5: مجموع بار مرده و زنده | AJ5: ='وزن سازه بتنی'!E104 -> تیپ 4:خرپشته | AK5: ='وزن سازه بتنی'!L135 -> 28.925 | AL5: ='وزن سازه بتنی'!S135 -> 2.25 | AM5: ='وزن سازه فولادی'!E104 -> تیپ 4:خرپشته | AN5: ='وزن سازه فولادی'!L134 -> 20.85 | AO5: ='وزن سازه فولادی'!S134 -> 29 | AP5: تیپ 4:خرپشته | AQ5: 28.925 | AR5: 2.25
E6: طبقه اول | I6: =CHOOSE(AJ6,$AQ$2,$AQ$3,$AQ$4,$AQ$5) -> 174.25875 | O6: =CHOOSE(AJ6,$AR$2,$AR$3,$AR$4,$AR$5) -> 34.25 | U6: 0.2 | AA6: =I6+O6*U6 -> 181.10875 | AJ6: 1 | AL6: 2
E7: طبقه دوم | I7: 183.01875 | O7: 34.25 | U7: 0.2 | AA7: =I7+O7*U7 -> 189.86875 | AJ7: 2
E8: طبقه سوم | I8: 183.01875 | O8: 34.25 | U8: 0.2 | AA8: 189.86875 | AJ8: 2
E9: طبقه چهارم | I9: 183.01875 | O9: 34.25 | U9: 0.2 | AA9: 189.86875 | AJ9: 2
E10: طبقه پنجم | I10: 184.77375 | O10: 27 | U10: 0.2 | AA10: 190.17375 | AJ10: 3
E11: خرپشته | I11: 28.925 | O11: 2.25 | U11: 0.2 | AA11: 29.375 | AJ11: 4
U12: مجموع وزن سازه | AA12: =AA6+AA7+AA8+AA9+AA10+AA11 -> 970.26375
E14: ضریب زلزله در جهت X | S14: ضریب زلزله در جهت Y
E15: =خلاصه!H29 -> 0.1161 | L15: =AA12*E15 -> 112.6476214 | S15: =خلاصه!D29 -> 0.0927 | Z15: =AA12*S15 -> 89.94344962
E17: توزیع نیروی برشی در جهت X
E18: شماره طبقه | I18: وزن طبقه | N18: ارتفاع طبقه | R18: ارتفاع از تراز پایه | W18: Wi×Hi | AB18: Fi
E19: طبقه اول | I19: =AA6 -> 181.10875 | N19: 2.8 | R19: =N19 -> 2.8 | W19: =I19*R19 -> 507.1045 | AB19: =$L$15*W19/$W$24 -> 6.152854592
E20: طبقه دوم | I20: =AA7 -> 189.86875 | N20: 3.5 | R20: =R19+N20 -> 6.3 | W20: =I20*R20 -> 1196.173125 | AB20: =$L$15*W20/$W$24 -> 14.51353578
E21: طبقه سوم | I21: 189.86875 | N21: 3.5 | R21: =R20+N21 -> 9.8 | W21: 1860.71375 | AB21: 22.57661121
E22: طبقه چهارم | I22: 189.86875 | N22: 3.5 | R22: 13.3 | W22: 2525.254375 | AB22: 30.63968665
E23: طبقه پنجم | I23: 190.17375 | N23: 3.5 | R23: 16.8 | W23: 3194.919 | AB23: 38.76493314
R24: ΣWi×Hi= | W24: =W19+W20+W21+W22+W23 -> 9284.16475 | AB24: =AB19+AB20+AB21+AB22+AB23 -> 112.6476214
E26: توزیع نیروی برشی در جهت Y
E27: شماره طبقه | I27: وزن طبقه | N27: ارتفاع طبقه | R27: ارتفاع از تراز پایه | W27: Wi×Hi | AB27: Fi
E28: طبقه اول | I28: =AA6 -> 181.10875 | N28: =N19 -> 2.8 | R28: =N28 -> 2.8 | W28: =I28*R28 -> 507.1045 | AB28: =$Z$15*W28/$W$33 -> 4.912744364
E29: طبقه دوم | I29: =AA7 -> 189.86875 | N29: =N20 -> 3.5 | R29: =R28+N29 -> 6.3 | W29: =I29*R29 -> 1196.173125 | AB29: =$Z$15*W29/$W$33 -> 11.58832702
E30: طبقه سوم | I30: 189.86875 | N30: 3.5 | R30: =R29+N30 -> 9.8 | W30: 1860.71375 | AB30: 18.02628647
E31: طبقه چهارم | I31: 189.86875 | N31: 3.5 | R31: 13.3 | W31: 2525.254375 | AB31: 24.46424593
E32: طبقه پنجم | I32: 190.17375 | N32: 3.5 | R32: 16.8 | W32: 3194.919 | AB32: 30.95184584
R33: ΣWi×Hi= | W33: =W28+W29+W30+W31+W32 -> 9284.16475 | AB33: =AB28+AB29+AB30+AB31+AB32 -> 89.94344962
E36: پخش نیروهای هر تراز بین قاب ها
E37: در جهت X | S37: در جهت Y
E38: سهم قاب مورد نظر از نیروی جانبی (درصد) | P38: 0.25 | S38: سهم قاب مورد نظر از نیروی جانبی (درصد) | AD38: 0.3
E40: شماره طبقه | I40: نیرو در جهت X | O40: نیرو در جهت Y | U40: نیروی جانبی در جهت X | AA40: نیروی جانبی در جهت Y
E41: طبقه اول | I41: =AB19 -> 6.152854592 | O41: =AB28 -> 4.912744364 | U41: =I41*$P$38 -> 1.538213648 | AA41: =O41*$AD$38 -> 1.473823309
E42: طبقه دوم | I42: =AB20 -> 14.51353578 | O42: =AB29 -> 11.58832702 | U42: =I42*$P$38 -> 3.628383945 | AA42: =O42*$AD$38 -> 3.476498105
E43: طبقه سوم | I43: 22.57661121 | O43: 18.02628647 | U43: 5.644152803 | AA43: 5.407885942
E44: طبقه چهارم | I44: 30.63968665 | O44: 24.46424593 | U44: 7.659921662 | AA44: 7.339273778
E45: طبقه پنجم | I45: 38.76493314 | O45: 30.95184584 | U45: 9.691233286 | AA45: 9.285553753
E47: محاسبه لنگر واژگونی در جهت X
E48: شماره طبقه | I48: ارتفاع طبقه | O48: ارتفاع از تراز پابه | U48: Fi | AA48: Fi × Hi
E49: طبقه اول | I49: =N19 -> 2.8 | O49: =I49 -> 2.8 | U49: =AB19 -> 6.152854592 | AA49: =O49*U49 -> 17.22799286
E50: طبقه دوم | I50: =N20 -> 3.5 | O50: =O49+I50 -> 6.3 | U50: =AB20 -> 14.51353578 | AA50: =O50*U50 -> 91.43527541
E51: طبقه سوم | I51: 3.5 | O51: =O50+I51 -> 9.8 | U51: 22.57661121 | AA51: 221.2507899
E52: طبقه چهارم | I52: 3.5 | O52: 13.3 | U52: 30.63968665 | AA52: 407.5078324
E53: طبقه پنجم | I53: 3.5 | O53: 16.8 | U53: 38.76493314 | AA53: 651.2508768
U54: Σ= | AA54: =AA49+AA50+AA51+AA52+AA53 -> 1388.672767
E56: محاسبه لنگر مقاوم در جهت X | M56: وزن سازه | R56: مرکز سطح X | W56: Mrx | AB56: =IF(W57/AA54>1.75,"OK","N.OK") -> OK
M57: =AA12 -> 970.26375 | R57: 4.2 | W57: =M57*R57 -> 4075.10775
E59: محاسبه لنگر واژگونی در جهت Y
E60: شماره طبقه | I60: ارتفاع طبقه | O60: ارتفاع از تراز پابه | U60: Fi | AA60: Fi × Hi
E61: طبقه اول | I61: =N19 -> 2.8 | O61: =I61 -> 2.8 | U61: =AB28 -> 4.912744364 | AA61: =O61*U61 -> 13.75568422
E62: طبقه دوم | I62: =N20 -> 3.5 | O62: =O61+I62 -> 6.3 | U62: =AB29 -> 11.58832702 | AA62: =O62*U62 -> 73.00646021
E63: طبقه سوم | I63: 3.5 | O63: =O62+I63 -> 9.8 | U63: 18.02628647 | AA63: 176.6576074
E64: طبقه چهارم | I64: 3.5 | O64: 13.3 | U64: 24.46424593 | AA64: 325.3744708
E65: طبقه پنجم | I65: 3.5 | O65: 16.8 | U65: 30.95184584 | AA65: 519.9910102
U66: Σ= | AA66: =AA61+AA62+AA63+AA64+AA65 -> 1108.785233
E68: محاسبه لنگر مقاوم در جهت Y | M68: وزن سازه | R68: مرکز سطح Y | W68: Mry | AB68: =IF(W69/AA66>1.75,"OK","N.OK") -> OK
M69: =AA12 -> 970.26375 | R69: 7.2 | W69: =M69*R69 -> 6985.899
G73: =U45 -> 9.691233286
G76: =U44 -> 7.659921662
G79: =U43 -> 5.644152803
G82: =U42 -> 3.628383945
G85: =U41 -> 1.538213648
G90: =AA45 -> 9.285553753
G93: =AA44 -> 7.339273778
G96: =AA43 -> 5.407885942
G99: =AA42 -> 3.476498105
G102: =AA41 -> 1.473823309

Sheet 6 طبقه
AJ1: بتنی | AM1: فولادی
A2: سیستم سازه | D2: محاسبه و تقسیم بار زلزله | AJ2: ='وزن سازه بتنی'!E2 -> تیپ 1:پارکینگ | AK2: ='وزن سازه بتنی'!L33 -> 174.25875 | AL2: ='وزن سازه بتنی'!S33 -> 34.25 | AM2: ='وزن سازه فولادی'!E2 -> تیپ 1:زیرزمین | AN2: ='وزن سازه فولادی'!L32 -> 135.15 | AO2: ='وزن سازه فولادی'!S32 -> 34.25
AJ3: ='وزن سازه بتنی'!E36 -> تیپ 2:مسکونی | AK3: ='وزن سازه بتنی'!L67 -> 183.01875 | AL3: ='وزن سازه بتنی'!S67 -> 34.25 | AM3: ='وزن سازه فولادی'!E36 -> تیپ 2:مسکونی | AN3: ='وزن سازه فولادی'!L66 -> 149.65875 | AO3: ='وزن سازه فولادی'!S66 -> 34.25
AJ4: ='وزن سازه بتنی'!E70 -> تیپ 3:بام | AK4: ='وزن سازه بتنی'!L101 -> 184.77375 | AL4: ='وزن سازه بتنی'!S101 -> 27 | AM4: ='وزن سازه فولادی'!E70 -> تیپ 3:بام | AN4: ='وزن سازه فولادی'!L100 -> 154.33375 | AO4: ='وزن سازه فولادی'!S100 -> 27
E5: جهت تعیین بار جانبی زلزله ابتدا باید وزن سازه و ضریب زازله را بدست آوریم: | AJ5: ='وزن سازه بتنی'!E104 -> تیپ 4:خرپشته | AK5: ='وزن سازه بتنی'!L135 -> 28.925 | AL5: ='وزن سازه بتنی'!S135 -> 2.25 | AM5: ='وزن سازه فولادی'!E104 -> تیپ 4:خرپشته | AN5: ='وزن سازه فولادی'!L134 -> 20.85 | AO5: ='وزن سازه فولادی'!S134 -> 29
AL6: 1 | AM6: select
E7: شماره طبقه | I7: بار مرده | O7: بار زنده | U7: درصد مشارکت یار زنده | AA7: مجموع بار مرده و زنده | AM7: =IF($AL$6=1,AM2,AJ2) -> تیپ 1:زیرزمین | AN7: =IF($AL$6=1,AN2,AK2) -> 135.15 | AO7: =IF($AL$6=1,AO2,AL2) -> 34.25
E8: طبقه اول | I8: =CHOOSE(AJ8,$AN$7,$AN$8,$AN$9,$AN$10) -> 135.15 | O8: =CHOOSE(AJ8,$AO$7,$AO$8,$AO$9,$AO$10) -> 34.25 | U8: 0.2 | AA8: =I8+O8*U8 -> 142 | AJ8: 1 | AM8: =IF($AL$6=1,AM3,AJ3) -> تیپ 2:مسکونی | AN8: 149.65875 | AO8: 34.25
E9: طبقه دوم | I9: =CHOOSE(AJ9,$AN$7,$AN$8,$AN$9,$AN$10) -> 149.65875 | O9: =CHOOSE(AJ9,$AO$7,$AO$8,$AO$9,$AO$10) -> 34.25 | U9: 0.2 | AA9: =I9+O9*U9 -> 156.50875 | AJ9: 2 | AM9: تیپ 3:بام | AN9: 154.33375 | AO9: 27
E10: طبقه سوم | I10: 149.65875 | O10: 34.25 | U10: 0.2 | AA10: 156.50875 | AJ10: 2 | AM10: تیپ 4:خرپشته | AN10: 20.85 | AO10: 29
E11: طبقه چهارم | I11: 149.65875 | O11: 34.25 | U11: 0.2 | AA11: 156.50875 | AJ11: 2
E12: طبقه پنجم | I12: 149.65875 | O12: 34.25 | U12: 0.2 | AA12: 156.50875 | AJ12: 2
E13: طبقه ششم | I13: 154.33375 | O13: 27 | U13: 0.2 | AA13: 159.73375 | AJ13: 3
E14: خرپشته | I14: 20.85 | O14: 29 | U14: 0.2 | AA14: 26.65 | AJ14: 4
U15: مجموع وزن سازه | AA15: =AA8+AA9+AA10+AA11+AA12+AA13+AA14 -> 954.41875
E17: ضریب زلزله در جهت X | S17: ضریب زلزله در جهت Y
E18: =خلاصه!H29 -> 0.1161 | L18: =AA15*E18 -> 110.8080169 | S18: =خلاصه!D29 -> 0.0927 | Z18: =AA15*S18 -> 88.47461812
E20: توزیع نیروی برشی در جهت X
E21: شماره طبقه | I21: وزن طبقه | N21: ارتفاع طبقه | R21: ارتفاع از تراز پایه | W21: Wi×Hi | AB21: Fi
E22: طبقه اول | I22: =AA8 -> 142 | N22: 2.8 | R22: =N22 -> 2.8 | W22: =I22*R22 -> 397.6 | AB22: =$L$18*W22/$W$28 -> 4.268758822
E23: طبقه دوم | I23: =AA9 -> 156.50875 | N23: 2.8 | R23: =R22+N23 -> 5.6 | W23: =I23*R23 -> 876.449 | AB23: 9.409832496
E24: طبقه سوم | I24: 156.50875 | N24: 3.5 | R24: =R23+N24 -> 9.1 | W24: 1424.229625 | AB24: 15.29097781
E25: طبقه چهارم | I25: 156.50875 | N25: 3.5 | R25: 12.6 | W25: 1972.01025 | AB25: 21.17212312
E26: طبقه پنجم | I26: 156.50875 | N26: 3.5 | R26: 16.1 | W26: 2519.790875 | AB26: 27.05326843
E27: طبقه ششم | I27: 159.73375 | N27: 3.5 | R27: 19.6 | W27: 3130.7815 | AB27: 33.61305621
R28: ΣWi×Hi= | W28: =W22+W23+W24+W25+W26+W27 -> 10320.86125 | AB28: =AB22+AB23+AB24+AB25+AB26+AB27 -> 110.8080169
E30: توزیع نیروی برشی در جهت Y
E31: شماره طبقه | I31: وزن طبقه | N31: ارتفاع طبقه | R31: ارتفاع از تراز پایه | W31: Wi×Hi | AB31: Fi
E32: طبقه اول | I32: =AA8 -> 142 | N32: =N22 -> 2.8 | R32: =N32 -> 2.8 | W32: =I32*R32 -> 397.6 | AB32: =$Z$18*W32/$W$38 -> 3.408388827
E33: طبقه دوم | I33: =AA9 -> 156.50875 | N33: 2.8 | R33: =R32+N33 -> 5.6 | W33: =I33*R33 -> 876.449 | AB33: 7.51327711
E34: طبقه سوم | I34: 156.50875 | N34: 3.5 | R34: =R33+N34 -> 9.1 | W34: 1424.229625 | AB34: 12.2090753
E35: طبقه چهارم | I35: 156.50875 | N35: 3.5 | R35: 12.6 | W35: 1972.01025 | AB35: 16.9048735
E36: طبقه پنجم | I36: 156.50875 | N36: 3.5 | R36: 16.1 | W36: 2519.790875 | AB36: 21.60067169
E37: طبقه ششم | I37: 159.73375 | N37: 3.5 | R37: 19.6 | W37: 3130.7815 | AB37: 26.8383317
R38: ΣWi×Hi= | W38: =W32+W33+W34+W35+W36+W37 -> 10320.86125 | AB38: =AB32+AB33+AB34+AB35+AB36+AB37 -> 88.47461812
E43: پخش نیروهای هر تراز بین قاب ها
E44: در جهت X | S44: در جهت Y
E45: سهم قاب مورد نظر از نیروی جانبی (درصد) | P45: 0.3 | S45: سهم قاب مورد نظر از نیروی جانبی (درصد) | AD45: 0.2
E47: شماره طبقه | I47: نیرو در جهت X | O47: نیرو در جهت Y | U47: نیروی جانبی در جهت X | AA47: نیروی جانبی در جهت Y
E48: طبقه اول | I48: =AB22 -> 4.268758822 | O48: =AB32 -> 3.408388827 | U48: =I48*$P$45 -> 1.280627647 | AA48: =O48*$AD$45 -> 0.6816777653
E49: طبقه دوم | I49: 9.409832496 | O49: 7.51327711 | U49: =I49*$P$45 -> 2.822949749 | AA49: =O49*$AD$45 -> 1.502655422
E50: طبقه سوم | I50: 15.29097781 | O50: 12.2090753 | U50: 4.587293342 | AA50: 2.441815061
E51: طبقه چهارم | I51: 21.17212312 | O51: 16.9048735 | U51: 6.351636935 | AA51: 3.380974699
E52: طبقه پنجم | I52: 27.05326843 | O52: 21.60067169 | U52: 8.115980528 | AA52: 4.320134338
E53: طبقه ششم | I53: 33.61305621 | O53: 26.8383317 | U53: 10.08391686 | AA53: 5.36766634
E55: محاسبه لنگر واژگونی در جهت X
E56: شماره طبقه | I56: ارتفاع طبقه | O56: ارتفاع از تراز پابه | U56: Fi | AA56: Fi × Hi
E57: طبقه اول | I57: =N22 -> 2.8 | O57: =I57 -> 2.8 | U57: =AB22 -> 4.268758822 | AA57: =O57*U57 -> 11.9525247
E58: طبقه دوم | I58: 2.8 | O58: =O57+I58 -> 5.6 | U58: 9.409832496 | AA58: =O58*U58 -> 52.69506198
E59: طبقه سوم | I59: 3.5 | O59: =O58+I59 -> 9.1 | U59: 15.29097781 | AA59: 139.147898
E60: طبقه چهارم | I60: 3.5 | O60: 12.6 | U60: 21.17212312 | AA60: 266.7687513
E61: طبقه پنجم | I61: 3.5 | O61: 16.1 | U61: 27.05326843 | AA61: 435.5576217
E62: طبقه ششم | I62: 3.5 | O62: 19.6 | U62: 33.61305621 | AA62: 658.8159016
U63: Σ= | AA63: =AA57+AA58+AA59+AA60+AA61+AA62 -> 1564.937759
E65: محاسبه لنگر مقاوم در جهت X | M65: وزن سازه | R65: مرکز سطح X | W65: Mrx | AB65: =IF(W66/AA63>=1.75,"OK","N.OK") -> OK
M66: =AA15 -> 954.41875 | R66: 4.15 | W66: =M66*R66 -> 3960.837812
E68: محاسبه لنگر واژگونی در جهت Y
E69: شماره طبقه | I69: ارتفاع طبقه | O69: ارتفاع از تراز پابه | U69: Fi | AA69: Fi × Hi
E70: طبقه اول | I70: =N22 -> 2.8 | O70: =I70 -> 2.8 | U70: =AB32 -> 3.408388827 | AA70: =O70*U70 -> 9.543488715
E71: طبقه دوم | I71: 2.8 | O71: =O70+I71 -> 5.6 | U71: 7.51327711 | AA71: =O71*U71 -> 42.07435181
E72: طبقه سوم | I72: 3.5 | O72: =O71+I72 -> 9.1 | U72: 12.2090753 | AA72: 111.1025853
E73: طبقه چهارم | I73: 3.5 | O73: 12.6 | U73: 16.9048735 | AA73: 213.0014061
E74: طبقه پنجم | I74: 3.5 | O74: 16.1 | U74: 21.60067169 | AA74: 347.7708142
E75: طبقه ششم | I75: 3.5 | O75: 19.6 | U75: 26.8383317 | AA75: 526.0313013
U76: Σ= | AA76: =AA70+AA71+AA72+AA73+AA74+AA75 -> 1249.523947
E78: محاسبه لنگر مقاوم در جهت Y | M78: وزن سازه | R78: مرکز سطح Y | W78: Mry | AB78: =IF(W79/AA76>=1.75,"OK","N.OK") -> OK
M79: =AA15 -> 954.41875 | R79: 7.2 | W79: =M79*R79 -> 6871.815
G84: =U53 -> 10.08391686 | L84: 6 st
G88: =U52 -> 8.115980528 | L88: 5 st
G92: =U51 -> 6.351636935 | L92: 4 st
G96: =U50 -> 4.587293342 | L96: 3 st
G100: =U49 -> 2.822949749 | L100: 2 st
G104: =U48 -> 1.280627647 | L104: 1 st
G109: =AA53 -> 5.36766634 | L109: 6 st
G113: =AA52 -> 4.320134338 | L113: 5 st
G117: =AA51 -> 3.380974699 | L117: 4 st
G121: =AA50 -> 2.441815061 | L121: 3 st
G125: =AA49 -> 1.502655422 | L125: 2 st
G129: =AA48 -> 0.6816777653 | L129: 1 st

Sheet 7 طبقه
AJ1: بتنی | AM1: فولادی
A2: سیستم سازه | D2: محاسبه و تقسیم بار زلزله | AJ2: ='وزن سازه بتنی'!E2 -> تیپ 1:پارکینگ | AK2: ='وزن سازه بتنی'!L33 -> 174.25875 | AL2: ='وزن سازه بتنی'!S33 -> 34.25 | AM2: ='وزن سازه فولادی'!E2 -> تیپ 1:زیرزمین | AN2: ='وزن سازه فولادی'!L32 -> 135.15 | AO2: ='وزن سازه فولادی'!S32 -> 34.25
AJ3: ='وزن سازه بتنی'!E36 -> تیپ 2:مسکونی | AK3: ='وزن سازه بتنی'!L67 -> 183.01875 | AL3: ='وزن سازه بتنی'!S67 -> 34.25 | AM3: ='وزن سازه فولادی'!E36 -> تیپ 2:مسکونی | AN3: ='وزن سازه فولادی'!L66 -> 149.65875 | AO3: ='وزن سازه فولادی'!S66 -> 34.25
AJ4: ='وزن سازه بتنی'!E70 -> تیپ 3:بام | AK4: ='وزن سازه بتنی'!L101 -> 184.77375 | AL4: ='وزن سازه بتنی'!S101 -> 27 | AM4: ='وزن سازه فولادی'!E70 -> تیپ 3:بام | AN4: ='وزن سازه فولادی'!L100 -> 154.33375 | AO4: ='وزن سازه فولادی'!S100 -> 27
E5: جهت تعیین بار جانبی زلزله ابتدا باید وزن سازه و ضریب زازله را بدست آوریم: | AJ5: ='وزن سازه بتنی'!E104 -> تیپ 4:خرپشته | AK5: ='وزن سازه بتنی'!L135 -> 28.925 | AL5: ='وزن سازه بتنی'!S135 -> 2.25 | AM5: ='وزن سازه فولادی'!E104 -> تیپ 4:خرپشته | AN5: ='وزن سازه فولادی'!L134 -> 20.85 | AO5: ='وزن سازه فولادی'!S134 -> 29
AL6: 2 | AM6: select
E7: شماره طبقه | I7: بار مرده | O7: بار زنده | U7: درصد مشارکت یار زنده | AA7: مجموع بار مرده و زنده | AM7: =IF($AL$6=1,AM2,AJ2) -> تیپ 1:پارکینگ | AN7: =IF($AL$6=1,AN2,AK2) -> 174.25875 | AO7: =IF($AL$6=1,AO2,AL2) -> 34.25
E8: طبقه اول | I8: =CHOOSE(AJ8,$AN$7,$AN$8,$AN$9,$AN$10) -> 174.25875 | O8: =CHOOSE(AJ8,$AO$7,$AO$8,$AO$9,$AO$10) -> 34.25 | U8: 0.2 | AA8: =I8+O8*U8 -> 181.10875 | AJ8: 1 | AM8: =IF($AL$6=1,AM3,AJ3) -> تیپ 2:مسکونی | AN8: 183.01875 | AO8: 34.25
E9: طبقه دوم | I9: =CHOOSE(AJ9,$AN$7,$AN$8,$AN$9,$AN$10) -> 183.01875 | O9: =CHOOSE(AJ9,$AO$7,$AO$8,$AO$9,$AO$10) -> 34.25 | U9: 0.2 | AA9: =I9+O9*U9 -> 189.86875 | AJ9: 2 | AM9: تیپ 3:بام | AN9: 184.77375 | AO9: 27
E10: طبقه سوم | I10: 183.01875 | O10: 34.25 | U10: 0.2 | AA10: 189.86875 | AJ10: 2 | AM10: تیپ 4:خرپشته | AN10: 28.925 | AO10: 2.25
E11: طبقه چهارم | I11: 183.01875 | O11: 34.25 | U11: 0.2 | AA11: 189.86875 | AJ11: 2
E12: طبقه پنجم | I12: 183.01875 | O12: 34.25 | U12: 0.2 | AA12: 189.86875 | AJ12: 2
E13: طبقه ششم | I13: 183.01875 | O13: 34.25 | U13: 0.2 | AA13: 189.86875 | AJ13: 2
E14: طبقه هفتم | I14: 183.01875 | O14: 34.25 | U14: 0.2 | AA14: 189.86875 | AJ14: 2
E15: خرپشته | I15: 184.77375 | O15: 27 | U15: 0.2 | AA15: 190.17375 | AJ15: 3
U16: مجموع وزن سازه | AA16: =AA8+AA9+AA10+AA11+AA12+AA13+AA14+AA15 -> 1510.495
E18: ضریب زلزله در جهت X | S18: ضریب زلزله در جهت Y
E19: =خلاصه!H29 -> 0.1161 | L19: =AA16*E19 -> 175.3684695 | S19: =خلاصه!D29 -> 0.0927 | Z19: =AA16*S19 -> 140.0228865
E21: توزیع نیروی برشی در جهت X
E22: شماره طبقه | I22: وزن طبقه | N22: ارتفاع طبقه | R22: ارتفاع از تراز پایه | W22: Wi×Hi | AB22: Fi
E23: طبقه اول | I23: =AA8 -> 181.10875 | N23: 2.8 | R23: =N23 -> 2.8 | W23: =I23*R23 -> 507.1045 | AB23: =$L$19*W23/$W$30 -> 5.276248878
E24: طبقه دوم | I24: 189.86875 | N24: 2.8 | R24: =R23+N24 -> 5.6 | W24: =I24*R24 -> 1063.265 | AB24: 11.06290866
E25: طبقه سوم | I25: 189.86875 | N25: 3.5 | R25: =R24+N25 -> 9.1 | W25: 1727.805625 | AB25: 17.97722657
E26: طبقه چهارم | I26: 189.86875 | N26: 3.5 | R26: 12.6 | W26: 2392.34625 | AB26: 24.89154448
E27: طبقه پنجم | I27: 189.86875 | N27: 3.5 | R27: 16.1 | W27: 3056.886875 | AB27: 31.80586239
E28: طبقه ششم | I28: 189.86875 | N28: 3.5 | R28: 19.6 | W28: 3721.4275 | AB28: 38.7201803
E29: طبقه هفتم | I29: 189.86875 | N29: 3.5 | R29: 23.1 | W29: 4385.968125 | AB29: 45.63449822
R30: ΣWi×Hi= | W30: =W23+W24+W25+W26+W27+W28+W29 -> 16854.80387 | AB30: =AB23+AB24+AB25+AB26+AB27+AB28+AB29 -> 175.3684695
E32: توزیع نیروی برشی در جهت Y
E33: شماره طبقه | I33: وزن طبقه | N33: ارتفاع طبقه | R33: ارتفاع از تراز پایه | W33: Wi×Hi | AB33: Fi
E34: طبقه اول | I34: =AA8 -> 181.10875 | N34: =N23 -> 2.8 | R34: =N34 -> 2.8 | W34: =I34*R34 -> 507.1045 | AB34: =$Z$19*W34/$W$41 -> 4.212818872
E35: طبقه دوم | I35: 189.86875 | N35: 2.8 | R35: =R34+N35 -> 5.6 | W35: =I35*R35 -> 1063.265 | AB35: 8.83317513
E36: طبقه سوم | I36: 189.86875 | N36: 3.5 | R36: =R35+N36 -> 9.1 | W36: 1727.805625 | AB36: 14.35390959
E37: طبقه چهارم | I37: 189.86875 | N37: 3.5 | R37: 12.6 | W37: 2392.34625 | AB37: 19.87464404
E38: طبقه پنجم | I38: 189.86875 | N38: 3.5 | R38: 16.1 | W38: 3056.886875 | AB38: 25.3953785
E39: طبقه ششم | I39: 189.86875 | N39: 3.5 | R39: 19.6 | W39: 3721.4275 | AB39: 30.91611296
E40: طبقه هفتم | I40: 189.86875 | N40: 3.5 | R40: 23.1 | W40: 4385.968125 | AB40: 36.43684741
R41: ΣWi×Hi= | W41: =W34+W35+W36+W37+W38+W39+W40 -> 16854.80387 | AB41: =AB34+AB35+AB36+AB37+AB38+AB39+AB40 -> 140.0228865
E46: پخش نیروهای هر تراز بین قاب ها
E47: در جهت X | S47: در جهت Y
E48: سهم قاب مورد نظر از نیروی جانبی (درصد) | P48: 0.25 | S48: سهم قاب مورد نظر از نیروی جانبی (درصد) | AD48: 0.25
E50: شماره طبقه | I50: نیرو در جهت X | O50: نیرو در جهت Y | U50: نیروی جانبی در جهت X | AA50: نیروی جانبی در جهت Y
E51: طبقه اول | I51: =AB23 -> 5.276248878 | O51: =AB34 -> 4.212818872 | U51: =I51*$P$48 -> 1.31906222 | AA51: =O51*$AD$48 -> 1.053204718
E52: طبقه دوم | I52: 11.06290866 | O52: 8.83317513 | U52: 2.765727165 | AA52: 2.208293783
E53: طبقه سوم | I53: 17.97722657 | O53: 14.35390959 | U53: 4.494306642 | AA53: 3.588477397
E54: طبقه چهارم | I54: 24.89154448 | O54: 19.87464404 | U54: 6.22288612 | AA54: 4.968661011
E55: طبقه پنجم | I55: 31.80586239 | O55: 25.3953785 | U55: 7.951465598 | AA55: 6.348844625
E56: طبقه ششم | I56: 38.7201803 | O56: 30.91611296 | U56: 9.680045076 | AA56: 7.729028239
E57: طبقه هفتم | I57: 45.63449822 | O57: 36.43684741 | U57: 11.40862455 | AA57: 9.109211853
E60: محاسبه لنگر واژگونی در جهت X
E61: شماره طبقه | I61: ارتفاع طبقه | O61: ارتفاع از تراز پابه | U61: Fi | AA61: Fi × Hi
E62: طبقه اول | I62: =N23 -> 2.8 | O62: =I62 -> 2.8 | U62: =AB23 -> 5.276248878 | AA62: =O62*U62 -> 14.77349686
E63: طبقه دوم | I63: 2.8 | O63: =O62+I63 -> 5.6 | U63: 11.06290866 | AA63: =O63*U63 -> 61.95228849
E64: طبقه سوم | I64: 3.5 | O64: =O63+I64 -> 9.1 | U64: 17.97722657 | AA64: 163.5927618
E65: طبقه چهارم | I65: 3.5 | O65: 12.6 | U65: 24.89154448 | AA65: 313.6334605
E66: طبقه پنجم | I66: 3.5 | O66: 16.1 | U66: 31.80586239 | AA66: 512.0743845
E67: طبقه ششم | I67: 3.5 | O67: 19.6 | U67: 38.7201803 | AA67: 758.915534
E68: طبقه هفتم | I68: 3.5 | O68: 23.1 | U68: 45.63449822 | AA68: 1054.156909
U69: Σ= | AA69: =AA62+AA63+AA64+AA65+AA66+AA67+AA68 -> 2879.098835
E72: محاسبه لنگر مقاوم در جهت X | M72: وزن سازه | R72: مرکز سطح X | W72: Mrx | AB72: =IF(W73/AA69>=1.75,"OK","N.OK") -> OK
M73: =AA16 -> 1510.495 | R73: 4.15 | W73: =M73*R73 -> 6268.55425
E75: محاسبه لنگر واژگونی در جهت Y
E76: شماره طبقه | I76: ارتفاع طبقه | O76: ارتفاع از تراز پابه | U76: Fi | AA76: Fi × Hi
E77: طبقه اول | I77: =N23 -> 2.8 | O77: =I77 -> 2.8 | U77: =AB34 -> 4.212818872 | AA77: =O77*U77 -> 11.79589284
E78: طبقه دوم | I78: 2.8 | O78: =O77+I78 -> 5.6 | U78: 8.83317513 | AA78: =O78*U78 -> 49.46578073
E79: طبقه سوم | I79: 3.5 | O79: =O78+I79 -> 9.1 | U79: 14.35390959 | AA79: 130.6205772
E80: طبقه چهارم | I80: 3.5 | O80: 12.6 | U80: 19.87464404 | AA80: 250.4205149
E81: طبقه پنجم | I81: 3.5 | O81: 16.1 | U81: 25.3953785 | AA81: 408.8655938
E82: طبقه ششم | I82: 3.5 | O82: 19.6 | U82: 30.91611296 | AA82: 605.9558139
E83: طبقه هفتم | I83: 3.5 | O83: 23.1 | U83: 36.43684741 | AA83: 841.6911752
U84: Σ= | AA84: =AA77+AA78+AA79+AA80+AA81+AA82+AA83 -> 2298.815349
E87: محاسبه لنگر مقاوم در جهت Y | M87: وزن سازه | R87: مرکز سطح Y | W87: Mry | AB87: =IF(W88/AA84>=1.75,"OK","N.OK") -> OK
M88: =AA16 -> 1510.495 | R88: 7.2 | W88: =M88*R88 -> 10875.564
G96: =U57 -> 11.40862455 | L96: 7 st
G99: =U56 -> 9.680045076 | L99: 6 st
G102: =U55 -> 7.951465598 | L102: 5 st
G105: =U54 -> 6.22288612 | L105: 4 st
G108: =U53 -> 4.494306642 | L108: 3 st
G111: =U52 -> 2.765727165 | L111: 2 st
G114: =U51 -> 1.31906222 | L114: 1 st
G120: =AA57 -> 9.109211853 | L120: 7 st
G123: =AA56 -> 7.729028239 | L123: 6 st
G126: =AA55 -> 6.348844625 | L126: 5 st
G129: =AA54 -> 4.968661011 | L129: 4 st
G132: =AA53 -> 3.588477397 | L132: 3 st
G135: =AA52 -> 2.208293783 | L135: 2 st
G138: =AA51 -> 1.053204718 | L138: 1 st

Sheet 8 طبقه
AJ1: بتنی | AM1: فولادی
A2: سیستم سازه | D2: محاسبه و تقسیم بار زلزله | AJ2: ='وزن سازه بتنی'!E2 -> تیپ 1:پارکینگ | AK2: ='وزن سازه بتنی'!L33 -> 174.25875 | AL2: ='وزن سازه بتنی'!S33 -> 34.25 | AM2: ='وزن سازه فولادی'!E2 -> تیپ 1:زیرزمین | AN2: ='وزن سازه فولادی'!L32 -> 135.15 | AO2: ='وزن سازه فولادی'!S32 -> 34.25
AJ3: ='وزن سازه بتنی'!E36 -> تیپ 2:مسکونی | AK3: ='وزن سازه بتنی'!L67 -> 183.01875 | AL3: ='وزن سازه بتنی'!S67 -> 34.25 | AM3: ='وزن سازه فولادی'!E36 -> تیپ 2:مسکونی | AN3: ='وزن سازه فولادی'!L66 -> 149.65875 | AO3: ='وزن سازه فولادی'!S66 -> 34.25
AJ4: ='وزن سازه بتنی'!E70 -> تیپ 3:بام | AK4: ='وزن سازه بتنی'!L101 -> 184.77375 | AL4: ='وزن سازه بتنی'!S101 -> 27 | AM4: ='وزن سازه فولادی'!E70 -> تیپ 3:بام | AN4: ='وزن سازه فولادی'!L100 -> 154.33375 | AO4: ='وزن سازه فولادی'!S100 -> 27
E5: جهت تعیین بار جانبی زلزله ابتدا باید وزن سازه و ضریب زازله را بدست آوریم: | AJ5: ='وزن سازه بتنی'!E104 -> تیپ 4:خرپشته | AK5: ='وزن سازه بتنی'!L135 -> 28.925 | AL5: ='وزن سازه بتنی'!S135 -> 2.25 | AM5: ='وزن سازه فولادی'!E104 -> تیپ 4:خرپشته | AN5: ='وزن سازه فولادی'!L134 -> 20.85 | AO5: ='وزن سازه فولادی'!S134 -> 29
AL6: 2 | AM6: select
E7: شماره طبقه | I7: بار مرده | O7: بار زنده | U7: درصد مشارکت یار زنده | AA7: مجموع بار مرده و زنده | AM7: =IF($AL$6=1,AM2,AJ2) -> تیپ 1:پارکینگ | AN7: =IF($AL$6=1,AN2,AK2) -> 174.25875 | AO7: =IF($AL$6=1,AO2,AL2) -> 34.25
E8: طبقه اول | I8: =CHOOSE(AJ8,$AN$7,$AN$8,$AN$9,$AN$10) -> 174.25875 | O8: =CHOOSE(AJ8,$AO$7,$AO$8,$AO$9,$AO$10) -> 34.25 | U8: 0.2 | AA8: =I8+O8*U8 -> 181.10875 | AJ8: 1 | AM8: =IF($AL$6=1,AM3,AJ3) -> تیپ 2:مسکونی | AN8: 183.01875 | AO8: 34.25
E9: طبقه دوم | I9: =CHOOSE(AJ9,$AN$7,$AN$8,$AN$9,$AN$10) -> 183.01875 | O9: =CHOOSE(AJ9,$AO$7,$AO$8,$AO$9,$AO$10) -> 34.25 | U9: 0.2 | AA9: =I9+O9*U9 -> 189.86875 | AJ9: 2 | AM9: تیپ 3:بام | AN9: 184.77375 | AO9: 27
E10: طبقه سوم | I10: 183.01875 | O10: 34.25 | U10: 0.2 | AA10: 189.86875 | AJ10: 2 | AM10: تیپ 4:خرپشته | AN10: 28.925 | AO10: 2.25
E11: طبقه چهارم | I11: 183.01875 | O11: 34.25 | U11: 0.2 | AA11: 189.86875 | AJ11: 2
E12: طبقه پنجم | I12: 183.01875 | O12: 34.25 | U12: 0.2 | AA12: 189.86875 | AJ12: 2
E13: طبقه ششم | I13: 183.01875 | O13: 34.25 | U13: 0.2 | AA13: 189.86875 | AJ13: 2
E14: طبقه هفتم | I14: 183.01875 | O14: 34.25 | U14: 0.2 | AA14: 189.86875 | AJ14: 2
E15: طبقه هشتم | I15: 184.77375 | O15: 27 | U15: 0.2 | AA15: 190.17375 | AJ15: 3
E16: خرپشته | I16: 28.925 | O16: 2.25 | U16: 0.2 | AA16: 29.375 | AJ16: 4
U17: مجموع وزن سازه | AA17: =AA8+AA9+AA10+AA11+AA12+AA13+AA14+AA15+AA16 -> 1539.87
E19: ضریب زلزله در جهت X | S19: ضریب زلزله در جهت Y
E20: =خلاصه!H29 -> 0.1161 | L20: =AA17*E20 -> 178.778907 | S20: =خلاصه!D29 -> 0.0927 | Z20: =AA17*S20 -> 142.745949
E22: توزیع نیروی برشی در جهت X
E23: شماره طبقه | I23: وزن طبقه | N23: ارتفاع طبقه | R23: ارتفاع از تراز پایه | W23: Wi×Hi | AB23: Fi
E24: طبقه اول | I24: =AA8 -> 181.10875 | N24: 2.8 | R24: =N24 -> 2.8 | W24: =I24*R24 -> 507.1045 | AB24: =$L$20*W24/$W$32 -> 4.137170965
E25: طبقه دوم | I25: =AA9 -> 189.86875 | N25: 2.8 | R25: =R24+N25 -> 5.6 | W25: =I25*R25 -> 1063.265 | AB25: =$L$20*W25/$W$32 -> 8.674561331
E26: طبقه سوم | I26: 189.86875 | N26: 3.5 | R26: =R25+N26 -> 9.1 | W26: 1727.805625 | AB26: 14.09616216
E27: طبقه چهارم | I27: 189.86875 | N27: 3.5 | R27: 12.6 | W27: 2392.34625 | AB27: 19.51776299
E28: طبقه پنجم | I28: 189.86875 | N28: 3.5 | R28: 16.1 | W28: 3056.886875 | AB28: 24.93936383
E29: طبقه ششم | I29: 189.86875 | N29: 3.5 | R29: 19.6 | W29: 3721.4275 | AB29: 30.36096466
E30: طبقه هفتم | I30: 189.86875 | N30: 3.5 | R30: 23.1 | W30: 4385.968125 | AB30: 35.78256549
E31: طبقه هشتم | I31: 190.17375 | N31: 3.5 | R31: 26.6 | W31: 5058.62175 | AB31: 41.27035557
R32: ΣWi×Hi= | W32: =W24+W25+W26+W27+W28+W29+W30+W31 -> 21913.42562 | AB32: =AB24+AB25+AB26+AB27+AB28+AB29+AB30+AB31 -> 178.778907
E35: توزیع نیروی برشی در جهت Y
E36: شماره طبقه | I36: وزن طبقه | N36: ارتفاع طبقه | R36: ارتفاع از تراز پایه | W36: Wi×Hi | AB36: Fi
E37: طبقه اول | I37: =AA8 -> 181.10875 | N37: =N24 -> 2.8 | R37: =N37 -> 2.8 | W37: =I37*R37 -> 507.1045 | AB37: =$Z$20*W37/$W$45 -> 3.303322554
E38: طبقه دوم | I38: =AA9 -> 189.86875 | N38: =N25 -> 2.8 | R38: =R37+N38 -> 5.6 | W38: =I38*R38 -> 1063.265 | AB38: =$Z$20*W38/$W$45 -> 6.926200132
E39: طبقه سوم | I39: 189.86875 | N39: 3.5 | R39: =R38+N39 -> 9.1 | W39: 1727.805625 | AB39: 11.25507522
E40: طبقه چهارم | I40: 189.86875 | N40: 3.5 | R40: 12.6 | W40: 2392.34625 | AB40: 15.5839503
E41: طبقه پنجم | I41: 189.86875 | N41: 3.5 | R41: 16.1 | W41: 3056.886875 | AB41: 19.91282538
E42: طبقه ششم | I42: 189.86875 | N42: 3.5 | R42: 19.6 | W42: 3721.4275 | AB42: 24.24170046
E43: طبقه هفتم | I43: 189.86875 | N43: 3.5 | R43: 23.1 | W43: 4385.968125 | AB43: 28.57057555
E44: طبقه هشتم | I44: 190.17375 | N44: 3.5 | R44: 26.6 | W44: 5058.62175 | AB44: 32.95229941
R45: ΣWi×Hi= | W45: =W37+W38+W39+W40+W41+W42+W43+W44 -> 21913.42562 | AB45: =AB37+AB38+AB39+AB40+AB41+AB42+AB43+AB44 -> 142.745949
E50: پخش نیروهای هر تراز بین قاب ها
E51: در جهت X | S51: در جهت Y
E52: سهم قاب مورد نظر از نیروی جانبی (درصد) | P52: 0.2 | S52: سهم قاب مورد نظر از نیروی جانبی (درصد) | AD52: 0.3
E54: شماره طبقه | I54: نیرو در جهت X | O54: نیرو در جهت Y | U54: نیروی جانبی در جهت X | AA54: نیروی جانبی در جهت Y
E55: طبقه اول | I55: =AB24 -> 4.137170965 | O55: =AB37 -> 3.303322554 | U55: =I55*$P$52 -> 0.827434193 | AA55: =O55*$AD$52 -> 0.9909967661
E56: طبقه دوم | I56: =AB25 -> 8.674561331 | O56: =AB38 -> 6.926200132 | U56: =I56*$P$52 -> 1.734912266 | AA56: =O56*$AD$52 -> 2.07786004
E57: طبقه سوم | I57: 14.09616216 | O57: 11.25507522 | U57: 2.819232433 | AA57: 3.376522565
E58: طبقه چهارم | I58: 19.51776299 | O58: 15.5839503 | U58: 3.903552599 | AA58: 4.675185089
E59: طبقه پنجم | I59: 24.93936383 | O59: 19.91282538 | U59: 4.987872765 | AA59: 5.973847614
E60: طبقه ششم | I60: 30.36096466 | O60: 24.24170046 | U60: 6.072192932 | AA60: 7.272510139
E61: طبقه هفتم | I61: 35.78256549 | O61: 28.57057555 | U61: 7.156513098 | AA61: 8.571172664
E62: طبقه هشتم | I62: 41.27035557 | O62: 32.95229941 | U62: 8.254071115 | AA62: 9.885689824
E64: محاسبه لنگر واژگونی در جهت X
E65: شماره طبقه | I65: ارتفاع طبقه | O65: ارتفاع از تراز پابه | U65: Fi | AA65: Fi × Hi
E66: طبقه اول | I66: =N24 -> 2.8 | O66: =I66 -> 2.8 | U66: =AB24 -> 4.137170965 | AA66: =O66*U66 -> 11.5840787
E67: طبقه دوم | I67: =N25 -> 2.8 | O67: =O66+I67 -> 5.6 | U67: =AB25 -> 8.674561331 | AA67: =O67*U67 -> 48.57754345
E68: طبقه سوم | I68: 3.5 | O68: =O67+I68 -> 9.1 | U68: 14.09616216 | AA68: 128.2750757
E69: طبقه چهارم | I69: 3.5 | O69: 12.6 | U69: 19.51776299 | AA69: 245.9238137
E70: طبقه پنجم | I70: 3.5 | O70: 16.1 | U70: 24.93936383 | AA70: 401.5237576
E71: طبقه ششم | I71: 3.5 | O71: 19.6 | U71: 30.36096466 | AA71: 595.0749073
E72: طبقه هفتم | I72: 3.5 | O72: 23.1 | U72: 35.78256549 | AA72: 826.5772628
E73: طبقه هشتم | I73: 3.5 | O73: 26.6 | U73: 41.27035557 | AA73: 1097.791458
U74: Σ= | AA74: =AA66+AA67+AA68+AA69+AA70+AA71+AA72+AA73 -> 3355.327898
E76: محاسبه لنگر مقاوم در جهت X | M76: وزن سازه | R76: مرکز سطح X | W76: Mrx | AB76: =IF(W77/AA74>=1.75,"OK","N.OK") -> OK
M77: =AA17 -> 1539.87 | R77: 4.15 | W77: =M77*R77 -> 6390.4605
E79: محاسبه لنگر واژگونی در جهت Y
E80: شماره طبقه | I80: ارتفاع طبقه | O80: ارتفاع از تراز پابه | U80: Fi | AA80: Fi × Hi
E81: طبقه اول | I81: =N24 -> 2.8 | O81: =I81 -> 2.8 | U81: =AB37 -> 3.303322554 | AA81: =O81*U81 -> 9.24930315
E82: طبقه دوم | I82: =N25 -> 2.8 | O82: =O81+I82 -> 5.6 | U82: =AB38 -> 6.926200132 | AA82: =O82*U82 -> 38.78672074
E83: طبقه سوم | I83: 3.5 | O83: =O82+I83 -> 9.1 | U83: 11.25507522 | AA83: 102.4211845
E84: طبقه چهارم | I84: 3.5 | O84: 12.6 | U84: 15.5839503 | AA84: 196.3577738
E85: طبقه پنجم | I85: 3.5 | O85: 16.1 | U85: 19.91282538 | AA85: 320.5964886
E86: طبقه ششم | I86: 3.5 | O86: 19.6 | U86: 24.24170046 | AA86: 475.1373291
E87: طبقه هفتم | I87: 3.5 | O87: 23.1 | U87: 28.57057555 | AA87: 659.9802951
E88: طبقه هشتم | I88: 3.5 | O88: 26.6 | U88: 32.95229941 | AA88: 876.5311644
U89: Σ= | AA89: =AA81+AA82+AA83+AA84+AA85+AA86+AA87+AA88 -> 2679.060259
E91: محاسبه لنگر مقاوم در جهت Y | M91: وزن سازه | R91: مرکز سطح Y | W91: Mry | AB91: =IF(W92/AA89>=1.75,"OK","N.OK") -> OK
M92: =AA17 -> 1539.87 | R92: 7.2 | W92: =M92*R92 -> 11087.064
G97: =U62 -> 8.254071115 | L97: 8 st
G100: =U61 -> 7.156513098 | L100: 7 st
G103: =U60 -> 6.072192932 | L103: 6 st
G106: =U59 -> 4.987872765 | L106: 5 st
G109: =U58 -> 3.903552599 | L109: 4 st
G112: =U57 -> 2.819232433 | L112: 3 st
G115: =U56 -> 1.734912266 | L115: 2 st
G118: =U55 -> 0.827434193 | L118: 1 st
G122: =AA62 -> 9.885689824 | L122: 8 st
G125: =AA61 -> 8.571172664 | L125: 7 st
G128: =AA60 -> 7.272510139 | L128: 6 st
G131: =AA59 -> 5.973847614 | L131: 5 st
G134: =AA58 -> 4.675185089 | L134: 4 st
G137: =AA57 -> 3.376522565 | L137: 3 st
G140: =AA56 -> 2.07786004 | L140: 2 st
G143: =AA55 -> 0.9909967661 | L143: 1 st
